{"text_format":"1","workbook":"xlsx","n_sheets":3,"sheets":["كشف الحساب","استخراج كشف حساب عميل","ورقة3"],"not_rendered":{"charts":0,"images":0,"macros":1,"external_links":0,"defined_names":1,"comments":0,"pivot_tables":0},"unopened":[],"bounds":{"document_bytes":16777216,"sheet_cells":100000,"rows_first":2000,"rows_last":500,"rows_between":2000,"halvings":0,"cell_chars":16384,"cell_head_chars":4096},"cells_cut":0,"cells_raw":0,"read":"whole","date_system":"1900"}

{"sheet":"كشف الحساب","index":0,"n_rows":7,"n_cols":8,"rows_kept":7,"cut":false,"hidden":false,"merged":[[0,0,0,7]]}
["حسابات العملاء"]
[null,"00:00:00"]
["مسلسل","تاريخ الاصدار","اسم العميل","بيان","اجمالي الفاتورة","قديم ","تنزيل","صافي الفاتورة"]
[1,"2021-05-23","سيد","فاتورة رقم260",5000]
[2,"2021-05-24","سيد","ايداع بنك مصر",null,null,3000]
[3,"2021-05-25","محمد","فاتورة رقم 261",7000]
[4,"2021-05-26","محمد","ايداع بنك مصر",null,null,5000]

{"sheet":"استخراج كشف حساب عميل","index":1,"n_rows":348,"n_cols":6,"rows_kept":348,"cut":false,"hidden":false,"merged":[[347,0,348,1],[347,3,348,3],[347,4,348,4],[1,0,1,4],[1,5,2,5],[2,0,2,1],[4,5,5,5],[7,5,8,5],[345,0,346,1],[345,2,346,2],[345,3,346,3],[345,4,346,4]]}
[]
["كشف حساب ",null,null,null,null,{"$f":"$D$348","v":5000}]
["اسم العميل",null,"سيد","من تاريخ","2021-01-01"]
[null,null,null,"الي تاريخ","2021-12-31","اجمالي الفواتير"]
["مسلسل","تاريخ الاصدار","بيان","اجمالي الفاتورة","تنزيل",{"$f":"$E$348","v":3000}]
[{"$f":"IF(B6=\"\",\"\",ROW()-5)","v":1},{"$f":"IFERROR(INDEX('كشف الحساب'!$B$4:$H$1000,SMALL(IF('استخراج كشف حساب عميل'!$E$3<='كشف الحساب'!$B$4:$B$1000,IF('استخراج كشف حساب عميل'!$E$4>='كشف الحساب'!$B$4:$B$1000,IF('استخراج كشف حساب عميل'!$C$3='كشف الحساب'!$C$4:$C$1000,ROW('كشف الحساب'!$B$4:$H$1000)-3))),ROW($A1)),MATCH('استخراج كشف حساب عميل'!B$5,'كشف الحساب'!$B$3:$G$3,0)),\"\")","v":"2021-05-23"},{"$f":"IFERROR(INDEX('كشف الحساب'!$B$4:$H$1000,SMALL(IF('استخراج كشف حساب عميل'!$E$3<='كشف الحساب'!$B$4:$B$1000,IF('استخراج كشف حساب عميل'!$E$4>='كشف الحساب'!$B$4:$B$1000,IF('استخراج كشف حساب عميل'!$C$3='كشف الحساب'!$C$4:$C$1000,ROW('كشف الحساب'!$B$4:$H$1000)-3))),ROW($A1)),MATCH('استخراج كشف حساب عميل'!C$5,'كشف الحساب'!$B$3:$G$3,0)),\"\")","v":"فاتورة رقم260"},{"$f":"IFERROR(INDEX('كشف الحساب'!$B$4:$H$1000,SMALL(IF('استخراج كشف حساب عميل'!$E$3<='كشف الحساب'!$B$4:$B$1000,IF('استخراج كشف حساب عميل'!$E$4>='كشف الحساب'!$B$4:$B$1000,IF('استخراج كشف حساب عميل'!$C$3='كشف الحساب'!$C$4:$C$1000,ROW('كشف الحساب'!$B$4:$H$1000)-3))),ROW($A1)),MATCH('استخراج كشف حساب عميل'!D$5,'كشف الحساب'!$B$3:$G$3,0)),\"\")","v":5000},{"$f":"IFERROR(INDEX('كشف الحساب'!$B$4:$H$1000,SMALL(IF('استخراج كشف حساب عميل'!$E$3<='كشف الحساب'!$B$4:$B$1000,IF('استخراج كشف حساب عميل'!$E$4>='كشف الحساب'!$B$4:$B$1000,IF('استخراج كشف حساب عميل'!$C$3='كشف الحساب'!$C$4:$C$1000,ROW('كشف الحساب'!$B$4:$H$1000)-3))),ROW($A1)),MATCH('استخراج كشف حساب عميل'!E$5,'كشف الحساب'!$B$3:$G$3,0)),\"\")","v":0}]
[{"$f":"IF(B7=\"\",\"\",ROW()-5)","v":2},{"$f":"IFERROR(INDEX('كشف الحساب'!$B$4:$H$1000,SMALL(IF('استخراج كشف حساب عميل'!$E$3<='كشف الحساب'!$B$4:$B$1000,IF('استخراج كشف حساب عميل'!$E$4>='كشف الحساب'!$B$4:$B$1000,IF('استخراج كشف حساب عميل'!$C$3='كشف الحساب'!$C$4:$C$1000,ROW('كشف الحساب'!$B$4:$H$1000)-3))),ROW($A2)),MATCH('استخراج كشف حساب عميل'!B$5,'كشف الحساب'!$B$3:$G$3,0)),\"\")","v":"2021-05-24"},{"$f":"IFERROR(INDEX('كشف الحساب'!$B$4:$H$1000,SMALL(IF('استخراج كشف حساب عميل'!$E$3<='كشف الحساب'!$B$4:$B$1000,IF('استخراج كشف حساب عميل'!$E$4>='كشف الحساب'!$B$4:$B$1000,IF('استخراج كشف حساب عميل'!$C$3='كشف الحساب'!$C$4:$C$1000,ROW('كشف الحساب'!$B$4:$H$1000)-3))),ROW($A2)),MATCH('استخراج كشف حساب عميل'!C$5,'كشف الحساب'!$B$3:$G$3,0)),\"\")","v":"ايداع بنك مصر"},{"$f":"IFERROR(INDEX('كشف الحساب'!$B$4:$H$1000,SMALL(IF('استخراج كشف حساب عميل'!$E$3<='كشف الحساب'!$B$4:$B$1000,IF('استخراج كشف حساب عميل'!$E$4>='كشف الحساب'!$B$4:$B$1000,IF('استخراج كشف حساب عميل'!$C$3='كشف الحساب'!$C$4:$C$1000,ROW('كشف الحساب'!$B$4:$H$1000)-3))),ROW($A2)),MATCH('استخراج كشف حساب عميل'!D$5,'كشف الحساب'!$B$3:$G$3,0)),\"\")","v":0},{"$f":"IFERROR(INDEX('كشف الحساب'!$B$4:$H$1000,SMALL(IF('استخراج كشف حساب عميل'!$E$3<='كشف الحساب'!$B$4:$B$1000,IF('استخراج كشف حساب عميل'!$E$4>='كشف الحساب'!$B$4:$B$1000,IF('استخراج كشف حساب عميل'!$C$3='كشف الحساب'!$C$4:$C$1000,ROW('كشف الحساب'!$B$4:$H$1000)-3))),ROW($A2)),MATCH('استخراج كشف حساب عميل'!E$5,'كشف الحساب'!$B$3:$G$3,0)),\"\")","v":3000},"اجمالي التنزيلات"]
["",{"$f":"IFERROR(INDEX('كشف الحساب'!$B$4:$H$1000,SMALL(IF('استخراج كشف حساب عميل'!$E$3<='كشف الحساب'!$B$4:$B$1000,IF('استخراج كشف حساب عميل'!$E$4>='كشف الحساب'!$B$4:$B$1000,IF('استخراج كشف حساب عميل'!$C$3='كشف الحساب'!$C$4:$C$1000,ROW('كشف الحساب'!$B$4:$H$1000)-3))),ROW($A3)),MATCH('استخراج كشف حساب عميل'!B$5,'كشف الحساب'!$B$3:$G$3,0)),\"\")","v":""},{"$f":"IFERROR(INDEX('كشف الحساب'!$B$4:$H$1000,SMALL(IF('استخراج كشف حساب عميل'!$E$3<='كشف الحساب'!$B$4:$B$1000,IF('استخراج كشف حساب عميل'!$E$4>='كشف الحساب'!$B$4:$B$1000,IF('استخراج كشف حساب عميل'!$C$3='كشف الحساب'!$C$4:$C$1000,ROW('كشف الحساب'!$B$4:$H$1000)-3))),ROW($A3)),MATCH('استخراج كشف حساب عميل'!C$5,'كشف الحساب'!$B$3:$G$3,0)),\"\")","v":""},{"$f":"IFERROR(INDEX('كشف الحساب'!$B$4:$H$1000,SMALL(IF('استخراج كشف حساب عميل'!$E$3<='كشف الحساب'!$B$4:$B$1000,IF('استخراج كشف حساب عميل'!$E$4>='كشف الحساب'!$B$4:$B$1000,IF('استخراج كشف حساب عميل'!$C$3='كشف الحساب'!$C$4:$C$1000,ROW('كشف الحساب'!$B$4:$H$1000)-3))),ROW($A3)),MATCH('استخراج كشف حساب عميل'!D$5,'كشف الحساب'!$B$3:$G$3,0)),\"\")","v":""},{"$f":"IFERROR(INDEX('كشف الحساب'!$B$4:$H$1000,SMALL(IF('استخراج كشف حساب عميل'!$E$3<='كشف الحساب'!$B$4:$B$1000,IF('استخراج كشف حساب عميل'!$E$4>='كشف الحساب'!$B$4:$B$1000,IF('استخراج كشف حساب عميل'!$C$3='كشف الحساب'!$C$4:$C$1000,ROW('كشف الحساب'!$B$4:$H$1000)-3))),ROW($A3)),MATCH('استخراج كشف حساب عميل'!E$5,'كشف الحساب'!$B$3:$G$3,0)),\"\")","v":""},{"$f":"$A$348","v":2000}]
["",{"$f":"IFERROR(INDEX('كشف الحساب'!$B$4:$H$1000,SMALL(IF('استخراج كشف حساب عميل'!$E$3<='كشف الحساب'!$B$4:$B$1000,IF('استخراج كشف حساب عميل'!$E$4>='كشف الحساب'!$B$4:$B$1000,IF('استخراج كشف حساب عميل'!$C$3='كشف الحساب'!$C$4:$C$1000,ROW('كشف الحساب'!$B$4:$H$1000)-3))),ROW($A4)),MATCH('استخراج كشف حساب عميل'!B$5,'كشف الحساب'!$B$3:$G$3,0)),\"\")","v":""},{"$f":"IFERROR(INDEX('كشف الحساب'!$B$4:$H$1000,SMALL(IF('استخراج كشف حساب عميل'!$E$3<='كشف الحساب'!$B$4:$B$1000,IF('استخراج كشف حساب عميل'!$E$4>='كشف الحساب'!$B$4:$B$1000,IF('استخراج كشف حساب عميل'!$C$3='كشف الحساب'!$C$4:$C$1000,ROW('كشف الحساب'!$B$4:$H$1000)-3))),ROW($A4)),MATCH('استخراج كشف حساب عميل'!C$5,'كشف الحساب'!$B$3:$G$3,0)),\"\")","v":""},{"$f":"IFERROR(INDEX('كشف الحساب'!$B$4:$H$1000,SMALL(IF('استخراج كشف حساب عميل'!$E$3<='كشف الحساب'!$B$4:$B$1000,IF('استخراج كشف حساب عميل'!$E$4>='كشف الحساب'!$B$4:$B$1000,IF('استخراج كشف حساب عميل'!$C$3='كشف الحساب'!$C$4:$C$1000,ROW('كشف الحساب'!$B$4:$H$1000)-3))),ROW($A4)),MATCH('استخراج كشف حساب عميل'!D$5,'كشف الحساب'!$B$3:$G$3,0)),\"\")","v":""},{"$f":"IFERROR(INDEX('كشف الحساب'!$B$4:$H$1000,SMALL(IF('استخراج كشف حساب عميل'!$E$3<='كشف الحساب'!$B$4:$B$1000,IF('استخراج كشف حساب عميل'!$E$4>='كشف الحساب'!$B$4:$B$1000,IF('استخراج كشف حساب عميل'!$C$3='كشف الحساب'!$C$4:$C$1000,ROW('كشف الحساب'!$B$4:$H$1000)-3))),ROW($A4)),MATCH('استخراج كشف حساب عميل'!E$5,'كشف الحساب'!$B$3:$G$3,0)),\"\")","v":""}]
["",{"$f":"IFERROR(INDEX('كشف الحساب'!$B$4:$H$1000,SMALL(IF('استخراج كشف حساب عميل'!$E$3<='كشف الحساب'!$B$4:$B$1000,IF('استخراج كشف حساب عميل'!$E$4>='كشف الحساب'!$B$4:$B$1000,IF('استخراج كشف حساب عميل'!$C$3='كشف الحساب'!$C$4:$C$1000,ROW('كشف الحساب'!$B$4:$H$1000)-3))),ROW($A5)),MATCH('استخراج كشف حساب عميل'!B$5,'كشف الحساب'!$B$3:$G$3,0)),\"\")","v":""},{"$f":"IFERROR(INDEX('كشف الحساب'!$B$4:$H$1000,SMALL(IF('استخراج كشف حساب عميل'!$E$3<='كشف الحساب'!$B$4:$B$1000,IF('استخراج كشف حساب عميل'!$E$4>='كشف الحساب'!$B$4:$B$1000,IF('استخراج كشف حساب عميل'!$C$3='كشف الحساب'!$C$4:$C$1000,ROW('كشف الحساب'!$B$4:$H$1000)-3))),ROW($A5)),MATCH('استخراج كشف حساب عميل'!C$5,'كشف الحساب'!$B$3:$G$3,0)),\"\")","v":""},{"$f":"IFERROR(INDEX('كشف الحساب'!$B$4:$H$1000,SMALL(IF('استخراج كشف حساب عميل'!$E$3<='كشف الحساب'!$B$4:$B$1000,IF('استخراج كشف حساب عميل'!$E$4>='كشف الحساب'!$B$4:$B$1000,IF('استخراج كشف حساب عميل'!$C$3='كشف الحساب'!$C$4:$C$1000,ROW('كشف الحساب'!$B$4:$H$1000)-3))),ROW($A5)),MATCH('استخراج كشف حساب عميل'!D$5,'كشف الحساب'!$B$3:$G$3,0)),\"\")","v":""},{"$f":"IFERROR(INDEX('كشف الحساب'!$B$4:$H$1000,SMALL(IF('استخراج كشف حساب عميل'!$E$3<='كشف الحساب'!$B$4:$B$1000,IF('استخراج كشف حساب عميل'!$E$4>='كشف الحساب'!$B$4:$B$1000,IF('استخراج كشف حساب عميل'!$C$3='كشف الحساب'!$C$4:$C$1000,ROW('كشف الحساب'!$B$4:$H$1000)-3))),ROW($A5)),MATCH('استخراج كشف حساب عميل'!E$5,'كشف الحساب'!$B$3:$G$3,0)),\"\")","v":""}]
["",{"$f":"IFERROR(INDEX('كشف الحساب'!$B$4:$H$1000,SMALL(IF('استخراج كشف حساب عميل'!$E$3<='كشف الحساب'!$B$4:$B$1000,IF('استخراج كشف حساب عميل'!$E$4>='كشف الحساب'!$B$4:$B$1000,IF('استخراج كشف حساب عميل'!$C$3='كشف الحساب'!$C$4:$C$1000,ROW('كشف الحساب'!$B$4:$H$1000)-3))),ROW($A6)),MATCH('استخراج كشف حساب عميل'!B$5,'كشف الحساب'!$B$3:$G$3,0)),\"\")","v":""},{"$f":"IFERROR(INDEX('كشف الحساب'!$B$4:$H$1000,SMALL(IF('استخراج كشف حساب عميل'!$E$3<='كشف الحساب'!$B$4:$B$1000,IF('استخراج كشف حساب عميل'!$E$4>='كشف الحساب'!$B$4:$B$1000,IF('استخراج كشف حساب عميل'!$C$3='كشف الحساب'!$C$4:$C$1000,ROW('كشف الحساب'!$B$4:$H$1000)-3))),ROW($A6)),MATCH('استخراج كشف حساب عميل'!C$5,'كشف الحساب'!$B$3:$G$3,0)),\"\")","v":""},{"$f":"IFERROR(INDEX('كشف الحساب'!$B$4:$H$1000,SMALL(IF('استخراج كشف حساب عميل'!$E$3<='كشف الحساب'!$B$4:$B$1000,IF('استخراج كشف حساب عميل'!$E$4>='كشف الحساب'!$B$4:$B$1000,IF('استخراج كشف حساب عميل'!$C$3='كشف الحساب'!$C$4:$C$1000,ROW('كشف الحساب'!$B$4:$H$1000)-3))),ROW($A6)),MATCH('استخراج كشف حساب عميل'!D$5,'كشف الحساب'!$B$3:$G$3,0)),\"\")","v":""},{"$f":"IFERROR(INDEX('كشف الحساب'!$B$4:$H$1000,SMALL(IF('استخراج كشف حساب عميل'!$E$3<='كشف الحساب'!$B$4:$B$1000,IF('استخراج كشف حساب عميل'!$E$4>='كشف الحساب'!$B$4:$B$1000,IF('استخراج كشف حساب عميل'!$C$3='كشف الحساب'!$C$4:$C$1000,ROW('كشف الحساب'!$B$4:$H$1000)-3))),ROW($A6)),MATCH('استخراج كشف حساب عميل'!E$5,'كشف الحساب'!$B$3:$G$3,0)),\"\")","v":""}]
["",{"$f":"IFERROR(INDEX('كشف الحساب'!$B$4:$H$1000,SMALL(IF('استخراج كشف حساب عميل'!$E$3<='كشف الحساب'!$B$4:$B$1000,IF('استخراج كشف حساب عميل'!$E$4>='كشف الحساب'!$B$4:$B$1000,IF('استخراج كشف حساب عميل'!$C$3='كشف الحساب'!$C$4:$C$1000,ROW('كشف الحساب'!$B$4:$H$1000)-3))),ROW($A7)),MATCH('استخراج كشف حساب عميل'!B$5,'كشف الحساب'!$B$3:$G$3,0)),\"\")","v":""},{"$f":"IFERROR(INDEX('كشف الحساب'!$B$4:$H$1000,SMALL(IF('استخراج كشف حساب عميل'!$E$3<='كشف الحساب'!$B$4:$B$1000,IF('استخراج كشف حساب عميل'!$E$4>='كشف الحساب'!$B$4:$B$1000,IF('استخراج كشف حساب عميل'!$C$3='كشف الحساب'!$C$4:$C$1000,ROW('كشف الحساب'!$B$4:$H$1000)-3))),ROW($A7)),MATCH('استخراج كشف حساب عميل'!C$5,'كشف الحساب'!$B$3:$G$3,0)),\"\")","v":""},{"$f":"IFERROR(INDEX('كشف الحساب'!$B$4:$H$1000,SMALL(IF('استخراج كشف حساب عميل'!$E$3<='كشف الحساب'!$B$4:$B$1000,IF('استخراج كشف حساب عميل'!$E$4>='كشف الحساب'!$B$4:$B$1000,IF('استخراج كشف حساب عميل'!$C$3='كشف الحساب'!$C$4:$C$1000,ROW('كشف الحساب'!$B$4:$H$1000)-3))),ROW($A7)),MATCH('استخراج كشف حساب عميل'!D$5,'كشف الحساب'!$B$3:$G$3,0)),\"\")","v":""},{"$f":"IFERROR(INDEX('كشف الحساب'!$B$4:$H$1000,SMALL(IF('استخراج كشف حساب عميل'!$E$3<='كشف الحساب'!$B$4:$B$1000,IF('استخراج كشف حساب عميل'!$E$4>='كشف الحساب'!$B$4:$B$1000,IF('استخراج كشف حساب عميل'!$C$3='كشف الحساب'!$C$4:$C$1000,ROW('كشف الحساب'!$B$4:$H$1000)-3))),ROW($A7)),MATCH('استخراج كشف حساب عميل'!E$5,'كشف الحساب'!$B$3:$G$3,0)),\"\")","v":""}]
["",{"$f":"IFERROR(INDEX('كشف الحساب'!$B$4:$H$1000,SMALL(IF('استخراج كشف حساب عميل'!$E$3<='كشف الحساب'!$B$4:$B$1000,IF('استخراج كشف حساب عميل'!$E$4>='كشف الحساب'!$B$4:$B$1000,IF('استخراج كشف حساب عميل'!$C$3='كشف الحساب'!$C$4:$C$1000,ROW('كشف الحساب'!$B$4:$H$1000)-3))),ROW($A8)),MATCH('استخراج كشف حساب عميل'!B$5,'كشف الحساب'!$B$3:$G$3,0)),\"\")","v":""},{"$f":"IFERROR(INDEX('كشف الحساب'!$B$4:$H$1000,SMALL(IF('استخراج كشف حساب عميل'!$E$3<='كشف الحساب'!$B$4:$B$1000,IF('استخراج كشف حساب عميل'!$E$4>='كشف الحساب'!$B$4:$B$1000,IF('استخراج كشف حساب عميل'!$C$3='كشف الحساب'!$C$4:$C$1000,ROW('كشف الحساب'!$B$4:$H$1000)-3))),ROW($A8)),MATCH('استخراج كشف حساب عميل'!C$5,'كشف الحساب'!$B$3:$G$3,0)),\"\")","v":""},{"$f":"IFERROR(INDEX('كشف الحساب'!$B$4:$H$1000,SMALL(IF('استخراج كشف حساب عميل'!$E$3<='كشف الحساب'!$B$4:$B$1000,IF('استخراج كشف حساب عميل'!$E$4>='كشف الحساب'!$B$4:$B$1000,IF('استخراج كشف حساب عميل'!$C$3='كشف الحساب'!$C$4:$C$1000,ROW('كشف الحساب'!$B$4:$H$1000)-3))),ROW($A8)),MATCH('استخراج كشف حساب عميل'!D$5,'كشف الحساب'!$B$3:$G$3,0)),\"\")","v":""},{"$f":"IFERROR(INDEX('كشف الحساب'!$B$4:$H$1000,SMALL(IF('استخراج كشف حساب عميل'!$E$3<='كشف الحساب'!$B$4:$B$1000,IF('استخراج كشف حساب عميل'!$E$4>='كشف الحساب'!$B$4:$B$1000,IF('استخراج كشف حساب عميل'!$C$3='كشف الحساب'!$C$4:$C$1000,ROW('كشف الحساب'!$B$4:$H$1000)-3))),ROW($A8)),MATCH('استخراج كشف حساب عميل'!E$5,'كشف الحساب'!$B$3:$G$3,0)),\"\")","v":""}]
["",{"$f":"IFERROR(INDEX('كشف الحساب'!$B$4:$H$1000,SMALL(IF('استخراج كشف حساب عميل'!$E$3<='كشف الحساب'!$B$4:$B$1000,IF('استخراج كشف حساب عميل'!$E$4>='كشف الحساب'!$B$4:$B$1000,IF('استخراج كشف حساب عميل'!$C$3='كشف الحساب'!$C$4:$C$1000,ROW('كشف الحساب'!$B$4:$H$1000)-3))),ROW($A9)),MATCH('استخراج كشف حساب عميل'!B$5,'كشف الحساب'!$B$3:$G$3,0)),\"\")","v":""},{"$f":"IFERROR(INDEX('كشف الحساب'!$B$4:$H$1000,SMALL(IF('استخراج كشف حساب عميل'!$E$3<='كشف الحساب'!$B$4:$B$1000,IF('استخراج كشف حساب عميل'!$E$4>='كشف الحساب'!$B$4:$B$1000,IF('استخراج كشف حساب عميل'!$C$3='كشف الحساب'!$C$4:$C$1000,ROW('كشف الحساب'!$B$4:$H$1000)-3))),ROW($A9)),MATCH('استخراج كشف حساب عميل'!C$5,'كشف الحساب'!$B$3:$G$3,0)),\"\")","v":""},{"$f":"IFERROR(INDEX('كشف الحساب'!$B$4:$H$1000,SMALL(IF('استخراج كشف حساب عميل'!$E$3<='كشف الحساب'!$B$4:$B$1000,IF('استخراج كشف حساب عميل'!$E$4>='كشف الحساب'!$B$4:$B$1000,IF('استخراج كشف حساب عميل'!$C$3='كشف الحساب'!$C$4:$C$1000,ROW('كشف الحساب'!$B$4:$H$1000)-3))),ROW($A9)),MATCH('استخراج كشف حساب عميل'!D$5,'كشف الحساب'!$B$3:$G$3,0)),\"\")","v":""},{"$f":"IFERROR(INDEX('كشف الحساب'!$B$4:$H$1000,SMALL(IF('استخراج كشف حساب عميل'!$E$3<='كشف الحساب'!$B$4:$B$1000,IF('استخراج كشف حساب عميل'!$E$4>='كشف الحساب'!$B$4:$B$1000,IF('استخراج كشف حساب عميل'!$C$3='كشف الحساب'!$C$4:$C$1000,ROW('كشف الحساب'!$B$4:$H$1000)-3))),ROW($A9)),MATCH('استخراج كشف حساب عميل'!E$5,'كشف الحساب'!$B$3:$G$3,0)),\"\")","v":""}]
["",{"$f":"IFERROR(INDEX('كشف الحساب'!$B$4:$H$1000,SMALL(IF('استخراج كشف حساب عميل'!$E$3<='كشف الحساب'!$B$4:$B$1000,IF('استخراج كشف حساب عميل'!$E$4>='كشف الحساب'!$B$4:$B$1000,IF('استخراج كشف حساب عميل'!$C$3='كشف الحساب'!$C$4:$C$1000,ROW('كشف الحساب'!$B$4:$H$1000)-3))),ROW($A10)),MATCH('استخراج كشف حساب عميل'!B$5,'كشف الحساب'!$B$3:$G$3,0)),\"\")","v":""},{"$f":"IFERROR(INDEX('كشف الحساب'!$B$4:$H$1000,SMALL(IF('استخراج كشف حساب عميل'!$E$3<='كشف الحساب'!$B$4:$B$1000,IF('استخراج كشف حساب عميل'!$E$4>='كشف الحساب'!$B$4:$B$1000,IF('استخراج كشف حساب عميل'!$C$3='كشف الحساب'!$C$4:$C$1000,ROW('كشف الحساب'!$B$4:$H$1000)-3))),ROW($A10)),MATCH('استخراج كشف حساب عميل'!C$5,'كشف الحساب'!$B$3:$G$3,0)),\"\")","v":""},{"$f":"IFERROR(INDEX('كشف الحساب'!$B$4:$H$1000,SMALL(IF('استخراج كشف حساب عميل'!$E$3<='كشف الحساب'!$B$4:$B$1000,IF('استخراج كشف حساب عميل'!$E$4>='كشف الحساب'!$B$4:$B$1000,IF('استخراج كشف حساب عميل'!$C$3='كشف الحساب'!$C$4:$C$1000,ROW('كشف الحساب'!$B$4:$H$1000)-3))),ROW($A10)),MATCH('استخراج كشف حساب عميل'!D$5,'كشف الحساب'!$B$3:$G$3,0)),\"\")","v":""},{"$f":"IFERROR(INDEX('كشف الحساب'!$B$4:$H$1000,SMALL(IF('استخراج كشف حساب عميل'!$E$3<='كشف الحساب'!$B$4:$B$1000,IF('استخراج كشف حساب عميل'!$E$4>='كشف الحساب'!$B$4:$B$1000,IF('استخراج كشف حساب عميل'!$C$3='كشف الحساب'!$C$4:$C$1000,ROW('كشف الحساب'!$B$4:$H$1000)-3))),ROW($A10)),MATCH('استخراج كشف حساب عميل'!E$5,'كشف الحساب'!$B$3:$G$3,0)),\"\")","v":""}]
["",{"$f":"IFERROR(INDEX('كشف الحساب'!$B$4:$H$1000,SMALL(IF('استخراج كشف حساب عميل'!$E$3<='كشف الحساب'!$B$4:$B$1000,IF('استخراج كشف حساب عميل'!$E$4>='كشف الحساب'!$B$4:$B$1000,IF('استخراج كشف حساب عميل'!$C$3='كشف الحساب'!$C$4:$C$1000,ROW('كشف الحساب'!$B$4:$H$1000)-3))),ROW($A11)),MATCH('استخراج كشف حساب عميل'!B$5,'كشف الحساب'!$B$3:$G$3,0)),\"\")","v":""},{"$f":"IFERROR(INDEX('كشف الحساب'!$B$4:$H$1000,SMALL(IF('استخراج كشف حساب عميل'!$E$3<='كشف الحساب'!$B$4:$B$1000,IF('استخراج كشف حساب عميل'!$E$4>='كشف الحساب'!$B$4:$B$1000,IF('استخراج كشف حساب عميل'!$C$3='كشف الحساب'!$C$4:$C$1000,ROW('كشف الحساب'!$B$4:$H$1000)-3))),ROW($A11)),MATCH('استخراج كشف حساب عميل'!C$5,'كشف الحساب'!$B$3:$G$3,0)),\"\")","v":""},{"$f":"IFERROR(INDEX('كشف الحساب'!$B$4:$H$1000,SMALL(IF('استخراج كشف حساب عميل'!$E$3<='كشف الحساب'!$B$4:$B$1000,IF('استخراج كشف حساب عميل'!$E$4>='كشف الحساب'!$B$4:$B$1000,IF('استخراج كشف حساب عميل'!$C$3='كشف الحساب'!$C$4:$C$1000,ROW('كشف الحساب'!$B$4:$H$1000)-3))),ROW($A11)),MATCH('استخراج كشف حساب عميل'!D$5,'كشف الحساب'!$B$3:$G$3,0)),\"\")","v":""},{"$f":"IFERROR(INDEX('كشف الحساب'!$B$4:$H$1000,SMALL(IF('استخراج كشف حساب عميل'!$E$3<='كشف الحساب'!$B$4:$B$1000,IF('استخراج كشف حساب عميل'!$E$4>='كشف الحساب'!$B$4:$B$1000,IF('استخراج كشف حساب عميل'!$C$3='كشف الحساب'!$C$4:$C$1000,ROW('كشف الحساب'!$B$4:$H$1000)-3))),ROW($A11)),MATCH('استخراج كشف حساب عميل'!E$5,'كشف الحساب'!$B$3:$G$3,0)),\"\")","v":""}]
["",{"$f":"IFERROR(INDEX('كشف الحساب'!$B$4:$H$1000,SMALL(IF('استخراج كشف حساب عميل'!$E$3<='كشف الحساب'!$B$4:$B$1000,IF('استخراج كشف حساب عميل'!$E$4>='كشف الحساب'!$B$4:$B$1000,IF('استخراج كشف حساب عميل'!$C$3='كشف الحساب'!$C$4:$C$1000,ROW('كشف الحساب'!$B$4:$H$1000)-3))),ROW($A12)),MATCH('استخراج كشف حساب عميل'!B$5,'كشف الحساب'!$B$3:$G$3,0)),\"\")","v":""},{"$f":"IFERROR(INDEX('كشف الحساب'!$B$4:$H$1000,SMALL(IF('استخراج كشف حساب عميل'!$E$3<='كشف الحساب'!$B$4:$B$1000,IF('استخراج كشف حساب عميل'!$E$4>='كشف الحساب'!$B$4:$B$1000,IF('استخراج كشف حساب عميل'!$C$3='كشف الحساب'!$C$4:$C$1000,ROW('كشف الحساب'!$B$4:$H$1000)-3))),ROW($A12)),MATCH('استخراج كشف حساب عميل'!C$5,'كشف الحساب'!$B$3:$G$3,0)),\"\")","v":""},{"$f":"IFERROR(INDEX('كشف الحساب'!$B$4:$H$1000,SMALL(IF('استخراج كشف حساب عميل'!$E$3<='كشف الحساب'!$B$4:$B$1000,IF('استخراج كشف حساب عميل'!$E$4>='كشف الحساب'!$B$4:$B$1000,IF('استخراج كشف حساب عميل'!$C$3='كشف الحساب'!$C$4:$C$1000,ROW('كشف الحساب'!$B$4:$H$1000)-3))),ROW($A12)),MATCH('استخراج كشف حساب عميل'!D$5,'كشف الحساب'!$B$3:$G$3,0)),\"\")","v":""},{"$f":"IFERROR(INDEX('كشف الحساب'!$B$4:$H$1000,SMALL(IF('استخراج كشف حساب عميل'!$E$3<='كشف الحساب'!$B$4:$B$1000,IF('استخراج كشف حساب عميل'!$E$4>='كشف الحساب'!$B$4:$B$1000,IF('استخراج كشف حساب عميل'!$C$3='كشف الحساب'!$C$4:$C$1000,ROW('كشف الحساب'!$B$4:$H$1000)-3))),ROW($A12)),MATCH('استخراج كشف حساب عميل'!E$5,'كشف الحساب'!$B$3:$G$3,0)),\"\")","v":""}]
["",{"$f":"IFERROR(INDEX('كشف الحساب'!$B$4:$H$1000,SMALL(IF('استخراج كشف حساب عميل'!$E$3<='كشف الحساب'!$B$4:$B$1000,IF('استخراج كشف حساب عميل'!$E$4>='كشف الحساب'!$B$4:$B$1000,IF('استخراج كشف حساب عميل'!$C$3='كشف الحساب'!$C$4:$C$1000,ROW('كشف الحساب'!$B$4:$H$1000)-3))),ROW($A13)),MATCH('استخراج كشف حساب عميل'!B$5,'كشف الحساب'!$B$3:$G$3,0)),\"\")","v":""},{"$f":"IFERROR(INDEX('كشف الحساب'!$B$4:$H$1000,SMALL(IF('استخراج كشف حساب عميل'!$E$3<='كشف الحساب'!$B$4:$B$1000,IF('استخراج كشف حساب عميل'!$E$4>='كشف الحساب'!$B$4:$B$1000,IF('استخراج كشف حساب عميل'!$C$3='كشف الحساب'!$C$4:$C$1000,ROW('كشف الحساب'!$B$4:$H$1000)-3))),ROW($A13)),MATCH('استخراج كشف حساب عميل'!C$5,'كشف الحساب'!$B$3:$G$3,0)),\"\")","v":""},{"$f":"IFERROR(INDEX('كشف الحساب'!$B$4:$H$1000,SMALL(IF('استخراج كشف حساب عميل'!$E$3<='كشف الحساب'!$B$4:$B$1000,IF('استخراج كشف حساب عميل'!$E$4>='كشف الحساب'!$B$4:$B$1000,IF('استخراج كشف حساب عميل'!$C$3='كشف الحساب'!$C$4:$C$1000,ROW('كشف الحساب'!$B$4:$H$1000)-3))),ROW($A13)),MATCH('استخراج كشف حساب عميل'!D$5,'كشف الحساب'!$B$3:$G$3,0)),\"\")","v":""},{"$f":"IFERROR(INDEX('كشف الحساب'!$B$4:$H$1000,SMALL(IF('استخراج كشف حساب عميل'!$E$3<='كشف الحساب'!$B$4:$B$1000,IF('استخراج كشف حساب عميل'!$E$4>='كشف الحساب'!$B$4:$B$1000,IF('استخراج كشف حساب عميل'!$C$3='كشف الحساب'!$C$4:$C$1000,ROW('كشف الحساب'!$B$4:$H$1000)-3))),ROW($A13)),MATCH('استخراج كشف حساب عميل'!E$5,'كشف الحساب'!$B$3:$G$3,0)),\"\")","v":""}]
["",{"$f":"IFERROR(INDEX('كشف الحساب'!$B$4:$H$1000,SMALL(IF('استخراج كشف حساب عميل'!$E$3<='كشف الحساب'!$B$4:$B$1000,IF('استخراج كشف حساب عميل'!$E$4>='كشف الحساب'!$B$4:$B$1000,IF('استخراج كشف حساب عميل'!$C$3='كشف الحساب'!$C$4:$C$1000,ROW('كشف الحساب'!$B$4:$H$1000)-3))),ROW($A14)),MATCH('استخراج كشف حساب عميل'!B$5,'كشف الحساب'!$B$3:$G$3,0)),\"\")","v":""},{"$f":"IFERROR(INDEX('كشف الحساب'!$B$4:$H$1000,SMALL(IF('استخراج كشف حساب عميل'!$E$3<='كشف الحساب'!$B$4:$B$1000,IF('استخراج كشف حساب عميل'!$E$4>='كشف الحساب'!$B$4:$B$1000,IF('استخراج كشف حساب عميل'!$C$3='كشف الحساب'!$C$4:$C$1000,ROW('كشف الحساب'!$B$4:$H$1000)-3))),ROW($A14)),MATCH('استخراج كشف حساب عميل'!C$5,'كشف الحساب'!$B$3:$G$3,0)),\"\")","v":""},{"$f":"IFERROR(INDEX('كشف الحساب'!$B$4:$H$1000,SMALL(IF('استخراج كشف حساب عميل'!$E$3<='كشف الحساب'!$B$4:$B$1000,IF('استخراج كشف حساب عميل'!$E$4>='كشف الحساب'!$B$4:$B$1000,IF('استخراج كشف حساب عميل'!$C$3='كشف الحساب'!$C$4:$C$1000,ROW('كشف الحساب'!$B$4:$H$1000)-3))),ROW($A14)),MATCH('استخراج كشف حساب عميل'!D$5,'كشف الحساب'!$B$3:$G$3,0)),\"\")","v":""},{"$f":"IFERROR(INDEX('كشف الحساب'!$B$4:$H$1000,SMALL(IF('استخراج كشف حساب عميل'!$E$3<='كشف الحساب'!$B$4:$B$1000,IF('استخراج كشف حساب عميل'!$E$4>='كشف الحساب'!$B$4:$B$1000,IF('استخراج كشف حساب عميل'!$C$3='كشف الحساب'!$C$4:$C$1000,ROW('كشف الحساب'!$B$4:$H$1000)-3))),ROW($A14)),MATCH('استخراج كشف حساب عميل'!E$5,'كشف الحساب'!$B$3:$G$3,0)),\"\")","v":""}]
["",{"$f":"IFERROR(INDEX('كشف الحساب'!$B$4:$H$1000,SMALL(IF('استخراج كشف حساب عميل'!$E$3<='كشف الحساب'!$B$4:$B$1000,IF('استخراج كشف حساب عميل'!$E$4>='كشف الحساب'!$B$4:$B$1000,IF('استخراج كشف حساب عميل'!$C$3='كشف الحساب'!$C$4:$C$1000,ROW('كشف الحساب'!$B$4:$H$1000)-3))),ROW($A15)),MATCH('استخراج كشف حساب عميل'!B$5,'كشف الحساب'!$B$3:$G$3,0)),\"\")","v":""},{"$f":"IFERROR(INDEX('كشف الحساب'!$B$4:$H$1000,SMALL(IF('استخراج كشف حساب عميل'!$E$3<='كشف الحساب'!$B$4:$B$1000,IF('استخراج كشف حساب عميل'!$E$4>='كشف الحساب'!$B$4:$B$1000,IF('استخراج كشف حساب عميل'!$C$3='كشف الحساب'!$C$4:$C$1000,ROW('كشف الحساب'!$B$4:$H$1000)-3))),ROW($A15)),MATCH('استخراج كشف حساب عميل'!C$5,'كشف الحساب'!$B$3:$G$3,0)),\"\")","v":""},{"$f":"IFERROR(INDEX('كشف الحساب'!$B$4:$H$1000,SMALL(IF('استخراج كشف حساب عميل'!$E$3<='كشف الحساب'!$B$4:$B$1000,IF('استخراج كشف حساب عميل'!$E$4>='كشف الحساب'!$B$4:$B$1000,IF('استخراج كشف حساب عميل'!$C$3='كشف الحساب'!$C$4:$C$1000,ROW('كشف الحساب'!$B$4:$H$1000)-3))),ROW($A15)),MATCH('استخراج كشف حساب عميل'!D$5,'كشف الحساب'!$B$3:$G$3,0)),\"\")","v":""},{"$f":"IFERROR(INDEX('كشف الحساب'!$B$4:$H$1000,SMALL(IF('استخراج كشف حساب عميل'!$E$3<='كشف الحساب'!$B$4:$B$1000,IF('استخراج كشف حساب عميل'!$E$4>='كشف الحساب'!$B$4:$B$1000,IF('استخراج كشف حساب عميل'!$C$3='كشف الحساب'!$C$4:$C$1000,ROW('كشف الحساب'!$B$4:$H$1000)-3))),ROW($A15)),MATCH('استخراج كشف حساب عميل'!E$5,'كشف الحساب'!$B$3:$G$3,0)),\"\")","v":""}]
["",{"$f":"IFERROR(INDEX('كشف الحساب'!$B$4:$H$1000,SMALL(IF('استخراج كشف حساب عميل'!$E$3<='كشف الحساب'!$B$4:$B$1000,IF('استخراج كشف حساب عميل'!$E$4>='كشف الحساب'!$B$4:$B$1000,IF('استخراج كشف حساب عميل'!$C$3='كشف الحساب'!$C$4:$C$1000,ROW('كشف الحساب'!$B$4:$H$1000)-3))),ROW($A16)),MATCH('استخراج كشف حساب عميل'!B$5,'كشف الحساب'!$B$3:$G$3,0)),\"\")","v":""},{"$f":"IFERROR(INDEX('كشف الحساب'!$B$4:$H$1000,SMALL(IF('استخراج كشف حساب عميل'!$E$3<='كشف الحساب'!$B$4:$B$1000,IF('استخراج كشف حساب عميل'!$E$4>='كشف الحساب'!$B$4:$B$1000,IF('استخراج كشف حساب عميل'!$C$3='كشف الحساب'!$C$4:$C$1000,ROW('كشف الحساب'!$B$4:$H$1000)-3))),ROW($A16)),MATCH('استخراج كشف حساب عميل'!C$5,'كشف الحساب'!$B$3:$G$3,0)),\"\")","v":""},{"$f":"IFERROR(INDEX('كشف الحساب'!$B$4:$H$1000,SMALL(IF('استخراج كشف حساب عميل'!$E$3<='كشف الحساب'!$B$4:$B$1000,IF('استخراج كشف حساب عميل'!$E$4>='كشف الحساب'!$B$4:$B$1000,IF('استخراج كشف حساب عميل'!$C$3='كشف الحساب'!$C$4:$C$1000,ROW('كشف الحساب'!$B$4:$H$1000)-3))),ROW($A16)),MATCH('استخراج كشف حساب عميل'!D$5,'كشف الحساب'!$B$3:$G$3,0)),\"\")","v":""},{"$f":"IFERROR(INDEX('كشف الحساب'!$B$4:$H$1000,SMALL(IF('استخراج كشف حساب عميل'!$E$3<='كشف الحساب'!$B$4:$B$1000,IF('استخراج كشف حساب عميل'!$E$4>='كشف الحساب'!$B$4:$B$1000,IF('استخراج كشف حساب عميل'!$C$3='كشف الحساب'!$C$4:$C$1000,ROW('كشف الحساب'!$B$4:$H$1000)-3))),ROW($A16)),MATCH('استخراج كشف حساب عميل'!E$5,'كشف الحساب'!$B$3:$G$3,0)),\"\")","v":""}]
["",{"$f":"IFERROR(INDEX('كشف الحساب'!$B$4:$H$1000,SMALL(IF('استخراج كشف حساب عميل'!$E$3<='كشف الحساب'!$B$4:$B$1000,IF('استخراج كشف حساب عميل'!$E$4>='كشف الحساب'!$B$4:$B$1000,IF('استخراج كشف حساب عميل'!$C$3='كشف الحساب'!$C$4:$C$1000,ROW('كشف الحساب'!$B$4:$H$1000)-3))),ROW($A17)),MATCH('استخراج كشف حساب عميل'!B$5,'كشف الحساب'!$B$3:$G$3,0)),\"\")","v":""},{"$f":"IFERROR(INDEX('كشف الحساب'!$B$4:$H$1000,SMALL(IF('استخراج كشف حساب عميل'!$E$3<='كشف الحساب'!$B$4:$B$1000,IF('استخراج كشف حساب عميل'!$E$4>='كشف الحساب'!$B$4:$B$1000,IF('استخراج كشف حساب عميل'!$C$3='كشف الحساب'!$C$4:$C$1000,ROW('كشف الحساب'!$B$4:$H$1000)-3))),ROW($A17)),MATCH('استخراج كشف حساب عميل'!C$5,'كشف الحساب'!$B$3:$G$3,0)),\"\")","v":""},{"$f":"IFERROR(INDEX('كشف الحساب'!$B$4:$H$1000,SMALL(IF('استخراج كشف حساب عميل'!$E$3<='كشف الحساب'!$B$4:$B$1000,IF('استخراج كشف حساب عميل'!$E$4>='كشف الحساب'!$B$4:$B$1000,IF('استخراج كشف حساب عميل'!$C$3='كشف الحساب'!$C$4:$C$1000,ROW('كشف الحساب'!$B$4:$H$1000)-3))),ROW($A17)),MATCH('استخراج كشف حساب عميل'!D$5,'كشف الحساب'!$B$3:$G$3,0)),\"\")","v":""},{"$f":"IFERROR(INDEX('كشف الحساب'!$B$4:$H$1000,SMALL(IF('استخراج كشف حساب عميل'!$E$3<='كشف الحساب'!$B$4:$B$1000,IF('استخراج كشف حساب عميل'!$E$4>='كشف الحساب'!$B$4:$B$1000,IF('استخراج كشف حساب عميل'!$C$3='كشف الحساب'!$C$4:$C$1000,ROW('كشف الحساب'!$B$4:$H$1000)-3))),ROW($A17)),MATCH('استخراج كشف حساب عميل'!E$5,'كشف الحساب'!$B$3:$G$3,0)),\"\")","v":""}]
["",{"$f":"IFERROR(INDEX('كشف الحساب'!$B$4:$H$1000,SMALL(IF('استخراج كشف حساب عميل'!$E$3<='كشف الحساب'!$B$4:$B$1000,IF('استخراج كشف حساب عميل'!$E$4>='كشف الحساب'!$B$4:$B$1000,IF('استخراج كشف حساب عميل'!$C$3='كشف الحساب'!$C$4:$C$1000,ROW('كشف الحساب'!$B$4:$H$1000)-3))),ROW($A18)),MATCH('استخراج كشف حساب عميل'!B$5,'كشف الحساب'!$B$3:$G$3,0)),\"\")","v":""},{"$f":"IFERROR(INDEX('كشف الحساب'!$B$4:$H$1000,SMALL(IF('استخراج كشف حساب عميل'!$E$3<='كشف الحساب'!$B$4:$B$1000,IF('استخراج كشف حساب عميل'!$E$4>='كشف الحساب'!$B$4:$B$1000,IF('استخراج كشف حساب عميل'!$C$3='كشف الحساب'!$C$4:$C$1000,ROW('كشف الحساب'!$B$4:$H$1000)-3))),ROW($A18)),MATCH('استخراج كشف حساب عميل'!C$5,'كشف الحساب'!$B$3:$G$3,0)),\"\")","v":""},{"$f":"IFERROR(INDEX('كشف الحساب'!$B$4:$H$1000,SMALL(IF('استخراج كشف حساب عميل'!$E$3<='كشف الحساب'!$B$4:$B$1000,IF('استخراج كشف حساب عميل'!$E$4>='كشف الحساب'!$B$4:$B$1000,IF('استخراج كشف حساب عميل'!$C$3='كشف الحساب'!$C$4:$C$1000,ROW('كشف الحساب'!$B$4:$H$1000)-3))),ROW($A18)),MATCH('استخراج كشف حساب عميل'!D$5,'كشف الحساب'!$B$3:$G$3,0)),\"\")","v":""},{"$f":"IFERROR(INDEX('كشف الحساب'!$B$4:$H$1000,SMALL(IF('استخراج كشف حساب عميل'!$E$3<='كشف الحساب'!$B$4:$B$1000,IF('استخراج كشف حساب عميل'!$E$4>='كشف الحساب'!$B$4:$B$1000,IF('استخراج كشف حساب عميل'!$C$3='كشف الحساب'!$C$4:$C$1000,ROW('كشف الحساب'!$B$4:$H$1000)-3))),ROW($A18)),MATCH('استخراج كشف حساب عميل'!E$5,'كشف الحساب'!$B$3:$G$3,0)),\"\")","v":""}]
["",{"$f":"IFERROR(INDEX('كشف الحساب'!$B$4:$H$1000,SMALL(IF('استخراج كشف حساب عميل'!$E$3<='كشف الحساب'!$B$4:$B$1000,IF('استخراج كشف حساب عميل'!$E$4>='كشف الحساب'!$B$4:$B$1000,IF('استخراج كشف حساب عميل'!$C$3='كشف الحساب'!$C$4:$C$1000,ROW('كشف الحساب'!$B$4:$H$1000)-3))),ROW($A19)),MATCH('استخراج كشف حساب عميل'!B$5,'كشف الحساب'!$B$3:$G$3,0)),\"\")","v":""},{"$f":"IFERROR(INDEX('كشف الحساب'!$B$4:$H$1000,SMALL(IF('استخراج كشف حساب عميل'!$E$3<='كشف الحساب'!$B$4:$B$1000,IF('استخراج كشف حساب عميل'!$E$4>='كشف الحساب'!$B$4:$B$1000,IF('استخراج كشف حساب عميل'!$C$3='كشف الحساب'!$C$4:$C$1000,ROW('كشف الحساب'!$B$4:$H$1000)-3))),ROW($A19)),MATCH('استخراج كشف حساب عميل'!C$5,'كشف الحساب'!$B$3:$G$3,0)),\"\")","v":""},{"$f":"IFERROR(INDEX('كشف الحساب'!$B$4:$H$1000,SMALL(IF('استخراج كشف حساب عميل'!$E$3<='كشف الحساب'!$B$4:$B$1000,IF('استخراج كشف حساب عميل'!$E$4>='كشف الحساب'!$B$4:$B$1000,IF('استخراج كشف حساب عميل'!$C$3='كشف الحساب'!$C$4:$C$1000,ROW('كشف الحساب'!$B$4:$H$1000)-3))),ROW($A19)),MATCH('استخراج كشف حساب عميل'!D$5,'كشف الحساب'!$B$3:$G$3,0)),\"\")","v":""},{"$f":"IFERROR(INDEX('كشف الحساب'!$B$4:$H$1000,SMALL(IF('استخراج كشف حساب عميل'!$E$3<='كشف الحساب'!$B$4:$B$1000,IF('استخراج كشف حساب عميل'!$E$4>='كشف الحساب'!$B$4:$B$1000,IF('استخراج كشف حساب عميل'!$C$3='كشف الحساب'!$C$4:$C$1000,ROW('كشف الحساب'!$B$4:$H$1000)-3))),ROW($A19)),MATCH('استخراج كشف حساب عميل'!E$5,'كشف الحساب'!$B$3:$G$3,0)),\"\")","v":""}]
["",{"$f":"IFERROR(INDEX('كشف الحساب'!$B$4:$H$1000,SMALL(IF('استخراج كشف حساب عميل'!$E$3<='كشف الحساب'!$B$4:$B$1000,IF('استخراج كشف حساب عميل'!$E$4>='كشف الحساب'!$B$4:$B$1000,IF('استخراج كشف حساب عميل'!$C$3='كشف الحساب'!$C$4:$C$1000,ROW('كشف الحساب'!$B$4:$H$1000)-3))),ROW($A20)),MATCH('استخراج كشف حساب عميل'!B$5,'كشف الحساب'!$B$3:$G$3,0)),\"\")","v":""},{"$f":"IFERROR(INDEX('كشف الحساب'!$B$4:$H$1000,SMALL(IF('استخراج كشف حساب عميل'!$E$3<='كشف الحساب'!$B$4:$B$1000,IF('استخراج كشف حساب عميل'!$E$4>='كشف الحساب'!$B$4:$B$1000,IF('استخراج كشف حساب عميل'!$C$3='كشف الحساب'!$C$4:$C$1000,ROW('كشف الحساب'!$B$4:$H$1000)-3))),ROW($A20)),MATCH('استخراج كشف حساب عميل'!C$5,'كشف الحساب'!$B$3:$G$3,0)),\"\")","v":""},{"$f":"IFERROR(INDEX('كشف الحساب'!$B$4:$H$1000,SMALL(IF('استخراج كشف حساب عميل'!$E$3<='كشف الحساب'!$B$4:$B$1000,IF('استخراج كشف حساب عميل'!$E$4>='كشف الحساب'!$B$4:$B$1000,IF('استخراج كشف حساب عميل'!$C$3='كشف الحساب'!$C$4:$C$1000,ROW('كشف الحساب'!$B$4:$H$1000)-3))),ROW($A20)),MATCH('استخراج كشف حساب عميل'!D$5,'كشف الحساب'!$B$3:$G$3,0)),\"\")","v":""},{"$f":"IFERROR(INDEX('كشف الحساب'!$B$4:$H$1000,SMALL(IF('استخراج كشف حساب عميل'!$E$3<='كشف الحساب'!$B$4:$B$1000,IF('استخراج كشف حساب عميل'!$E$4>='كشف الحساب'!$B$4:$B$1000,IF('استخراج كشف حساب عميل'!$C$3='كشف الحساب'!$C$4:$C$1000,ROW('كشف الحساب'!$B$4:$H$1000)-3))),ROW($A20)),MATCH('استخراج كشف حساب عميل'!E$5,'كشف الحساب'!$B$3:$G$3,0)),\"\")","v":""}]
["",{"$f":"IFERROR(INDEX('كشف الحساب'!$B$4:$H$1000,SMALL(IF('استخراج كشف حساب عميل'!$E$3<='كشف الحساب'!$B$4:$B$1000,IF('استخراج كشف حساب عميل'!$E$4>='كشف الحساب'!$B$4:$B$1000,IF('استخراج كشف حساب عميل'!$C$3='كشف الحساب'!$C$4:$C$1000,ROW('كشف الحساب'!$B$4:$H$1000)-3))),ROW($A21)),MATCH('استخراج كشف حساب عميل'!B$5,'كشف الحساب'!$B$3:$G$3,0)),\"\")","v":""},{"$f":"IFERROR(INDEX('كشف الحساب'!$B$4:$H$1000,SMALL(IF('استخراج كشف حساب عميل'!$E$3<='كشف الحساب'!$B$4:$B$1000,IF('استخراج كشف حساب عميل'!$E$4>='كشف الحساب'!$B$4:$B$1000,IF('استخراج كشف حساب عميل'!$C$3='كشف الحساب'!$C$4:$C$1000,ROW('كشف الحساب'!$B$4:$H$1000)-3))),ROW($A21)),MATCH('استخراج كشف حساب عميل'!C$5,'كشف الحساب'!$B$3:$G$3,0)),\"\")","v":""},{"$f":"IFERROR(INDEX('كشف الحساب'!$B$4:$H$1000,SMALL(IF('استخراج كشف حساب عميل'!$E$3<='كشف الحساب'!$B$4:$B$1000,IF('استخراج كشف حساب عميل'!$E$4>='كشف الحساب'!$B$4:$B$1000,IF('استخراج كشف حساب عميل'!$C$3='كشف الحساب'!$C$4:$C$1000,ROW('كشف الحساب'!$B$4:$H$1000)-3))),ROW($A21)),MATCH('استخراج كشف حساب عميل'!D$5,'كشف الحساب'!$B$3:$G$3,0)),\"\")","v":""},{"$f":"IFERROR(INDEX('كشف الحساب'!$B$4:$H$1000,SMALL(IF('استخراج كشف حساب عميل'!$E$3<='كشف الحساب'!$B$4:$B$1000,IF('استخراج كشف حساب عميل'!$E$4>='كشف الحساب'!$B$4:$B$1000,IF('استخراج كشف حساب عميل'!$C$3='كشف الحساب'!$C$4:$C$1000,ROW('كشف الحساب'!$B$4:$H$1000)-3))),ROW($A21)),MATCH('استخراج كشف حساب عميل'!E$5,'كشف الحساب'!$B$3:$G$3,0)),\"\")","v":""}]
["",{"$f":"IFERROR(INDEX('كشف الحساب'!$B$4:$H$1000,SMALL(IF('استخراج كشف حساب عميل'!$E$3<='كشف الحساب'!$B$4:$B$1000,IF('استخراج كشف حساب عميل'!$E$4>='كشف الحساب'!$B$4:$B$1000,IF('استخراج كشف حساب عميل'!$C$3='كشف الحساب'!$C$4:$C$1000,ROW('كشف الحساب'!$B$4:$H$1000)-3))),ROW($A22)),MATCH('استخراج كشف حساب عميل'!B$5,'كشف الحساب'!$B$3:$G$3,0)),\"\")","v":""},{"$f":"IFERROR(INDEX('كشف الحساب'!$B$4:$H$1000,SMALL(IF('استخراج كشف حساب عميل'!$E$3<='كشف الحساب'!$B$4:$B$1000,IF('استخراج كشف حساب عميل'!$E$4>='كشف الحساب'!$B$4:$B$1000,IF('استخراج كشف حساب عميل'!$C$3='كشف الحساب'!$C$4:$C$1000,ROW('كشف الحساب'!$B$4:$H$1000)-3))),ROW($A22)),MATCH('استخراج كشف حساب عميل'!C$5,'كشف الحساب'!$B$3:$G$3,0)),\"\")","v":""},{"$f":"IFERROR(INDEX('كشف الحساب'!$B$4:$H$1000,SMALL(IF('استخراج كشف حساب عميل'!$E$3<='كشف الحساب'!$B$4:$B$1000,IF('استخراج كشف حساب عميل'!$E$4>='كشف الحساب'!$B$4:$B$1000,IF('استخراج كشف حساب عميل'!$C$3='كشف الحساب'!$C$4:$C$1000,ROW('كشف الحساب'!$B$4:$H$1000)-3))),ROW($A22)),MATCH('استخراج كشف حساب عميل'!D$5,'كشف الحساب'!$B$3:$G$3,0)),\"\")","v":""},{"$f":"IFERROR(INDEX('كشف الحساب'!$B$4:$H$1000,SMALL(IF('استخراج كشف حساب عميل'!$E$3<='كشف الحساب'!$B$4:$B$1000,IF('استخراج كشف حساب عميل'!$E$4>='كشف الحساب'!$B$4:$B$1000,IF('استخراج كشف حساب عميل'!$C$3='كشف الحساب'!$C$4:$C$1000,ROW('كشف الحساب'!$B$4:$H$1000)-3))),ROW($A22)),MATCH('استخراج كشف حساب عميل'!E$5,'كشف الحساب'!$B$3:$G$3,0)),\"\")","v":""}]
["",{"$f":"IFERROR(INDEX('كشف الحساب'!$B$4:$H$1000,SMALL(IF('استخراج كشف حساب عميل'!$E$3<='كشف الحساب'!$B$4:$B$1000,IF('استخراج كشف حساب عميل'!$E$4>='كشف الحساب'!$B$4:$B$1000,IF('استخراج كشف حساب عميل'!$C$3='كشف الحساب'!$C$4:$C$1000,ROW('كشف الحساب'!$B$4:$H$1000)-3))),ROW($A23)),MATCH('استخراج كشف حساب عميل'!B$5,'كشف الحساب'!$B$3:$G$3,0)),\"\")","v":""},{"$f":"IFERROR(INDEX('كشف الحساب'!$B$4:$H$1000,SMALL(IF('استخراج كشف حساب عميل'!$E$3<='كشف الحساب'!$B$4:$B$1000,IF('استخراج كشف حساب عميل'!$E$4>='كشف الحساب'!$B$4:$B$1000,IF('استخراج كشف حساب عميل'!$C$3='كشف الحساب'!$C$4:$C$1000,ROW('كشف الحساب'!$B$4:$H$1000)-3))),ROW($A23)),MATCH('استخراج كشف حساب عميل'!C$5,'كشف الحساب'!$B$3:$G$3,0)),\"\")","v":""},{"$f":"IFERROR(INDEX('كشف الحساب'!$B$4:$H$1000,SMALL(IF('استخراج كشف حساب عميل'!$E$3<='كشف الحساب'!$B$4:$B$1000,IF('استخراج كشف حساب عميل'!$E$4>='كشف الحساب'!$B$4:$B$1000,IF('استخراج كشف حساب عميل'!$C$3='كشف الحساب'!$C$4:$C$1000,ROW('كشف الحساب'!$B$4:$H$1000)-3))),ROW($A23)),MATCH('استخراج كشف حساب عميل'!D$5,'كشف الحساب'!$B$3:$G$3,0)),\"\")","v":""},{"$f":"IFERROR(INDEX('كشف الحساب'!$B$4:$H$1000,SMALL(IF('استخراج كشف حساب عميل'!$E$3<='كشف الحساب'!$B$4:$B$1000,IF('استخراج كشف حساب عميل'!$E$4>='كشف الحساب'!$B$4:$B$1000,IF('استخراج كشف حساب عميل'!$C$3='كشف الحساب'!$C$4:$C$1000,ROW('كشف الحساب'!$B$4:$H$1000)-3))),ROW($A23)),MATCH('استخراج كشف حساب عميل'!E$5,'كشف الحساب'!$B$3:$G$3,0)),\"\")","v":""}]
["",{"$f":"IFERROR(INDEX('كشف الحساب'!$B$4:$H$1000,SMALL(IF('استخراج كشف حساب عميل'!$E$3<='كشف الحساب'!$B$4:$B$1000,IF('استخراج كشف حساب عميل'!$E$4>='كشف الحساب'!$B$4:$B$1000,IF('استخراج كشف حساب عميل'!$C$3='كشف الحساب'!$C$4:$C$1000,ROW('كشف الحساب'!$B$4:$H$1000)-3))),ROW($A24)),MATCH('استخراج كشف حساب عميل'!B$5,'كشف الحساب'!$B$3:$G$3,0)),\"\")","v":""},{"$f":"IFERROR(INDEX('كشف الحساب'!$B$4:$H$1000,SMALL(IF('استخراج كشف حساب عميل'!$E$3<='كشف الحساب'!$B$4:$B$1000,IF('استخراج كشف حساب عميل'!$E$4>='كشف الحساب'!$B$4:$B$1000,IF('استخراج كشف حساب عميل'!$C$3='كشف الحساب'!$C$4:$C$1000,ROW('كشف الحساب'!$B$4:$H$1000)-3))),ROW($A24)),MATCH('استخراج كشف حساب عميل'!C$5,'كشف الحساب'!$B$3:$G$3,0)),\"\")","v":""},{"$f":"IFERROR(INDEX('كشف الحساب'!$B$4:$H$1000,SMALL(IF('استخراج كشف حساب عميل'!$E$3<='كشف الحساب'!$B$4:$B$1000,IF('استخراج كشف حساب عميل'!$E$4>='كشف الحساب'!$B$4:$B$1000,IF('استخراج كشف حساب عميل'!$C$3='كشف الحساب'!$C$4:$C$1000,ROW('كشف الحساب'!$B$4:$H$1000)-3))),ROW($A24)),MATCH('استخراج كشف حساب عميل'!D$5,'كشف الحساب'!$B$3:$G$3,0)),\"\")","v":""},{"$f":"IFERROR(INDEX('كشف الحساب'!$B$4:$H$1000,SMALL(IF('استخراج كشف حساب عميل'!$E$3<='كشف الحساب'!$B$4:$B$1000,IF('استخراج كشف حساب عميل'!$E$4>='كشف الحساب'!$B$4:$B$1000,IF('استخراج كشف حساب عميل'!$C$3='كشف الحساب'!$C$4:$C$1000,ROW('كشف الحساب'!$B$4:$H$1000)-3))),ROW($A24)),MATCH('استخراج كشف حساب عميل'!E$5,'كشف الحساب'!$B$3:$G$3,0)),\"\")","v":""}]
["",{"$f":"IFERROR(INDEX('كشف الحساب'!$B$4:$H$1000,SMALL(IF('استخراج كشف حساب عميل'!$E$3<='كشف الحساب'!$B$4:$B$1000,IF('استخراج كشف حساب عميل'!$E$4>='كشف الحساب'!$B$4:$B$1000,IF('استخراج كشف حساب عميل'!$C$3='كشف الحساب'!$C$4:$C$1000,ROW('كشف الحساب'!$B$4:$H$1000)-3))),ROW($A25)),MATCH('استخراج كشف حساب عميل'!B$5,'كشف الحساب'!$B$3:$G$3,0)),\"\")","v":""},{"$f":"IFERROR(INDEX('كشف الحساب'!$B$4:$H$1000,SMALL(IF('استخراج كشف حساب عميل'!$E$3<='كشف الحساب'!$B$4:$B$1000,IF('استخراج كشف حساب عميل'!$E$4>='كشف الحساب'!$B$4:$B$1000,IF('استخراج كشف حساب عميل'!$C$3='كشف الحساب'!$C$4:$C$1000,ROW('كشف الحساب'!$B$4:$H$1000)-3))),ROW($A25)),MATCH('استخراج كشف حساب عميل'!C$5,'كشف الحساب'!$B$3:$G$3,0)),\"\")","v":""},{"$f":"IFERROR(INDEX('كشف الحساب'!$B$4:$H$1000,SMALL(IF('استخراج كشف حساب عميل'!$E$3<='كشف الحساب'!$B$4:$B$1000,IF('استخراج كشف حساب عميل'!$E$4>='كشف الحساب'!$B$4:$B$1000,IF('استخراج كشف حساب عميل'!$C$3='كشف الحساب'!$C$4:$C$1000,ROW('كشف الحساب'!$B$4:$H$1000)-3))),ROW($A25)),MATCH('استخراج كشف حساب عميل'!D$5,'كشف الحساب'!$B$3:$G$3,0)),\"\")","v":""},{"$f":"IFERROR(INDEX('كشف الحساب'!$B$4:$H$1000,SMALL(IF('استخراج كشف حساب عميل'!$E$3<='كشف الحساب'!$B$4:$B$1000,IF('استخراج كشف حساب عميل'!$E$4>='كشف الحساب'!$B$4:$B$1000,IF('استخراج كشف حساب عميل'!$C$3='كشف الحساب'!$C$4:$C$1000,ROW('كشف الحساب'!$B$4:$H$1000)-3))),ROW($A25)),MATCH('استخراج كشف حساب عميل'!E$5,'كشف الحساب'!$B$3:$G$3,0)),\"\")","v":""}]
["",{"$f":"IFERROR(INDEX('كشف الحساب'!$B$4:$H$1000,SMALL(IF('استخراج كشف حساب عميل'!$E$3<='كشف الحساب'!$B$4:$B$1000,IF('استخراج كشف حساب عميل'!$E$4>='كشف الحساب'!$B$4:$B$1000,IF('استخراج كشف حساب عميل'!$C$3='كشف الحساب'!$C$4:$C$1000,ROW('كشف الحساب'!$B$4:$H$1000)-3))),ROW($A26)),MATCH('استخراج كشف حساب عميل'!B$5,'كشف الحساب'!$B$3:$G$3,0)),\"\")","v":""},{"$f":"IFERROR(INDEX('كشف الحساب'!$B$4:$H$1000,SMALL(IF('استخراج كشف حساب عميل'!$E$3<='كشف الحساب'!$B$4:$B$1000,IF('استخراج كشف حساب عميل'!$E$4>='كشف الحساب'!$B$4:$B$1000,IF('استخراج كشف حساب عميل'!$C$3='كشف الحساب'!$C$4:$C$1000,ROW('كشف الحساب'!$B$4:$H$1000)-3))),ROW($A26)),MATCH('استخراج كشف حساب عميل'!C$5,'كشف الحساب'!$B$3:$G$3,0)),\"\")","v":""},{"$f":"IFERROR(INDEX('كشف الحساب'!$B$4:$H$1000,SMALL(IF('استخراج كشف حساب عميل'!$E$3<='كشف الحساب'!$B$4:$B$1000,IF('استخراج كشف حساب عميل'!$E$4>='كشف الحساب'!$B$4:$B$1000,IF('استخراج كشف حساب عميل'!$C$3='كشف الحساب'!$C$4:$C$1000,ROW('كشف الحساب'!$B$4:$H$1000)-3))),ROW($A26)),MATCH('استخراج كشف حساب عميل'!D$5,'كشف الحساب'!$B$3:$G$3,0)),\"\")","v":""},{"$f":"IFERROR(INDEX('كشف الحساب'!$B$4:$H$1000,SMALL(IF('استخراج كشف حساب عميل'!$E$3<='كشف الحساب'!$B$4:$B$1000,IF('استخراج كشف حساب عميل'!$E$4>='كشف الحساب'!$B$4:$B$1000,IF('استخراج كشف حساب عميل'!$C$3='كشف الحساب'!$C$4:$C$1000,ROW('كشف الحساب'!$B$4:$H$1000)-3))),ROW($A26)),MATCH('استخراج كشف حساب عميل'!E$5,'كشف الحساب'!$B$3:$G$3,0)),\"\")","v":""}]
["",{"$f":"IFERROR(INDEX('كشف الحساب'!$B$4:$H$1000,SMALL(IF('استخراج كشف حساب عميل'!$E$3<='كشف الحساب'!$B$4:$B$1000,IF('استخراج كشف حساب عميل'!$E$4>='كشف الحساب'!$B$4:$B$1000,IF('استخراج كشف حساب عميل'!$C$3='كشف الحساب'!$C$4:$C$1000,ROW('كشف الحساب'!$B$4:$H$1000)-3))),ROW($A27)),MATCH('استخراج كشف حساب عميل'!B$5,'كشف الحساب'!$B$3:$G$3,0)),\"\")","v":""},{"$f":"IFERROR(INDEX('كشف الحساب'!$B$4:$H$1000,SMALL(IF('استخراج كشف حساب عميل'!$E$3<='كشف الحساب'!$B$4:$B$1000,IF('استخراج كشف حساب عميل'!$E$4>='كشف الحساب'!$B$4:$B$1000,IF('استخراج كشف حساب عميل'!$C$3='كشف الحساب'!$C$4:$C$1000,ROW('كشف الحساب'!$B$4:$H$1000)-3))),ROW($A27)),MATCH('استخراج كشف حساب عميل'!C$5,'كشف الحساب'!$B$3:$G$3,0)),\"\")","v":""},{"$f":"IFERROR(INDEX('كشف الحساب'!$B$4:$H$1000,SMALL(IF('استخراج كشف حساب عميل'!$E$3<='كشف الحساب'!$B$4:$B$1000,IF('استخراج كشف حساب عميل'!$E$4>='كشف الحساب'!$B$4:$B$1000,IF('استخراج كشف حساب عميل'!$C$3='كشف الحساب'!$C$4:$C$1000,ROW('كشف الحساب'!$B$4:$H$1000)-3))),ROW($A27)),MATCH('استخراج كشف حساب عميل'!D$5,'كشف الحساب'!$B$3:$G$3,0)),\"\")","v":""},{"$f":"IFERROR(INDEX('كشف الحساب'!$B$4:$H$1000,SMALL(IF('استخراج كشف حساب عميل'!$E$3<='كشف الحساب'!$B$4:$B$1000,IF('استخراج كشف حساب عميل'!$E$4>='كشف الحساب'!$B$4:$B$1000,IF('استخراج كشف حساب عميل'!$C$3='كشف الحساب'!$C$4:$C$1000,ROW('كشف الحساب'!$B$4:$H$1000)-3))),ROW($A27)),MATCH('استخراج كشف حساب عميل'!E$5,'كشف الحساب'!$B$3:$G$3,0)),\"\")","v":""}]
["",{"$f":"IFERROR(INDEX('كشف الحساب'!$B$4:$H$1000,SMALL(IF('استخراج كشف حساب عميل'!$E$3<='كشف الحساب'!$B$4:$B$1000,IF('استخراج كشف حساب عميل'!$E$4>='كشف الحساب'!$B$4:$B$1000,IF('استخراج كشف حساب عميل'!$C$3='كشف الحساب'!$C$4:$C$1000,ROW('كشف الحساب'!$B$4:$H$1000)-3))),ROW($A28)),MATCH('استخراج كشف حساب عميل'!B$5,'كشف الحساب'!$B$3:$G$3,0)),\"\")","v":""},{"$f":"IFERROR(INDEX('كشف الحساب'!$B$4:$H$1000,SMALL(IF('استخراج كشف حساب عميل'!$E$3<='كشف الحساب'!$B$4:$B$1000,IF('استخراج كشف حساب عميل'!$E$4>='كشف الحساب'!$B$4:$B$1000,IF('استخراج كشف حساب عميل'!$C$3='كشف الحساب'!$C$4:$C$1000,ROW('كشف الحساب'!$B$4:$H$1000)-3))),ROW($A28)),MATCH('استخراج كشف حساب عميل'!C$5,'كشف الحساب'!$B$3:$G$3,0)),\"\")","v":""},{"$f":"IFERROR(INDEX('كشف الحساب'!$B$4:$H$1000,SMALL(IF('استخراج كشف حساب عميل'!$E$3<='كشف الحساب'!$B$4:$B$1000,IF('استخراج كشف حساب عميل'!$E$4>='كشف الحساب'!$B$4:$B$1000,IF('استخراج كشف حساب عميل'!$C$3='كشف الحساب'!$C$4:$C$1000,ROW('كشف الحساب'!$B$4:$H$1000)-3))),ROW($A28)),MATCH('استخراج كشف حساب عميل'!D$5,'كشف الحساب'!$B$3:$G$3,0)),\"\")","v":""},{"$f":"IFERROR(INDEX('كشف الحساب'!$B$4:$H$1000,SMALL(IF('استخراج كشف حساب عميل'!$E$3<='كشف الحساب'!$B$4:$B$1000,IF('استخراج كشف حساب عميل'!$E$4>='كشف الحساب'!$B$4:$B$1000,IF('استخراج كشف حساب عميل'!$C$3='كشف الحساب'!$C$4:$C$1000,ROW('كشف الحساب'!$B$4:$H$1000)-3))),ROW($A28)),MATCH('استخراج كشف حساب عميل'!E$5,'كشف الحساب'!$B$3:$G$3,0)),\"\")","v":""}]
["",{"$f":"IFERROR(INDEX('كشف الحساب'!$B$4:$H$1000,SMALL(IF('استخراج كشف حساب عميل'!$E$3<='كشف الحساب'!$B$4:$B$1000,IF('استخراج كشف حساب عميل'!$E$4>='كشف الحساب'!$B$4:$B$1000,IF('استخراج كشف حساب عميل'!$C$3='كشف الحساب'!$C$4:$C$1000,ROW('كشف الحساب'!$B$4:$H$1000)-3))),ROW($A29)),MATCH('استخراج كشف حساب عميل'!B$5,'كشف الحساب'!$B$3:$G$3,0)),\"\")","v":""},{"$f":"IFERROR(INDEX('كشف الحساب'!$B$4:$H$1000,SMALL(IF('استخراج كشف حساب عميل'!$E$3<='كشف الحساب'!$B$4:$B$1000,IF('استخراج كشف حساب عميل'!$E$4>='كشف الحساب'!$B$4:$B$1000,IF('استخراج كشف حساب عميل'!$C$3='كشف الحساب'!$C$4:$C$1000,ROW('كشف الحساب'!$B$4:$H$1000)-3))),ROW($A29)),MATCH('استخراج كشف حساب عميل'!C$5,'كشف الحساب'!$B$3:$G$3,0)),\"\")","v":""},{"$f":"IFERROR(INDEX('كشف الحساب'!$B$4:$H$1000,SMALL(IF('استخراج كشف حساب عميل'!$E$3<='كشف الحساب'!$B$4:$B$1000,IF('استخراج كشف حساب عميل'!$E$4>='كشف الحساب'!$B$4:$B$1000,IF('استخراج كشف حساب عميل'!$C$3='كشف الحساب'!$C$4:$C$1000,ROW('كشف الحساب'!$B$4:$H$1000)-3))),ROW($A29)),MATCH('استخراج كشف حساب عميل'!D$5,'كشف الحساب'!$B$3:$G$3,0)),\"\")","v":""},{"$f":"IFERROR(INDEX('كشف الحساب'!$B$4:$H$1000,SMALL(IF('استخراج كشف حساب عميل'!$E$3<='كشف الحساب'!$B$4:$B$1000,IF('استخراج كشف حساب عميل'!$E$4>='كشف الحساب'!$B$4:$B$1000,IF('استخراج كشف حساب عميل'!$C$3='كشف الحساب'!$C$4:$C$1000,ROW('كشف الحساب'!$B$4:$H$1000)-3))),ROW($A29)),MATCH('استخراج كشف حساب عميل'!E$5,'كشف الحساب'!$B$3:$G$3,0)),\"\")","v":""}]
["",{"$f":"IFERROR(INDEX('كشف الحساب'!$B$4:$H$1000,SMALL(IF('استخراج كشف حساب عميل'!$E$3<='كشف الحساب'!$B$4:$B$1000,IF('استخراج كشف حساب عميل'!$E$4>='كشف الحساب'!$B$4:$B$1000,IF('استخراج كشف حساب عميل'!$C$3='كشف الحساب'!$C$4:$C$1000,ROW('كشف الحساب'!$B$4:$H$1000)-3))),ROW($A30)),MATCH('استخراج كشف حساب عميل'!B$5,'كشف الحساب'!$B$3:$G$3,0)),\"\")","v":""},{"$f":"IFERROR(INDEX('كشف الحساب'!$B$4:$H$1000,SMALL(IF('استخراج كشف حساب عميل'!$E$3<='كشف الحساب'!$B$4:$B$1000,IF('استخراج كشف حساب عميل'!$E$4>='كشف الحساب'!$B$4:$B$1000,IF('استخراج كشف حساب عميل'!$C$3='كشف الحساب'!$C$4:$C$1000,ROW('كشف الحساب'!$B$4:$H$1000)-3))),ROW($A30)),MATCH('استخراج كشف حساب عميل'!C$5,'كشف الحساب'!$B$3:$G$3,0)),\"\")","v":""},{"$f":"IFERROR(INDEX('كشف الحساب'!$B$4:$H$1000,SMALL(IF('استخراج كشف حساب عميل'!$E$3<='كشف الحساب'!$B$4:$B$1000,IF('استخراج كشف حساب عميل'!$E$4>='كشف الحساب'!$B$4:$B$1000,IF('استخراج كشف حساب عميل'!$C$3='كشف الحساب'!$C$4:$C$1000,ROW('كشف الحساب'!$B$4:$H$1000)-3))),ROW($A30)),MATCH('استخراج كشف حساب عميل'!D$5,'كشف الحساب'!$B$3:$G$3,0)),\"\")","v":""},{"$f":"IFERROR(INDEX('كشف الحساب'!$B$4:$H$1000,SMALL(IF('استخراج كشف حساب عميل'!$E$3<='كشف الحساب'!$B$4:$B$1000,IF('استخراج كشف حساب عميل'!$E$4>='كشف الحساب'!$B$4:$B$1000,IF('استخراج كشف حساب عميل'!$C$3='كشف الحساب'!$C$4:$C$1000,ROW('كشف الحساب'!$B$4:$H$1000)-3))),ROW($A30)),MATCH('استخراج كشف حساب عميل'!E$5,'كشف الحساب'!$B$3:$G$3,0)),\"\")","v":""}]
["",{"$f":"IFERROR(INDEX('كشف الحساب'!$B$4:$H$1000,SMALL(IF('استخراج كشف حساب عميل'!$E$3<='كشف الحساب'!$B$4:$B$1000,IF('استخراج كشف حساب عميل'!$E$4>='كشف الحساب'!$B$4:$B$1000,IF('استخراج كشف حساب عميل'!$C$3='كشف الحساب'!$C$4:$C$1000,ROW('كشف الحساب'!$B$4:$H$1000)-3))),ROW($A31)),MATCH('استخراج كشف حساب عميل'!B$5,'كشف الحساب'!$B$3:$G$3,0)),\"\")","v":""},{"$f":"IFERROR(INDEX('كشف الحساب'!$B$4:$H$1000,SMALL(IF('استخراج كشف حساب عميل'!$E$3<='كشف الحساب'!$B$4:$B$1000,IF('استخراج كشف حساب عميل'!$E$4>='كشف الحساب'!$B$4:$B$1000,IF('استخراج كشف حساب عميل'!$C$3='كشف الحساب'!$C$4:$C$1000,ROW('كشف الحساب'!$B$4:$H$1000)-3))),ROW($A31)),MATCH('استخراج كشف حساب عميل'!C$5,'كشف الحساب'!$B$3:$G$3,0)),\"\")","v":""},{"$f":"IFERROR(INDEX('كشف الحساب'!$B$4:$H$1000,SMALL(IF('استخراج كشف حساب عميل'!$E$3<='كشف الحساب'!$B$4:$B$1000,IF('استخراج كشف حساب عميل'!$E$4>='كشف الحساب'!$B$4:$B$1000,IF('استخراج كشف حساب عميل'!$C$3='كشف الحساب'!$C$4:$C$1000,ROW('كشف الحساب'!$B$4:$H$1000)-3))),ROW($A31)),MATCH('استخراج كشف حساب عميل'!D$5,'كشف الحساب'!$B$3:$G$3,0)),\"\")","v":""},{"$f":"IFERROR(INDEX('كشف الحساب'!$B$4:$H$1000,SMALL(IF('استخراج كشف حساب عميل'!$E$3<='كشف الحساب'!$B$4:$B$1000,IF('استخراج كشف حساب عميل'!$E$4>='كشف الحساب'!$B$4:$B$1000,IF('استخراج كشف حساب عميل'!$C$3='كشف الحساب'!$C$4:$C$1000,ROW('كشف الحساب'!$B$4:$H$1000)-3))),ROW($A31)),MATCH('استخراج كشف حساب عميل'!E$5,'كشف الحساب'!$B$3:$G$3,0)),\"\")","v":""}]
["",{"$f":"IFERROR(INDEX('كشف الحساب'!$B$4:$H$1000,SMALL(IF('استخراج كشف حساب عميل'!$E$3<='كشف الحساب'!$B$4:$B$1000,IF('استخراج كشف حساب عميل'!$E$4>='كشف الحساب'!$B$4:$B$1000,IF('استخراج كشف حساب عميل'!$C$3='كشف الحساب'!$C$4:$C$1000,ROW('كشف الحساب'!$B$4:$H$1000)-3))),ROW($A32)),MATCH('استخراج كشف حساب عميل'!B$5,'كشف الحساب'!$B$3:$G$3,0)),\"\")","v":""},{"$f":"IFERROR(INDEX('كشف الحساب'!$B$4:$H$1000,SMALL(IF('استخراج كشف حساب عميل'!$E$3<='كشف الحساب'!$B$4:$B$1000,IF('استخراج كشف حساب عميل'!$E$4>='كشف الحساب'!$B$4:$B$1000,IF('استخراج كشف حساب عميل'!$C$3='كشف الحساب'!$C$4:$C$1000,ROW('كشف الحساب'!$B$4:$H$1000)-3))),ROW($A32)),MATCH('استخراج كشف حساب عميل'!C$5,'كشف الحساب'!$B$3:$G$3,0)),\"\")","v":""},{"$f":"IFERROR(INDEX('كشف الحساب'!$B$4:$H$1000,SMALL(IF('استخراج كشف حساب عميل'!$E$3<='كشف الحساب'!$B$4:$B$1000,IF('استخراج كشف حساب عميل'!$E$4>='كشف الحساب'!$B$4:$B$1000,IF('استخراج كشف حساب عميل'!$C$3='كشف الحساب'!$C$4:$C$1000,ROW('كشف الحساب'!$B$4:$H$1000)-3))),ROW($A32)),MATCH('استخراج كشف حساب عميل'!D$5,'كشف الحساب'!$B$3:$G$3,0)),\"\")","v":""},{"$f":"IFERROR(INDEX('كشف الحساب'!$B$4:$H$1000,SMALL(IF('استخراج كشف حساب عميل'!$E$3<='كشف الحساب'!$B$4:$B$1000,IF('استخراج كشف حساب عميل'!$E$4>='كشف الحساب'!$B$4:$B$1000,IF('استخراج كشف حساب عميل'!$C$3='كشف الحساب'!$C$4:$C$1000,ROW('كشف الحساب'!$B$4:$H$1000)-3))),ROW($A32)),MATCH('استخراج كشف حساب عميل'!E$5,'كشف الحساب'!$B$3:$G$3,0)),\"\")","v":""}]
["",{"$f":"IFERROR(INDEX('كشف الحساب'!$B$4:$H$1000,SMALL(IF('استخراج كشف حساب عميل'!$E$3<='كشف الحساب'!$B$4:$B$1000,IF('استخراج كشف حساب عميل'!$E$4>='كشف الحساب'!$B$4:$B$1000,IF('استخراج كشف حساب عميل'!$C$3='كشف الحساب'!$C$4:$C$1000,ROW('كشف الحساب'!$B$4:$H$1000)-3))),ROW($A33)),MATCH('استخراج كشف حساب عميل'!B$5,'كشف الحساب'!$B$3:$G$3,0)),\"\")","v":""},{"$f":"IFERROR(INDEX('كشف الحساب'!$B$4:$H$1000,SMALL(IF('استخراج كشف حساب عميل'!$E$3<='كشف الحساب'!$B$4:$B$1000,IF('استخراج كشف حساب عميل'!$E$4>='كشف الحساب'!$B$4:$B$1000,IF('استخراج كشف حساب عميل'!$C$3='كشف الحساب'!$C$4:$C$1000,ROW('كشف الحساب'!$B$4:$H$1000)-3))),ROW($A33)),MATCH('استخراج كشف حساب عميل'!C$5,'كشف الحساب'!$B$3:$G$3,0)),\"\")","v":""},{"$f":"IFERROR(INDEX('كشف الحساب'!$B$4:$H$1000,SMALL(IF('استخراج كشف حساب عميل'!$E$3<='كشف الحساب'!$B$4:$B$1000,IF('استخراج كشف حساب عميل'!$E$4>='كشف الحساب'!$B$4:$B$1000,IF('استخراج كشف حساب عميل'!$C$3='كشف الحساب'!$C$4:$C$1000,ROW('كشف الحساب'!$B$4:$H$1000)-3))),ROW($A33)),MATCH('استخراج كشف حساب عميل'!D$5,'كشف الحساب'!$B$3:$G$3,0)),\"\")","v":""},{"$f":"IFERROR(INDEX('كشف الحساب'!$B$4:$H$1000,SMALL(IF('استخراج كشف حساب عميل'!$E$3<='كشف الحساب'!$B$4:$B$1000,IF('استخراج كشف حساب عميل'!$E$4>='كشف الحساب'!$B$4:$B$1000,IF('استخراج كشف حساب عميل'!$C$3='كشف الحساب'!$C$4:$C$1000,ROW('كشف الحساب'!$B$4:$H$1000)-3))),ROW($A33)),MATCH('استخراج كشف حساب عميل'!E$5,'كشف الحساب'!$B$3:$G$3,0)),\"\")","v":""}]
["",{"$f":"IFERROR(INDEX('كشف الحساب'!$B$4:$H$1000,SMALL(IF('استخراج كشف حساب عميل'!$E$3<='كشف الحساب'!$B$4:$B$1000,IF('استخراج كشف حساب عميل'!$E$4>='كشف الحساب'!$B$4:$B$1000,IF('استخراج كشف حساب عميل'!$C$3='كشف الحساب'!$C$4:$C$1000,ROW('كشف الحساب'!$B$4:$H$1000)-3))),ROW($A34)),MATCH('استخراج كشف حساب عميل'!B$5,'كشف الحساب'!$B$3:$G$3,0)),\"\")","v":""},{"$f":"IFERROR(INDEX('كشف الحساب'!$B$4:$H$1000,SMALL(IF('استخراج كشف حساب عميل'!$E$3<='كشف الحساب'!$B$4:$B$1000,IF('استخراج كشف حساب عميل'!$E$4>='كشف الحساب'!$B$4:$B$1000,IF('استخراج كشف حساب عميل'!$C$3='كشف الحساب'!$C$4:$C$1000,ROW('كشف الحساب'!$B$4:$H$1000)-3))),ROW($A34)),MATCH('استخراج كشف حساب عميل'!C$5,'كشف الحساب'!$B$3:$G$3,0)),\"\")","v":""},{"$f":"IFERROR(INDEX('كشف الحساب'!$B$4:$H$1000,SMALL(IF('استخراج كشف حساب عميل'!$E$3<='كشف الحساب'!$B$4:$B$1000,IF('استخراج كشف حساب عميل'!$E$4>='كشف الحساب'!$B$4:$B$1000,IF('استخراج كشف حساب عميل'!$C$3='كشف الحساب'!$C$4:$C$1000,ROW('كشف الحساب'!$B$4:$H$1000)-3))),ROW($A34)),MATCH('استخراج كشف حساب عميل'!D$5,'كشف الحساب'!$B$3:$G$3,0)),\"\")","v":""},{"$f":"IFERROR(INDEX('كشف الحساب'!$B$4:$H$1000,SMALL(IF('استخراج كشف حساب عميل'!$E$3<='كشف الحساب'!$B$4:$B$1000,IF('استخراج كشف حساب عميل'!$E$4>='كشف الحساب'!$B$4:$B$1000,IF('استخراج كشف حساب عميل'!$C$3='كشف الحساب'!$C$4:$C$1000,ROW('كشف الحساب'!$B$4:$H$1000)-3))),ROW($A34)),MATCH('استخراج كشف حساب عميل'!E$5,'كشف الحساب'!$B$3:$G$3,0)),\"\")","v":""}]
["",{"$f":"IFERROR(INDEX('كشف الحساب'!$B$4:$H$1000,SMALL(IF('استخراج كشف حساب عميل'!$E$3<='كشف الحساب'!$B$4:$B$1000,IF('استخراج كشف حساب عميل'!$E$4>='كشف الحساب'!$B$4:$B$1000,IF('استخراج كشف حساب عميل'!$C$3='كشف الحساب'!$C$4:$C$1000,ROW('كشف الحساب'!$B$4:$H$1000)-3))),ROW($A35)),MATCH('استخراج كشف حساب عميل'!B$5,'كشف الحساب'!$B$3:$G$3,0)),\"\")","v":""},{"$f":"IFERROR(INDEX('كشف الحساب'!$B$4:$H$1000,SMALL(IF('استخراج كشف حساب عميل'!$E$3<='كشف الحساب'!$B$4:$B$1000,IF('استخراج كشف حساب عميل'!$E$4>='كشف الحساب'!$B$4:$B$1000,IF('استخراج كشف حساب عميل'!$C$3='كشف الحساب'!$C$4:$C$1000,ROW('كشف الحساب'!$B$4:$H$1000)-3))),ROW($A35)),MATCH('استخراج كشف حساب عميل'!C$5,'كشف الحساب'!$B$3:$G$3,0)),\"\")","v":""},{"$f":"IFERROR(INDEX('كشف الحساب'!$B$4:$H$1000,SMALL(IF('استخراج كشف حساب عميل'!$E$3<='كشف الحساب'!$B$4:$B$1000,IF('استخراج كشف حساب عميل'!$E$4>='كشف الحساب'!$B$4:$B$1000,IF('استخراج كشف حساب عميل'!$C$3='كشف الحساب'!$C$4:$C$1000,ROW('كشف الحساب'!$B$4:$H$1000)-3))),ROW($A35)),MATCH('استخراج كشف حساب عميل'!D$5,'كشف الحساب'!$B$3:$G$3,0)),\"\")","v":""},{"$f":"IFERROR(INDEX('كشف الحساب'!$B$4:$H$1000,SMALL(IF('استخراج كشف حساب عميل'!$E$3<='كشف الحساب'!$B$4:$B$1000,IF('استخراج كشف حساب عميل'!$E$4>='كشف الحساب'!$B$4:$B$1000,IF('استخراج كشف حساب عميل'!$C$3='كشف الحساب'!$C$4:$C$1000,ROW('كشف الحساب'!$B$4:$H$1000)-3))),ROW($A35)),MATCH('استخراج كشف حساب عميل'!E$5,'كشف الحساب'!$B$3:$G$3,0)),\"\")","v":""}]
["",{"$f":"IFERROR(INDEX('كشف الحساب'!$B$4:$H$1000,SMALL(IF('استخراج كشف حساب عميل'!$E$3<='كشف الحساب'!$B$4:$B$1000,IF('استخراج كشف حساب عميل'!$E$4>='كشف الحساب'!$B$4:$B$1000,IF('استخراج كشف حساب عميل'!$C$3='كشف الحساب'!$C$4:$C$1000,ROW('كشف الحساب'!$B$4:$H$1000)-3))),ROW($A36)),MATCH('استخراج كشف حساب عميل'!B$5,'كشف الحساب'!$B$3:$G$3,0)),\"\")","v":""},{"$f":"IFERROR(INDEX('كشف الحساب'!$B$4:$H$1000,SMALL(IF('استخراج كشف حساب عميل'!$E$3<='كشف الحساب'!$B$4:$B$1000,IF('استخراج كشف حساب عميل'!$E$4>='كشف الحساب'!$B$4:$B$1000,IF('استخراج كشف حساب عميل'!$C$3='كشف الحساب'!$C$4:$C$1000,ROW('كشف الحساب'!$B$4:$H$1000)-3))),ROW($A36)),MATCH('استخراج كشف حساب عميل'!C$5,'كشف الحساب'!$B$3:$G$3,0)),\"\")","v":""},{"$f":"IFERROR(INDEX('كشف الحساب'!$B$4:$H$1000,SMALL(IF('استخراج كشف حساب عميل'!$E$3<='كشف الحساب'!$B$4:$B$1000,IF('استخراج كشف حساب عميل'!$E$4>='كشف الحساب'!$B$4:$B$1000,IF('استخراج كشف حساب عميل'!$C$3='كشف الحساب'!$C$4:$C$1000,ROW('كشف الحساب'!$B$4:$H$1000)-3))),ROW($A36)),MATCH('استخراج كشف حساب عميل'!D$5,'كشف الحساب'!$B$3:$G$3,0)),\"\")","v":""},{"$f":"IFERROR(INDEX('كشف الحساب'!$B$4:$H$1000,SMALL(IF('استخراج كشف حساب عميل'!$E$3<='كشف الحساب'!$B$4:$B$1000,IF('استخراج كشف حساب عميل'!$E$4>='كشف الحساب'!$B$4:$B$1000,IF('استخراج كشف حساب عميل'!$C$3='كشف الحساب'!$C$4:$C$1000,ROW('كشف الحساب'!$B$4:$H$1000)-3))),ROW($A36)),MATCH('استخراج كشف حساب عميل'!E$5,'كشف الحساب'!$B$3:$G$3,0)),\"\")","v":""}]
["",{"$f":"IFERROR(INDEX('كشف الحساب'!$B$4:$H$1000,SMALL(IF('استخراج كشف حساب عميل'!$E$3<='كشف الحساب'!$B$4:$B$1000,IF('استخراج كشف حساب عميل'!$E$4>='كشف الحساب'!$B$4:$B$1000,IF('استخراج كشف حساب عميل'!$C$3='كشف الحساب'!$C$4:$C$1000,ROW('كشف الحساب'!$B$4:$H$1000)-3))),ROW($A37)),MATCH('استخراج كشف حساب عميل'!B$5,'كشف الحساب'!$B$3:$G$3,0)),\"\")","v":""},{"$f":"IFERROR(INDEX('كشف الحساب'!$B$4:$H$1000,SMALL(IF('استخراج كشف حساب عميل'!$E$3<='كشف الحساب'!$B$4:$B$1000,IF('استخراج كشف حساب عميل'!$E$4>='كشف الحساب'!$B$4:$B$1000,IF('استخراج كشف حساب عميل'!$C$3='كشف الحساب'!$C$4:$C$1000,ROW('كشف الحساب'!$B$4:$H$1000)-3))),ROW($A37)),MATCH('استخراج كشف حساب عميل'!C$5,'كشف الحساب'!$B$3:$G$3,0)),\"\")","v":""},{"$f":"IFERROR(INDEX('كشف الحساب'!$B$4:$H$1000,SMALL(IF('استخراج كشف حساب عميل'!$E$3<='كشف الحساب'!$B$4:$B$1000,IF('استخراج كشف حساب عميل'!$E$4>='كشف الحساب'!$B$4:$B$1000,IF('استخراج كشف حساب عميل'!$C$3='كشف الحساب'!$C$4:$C$1000,ROW('كشف الحساب'!$B$4:$H$1000)-3))),ROW($A37)),MATCH('استخراج كشف حساب عميل'!D$5,'كشف الحساب'!$B$3:$G$3,0)),\"\")","v":""},{"$f":"IFERROR(INDEX('كشف الحساب'!$B$4:$H$1000,SMALL(IF('استخراج كشف حساب عميل'!$E$3<='كشف الحساب'!$B$4:$B$1000,IF('استخراج كشف حساب عميل'!$E$4>='كشف الحساب'!$B$4:$B$1000,IF('استخراج كشف حساب عميل'!$C$3='كشف الحساب'!$C$4:$C$1000,ROW('كشف الحساب'!$B$4:$H$1000)-3))),ROW($A37)),MATCH('استخراج كشف حساب عميل'!E$5,'كشف الحساب'!$B$3:$G$3,0)),\"\")","v":""}]
["",{"$f":"IFERROR(INDEX('كشف الحساب'!$B$4:$H$1000,SMALL(IF('استخراج كشف حساب عميل'!$E$3<='كشف الحساب'!$B$4:$B$1000,IF('استخراج كشف حساب عميل'!$E$4>='كشف الحساب'!$B$4:$B$1000,IF('استخراج كشف حساب عميل'!$C$3='كشف الحساب'!$C$4:$C$1000,ROW('كشف الحساب'!$B$4:$H$1000)-3))),ROW($A38)),MATCH('استخراج كشف حساب عميل'!B$5,'كشف الحساب'!$B$3:$G$3,0)),\"\")","v":""},{"$f":"IFERROR(INDEX('كشف الحساب'!$B$4:$H$1000,SMALL(IF('استخراج كشف حساب عميل'!$E$3<='كشف الحساب'!$B$4:$B$1000,IF('استخراج كشف حساب عميل'!$E$4>='كشف الحساب'!$B$4:$B$1000,IF('استخراج كشف حساب عميل'!$C$3='كشف الحساب'!$C$4:$C$1000,ROW('كشف الحساب'!$B$4:$H$1000)-3))),ROW($A38)),MATCH('استخراج كشف حساب عميل'!C$5,'كشف الحساب'!$B$3:$G$3,0)),\"\")","v":""},{"$f":"IFERROR(INDEX('كشف الحساب'!$B$4:$H$1000,SMALL(IF('استخراج كشف حساب عميل'!$E$3<='كشف الحساب'!$B$4:$B$1000,IF('استخراج كشف حساب عميل'!$E$4>='كشف الحساب'!$B$4:$B$1000,IF('استخراج كشف حساب عميل'!$C$3='كشف الحساب'!$C$4:$C$1000,ROW('كشف الحساب'!$B$4:$H$1000)-3))),ROW($A38)),MATCH('استخراج كشف حساب عميل'!D$5,'كشف الحساب'!$B$3:$G$3,0)),\"\")","v":""},{"$f":"IFERROR(INDEX('كشف الحساب'!$B$4:$H$1000,SMALL(IF('استخراج كشف حساب عميل'!$E$3<='كشف الحساب'!$B$4:$B$1000,IF('استخراج كشف حساب عميل'!$E$4>='كشف الحساب'!$B$4:$B$1000,IF('استخراج كشف حساب عميل'!$C$3='كشف الحساب'!$C$4:$C$1000,ROW('كشف الحساب'!$B$4:$H$1000)-3))),ROW($A38)),MATCH('استخراج كشف حساب عميل'!E$5,'كشف الحساب'!$B$3:$G$3,0)),\"\")","v":""}]
["",{"$f":"IFERROR(INDEX('كشف الحساب'!$B$4:$H$1000,SMALL(IF('استخراج كشف حساب عميل'!$E$3<='كشف الحساب'!$B$4:$B$1000,IF('استخراج كشف حساب عميل'!$E$4>='كشف الحساب'!$B$4:$B$1000,IF('استخراج كشف حساب عميل'!$C$3='كشف الحساب'!$C$4:$C$1000,ROW('كشف الحساب'!$B$4:$H$1000)-3))),ROW($A39)),MATCH('استخراج كشف حساب عميل'!B$5,'كشف الحساب'!$B$3:$G$3,0)),\"\")","v":""},{"$f":"IFERROR(INDEX('كشف الحساب'!$B$4:$H$1000,SMALL(IF('استخراج كشف حساب عميل'!$E$3<='كشف الحساب'!$B$4:$B$1000,IF('استخراج كشف حساب عميل'!$E$4>='كشف الحساب'!$B$4:$B$1000,IF('استخراج كشف حساب عميل'!$C$3='كشف الحساب'!$C$4:$C$1000,ROW('كشف الحساب'!$B$4:$H$1000)-3))),ROW($A39)),MATCH('استخراج كشف حساب عميل'!C$5,'كشف الحساب'!$B$3:$G$3,0)),\"\")","v":""},{"$f":"IFERROR(INDEX('كشف الحساب'!$B$4:$H$1000,SMALL(IF('استخراج كشف حساب عميل'!$E$3<='كشف الحساب'!$B$4:$B$1000,IF('استخراج كشف حساب عميل'!$E$4>='كشف الحساب'!$B$4:$B$1000,IF('استخراج كشف حساب عميل'!$C$3='كشف الحساب'!$C$4:$C$1000,ROW('كشف الحساب'!$B$4:$H$1000)-3))),ROW($A39)),MATCH('استخراج كشف حساب عميل'!D$5,'كشف الحساب'!$B$3:$G$3,0)),\"\")","v":""},{"$f":"IFERROR(INDEX('كشف الحساب'!$B$4:$H$1000,SMALL(IF('استخراج كشف حساب عميل'!$E$3<='كشف الحساب'!$B$4:$B$1000,IF('استخراج كشف حساب عميل'!$E$4>='كشف الحساب'!$B$4:$B$1000,IF('استخراج كشف حساب عميل'!$C$3='كشف الحساب'!$C$4:$C$1000,ROW('كشف الحساب'!$B$4:$H$1000)-3))),ROW($A39)),MATCH('استخراج كشف حساب عميل'!E$5,'كشف الحساب'!$B$3:$G$3,0)),\"\")","v":""}]
["",{"$f":"IFERROR(INDEX('كشف الحساب'!$B$4:$H$1000,SMALL(IF('استخراج كشف حساب عميل'!$E$3<='كشف الحساب'!$B$4:$B$1000,IF('استخراج كشف حساب عميل'!$E$4>='كشف الحساب'!$B$4:$B$1000,IF('استخراج كشف حساب عميل'!$C$3='كشف الحساب'!$C$4:$C$1000,ROW('كشف الحساب'!$B$4:$H$1000)-3))),ROW($A40)),MATCH('استخراج كشف حساب عميل'!B$5,'كشف الحساب'!$B$3:$G$3,0)),\"\")","v":""},{"$f":"IFERROR(INDEX('كشف الحساب'!$B$4:$H$1000,SMALL(IF('استخراج كشف حساب عميل'!$E$3<='كشف الحساب'!$B$4:$B$1000,IF('استخراج كشف حساب عميل'!$E$4>='كشف الحساب'!$B$4:$B$1000,IF('استخراج كشف حساب عميل'!$C$3='كشف الحساب'!$C$4:$C$1000,ROW('كشف الحساب'!$B$4:$H$1000)-3))),ROW($A40)),MATCH('استخراج كشف حساب عميل'!C$5,'كشف الحساب'!$B$3:$G$3,0)),\"\")","v":""},{"$f":"IFERROR(INDEX('كشف الحساب'!$B$4:$H$1000,SMALL(IF('استخراج كشف حساب عميل'!$E$3<='كشف الحساب'!$B$4:$B$1000,IF('استخراج كشف حساب عميل'!$E$4>='كشف الحساب'!$B$4:$B$1000,IF('استخراج كشف حساب عميل'!$C$3='كشف الحساب'!$C$4:$C$1000,ROW('كشف الحساب'!$B$4:$H$1000)-3))),ROW($A40)),MATCH('استخراج كشف حساب عميل'!D$5,'كشف الحساب'!$B$3:$G$3,0)),\"\")","v":""},{"$f":"IFERROR(INDEX('كشف الحساب'!$B$4:$H$1000,SMALL(IF('استخراج كشف حساب عميل'!$E$3<='كشف الحساب'!$B$4:$B$1000,IF('استخراج كشف حساب عميل'!$E$4>='كشف الحساب'!$B$4:$B$1000,IF('استخراج كشف حساب عميل'!$C$3='كشف الحساب'!$C$4:$C$1000,ROW('كشف الحساب'!$B$4:$H$1000)-3))),ROW($A40)),MATCH('استخراج كشف حساب عميل'!E$5,'كشف الحساب'!$B$3:$G$3,0)),\"\")","v":""}]
["",{"$f":"IFERROR(INDEX('كشف الحساب'!$B$4:$H$1000,SMALL(IF('استخراج كشف حساب عميل'!$E$3<='كشف الحساب'!$B$4:$B$1000,IF('استخراج كشف حساب عميل'!$E$4>='كشف الحساب'!$B$4:$B$1000,IF('استخراج كشف حساب عميل'!$C$3='كشف الحساب'!$C$4:$C$1000,ROW('كشف الحساب'!$B$4:$H$1000)-3))),ROW($A41)),MATCH('استخراج كشف حساب عميل'!B$5,'كشف الحساب'!$B$3:$G$3,0)),\"\")","v":""},{"$f":"IFERROR(INDEX('كشف الحساب'!$B$4:$H$1000,SMALL(IF('استخراج كشف حساب عميل'!$E$3<='كشف الحساب'!$B$4:$B$1000,IF('استخراج كشف حساب عميل'!$E$4>='كشف الحساب'!$B$4:$B$1000,IF('استخراج كشف حساب عميل'!$C$3='كشف الحساب'!$C$4:$C$1000,ROW('كشف الحساب'!$B$4:$H$1000)-3))),ROW($A41)),MATCH('استخراج كشف حساب عميل'!C$5,'كشف الحساب'!$B$3:$G$3,0)),\"\")","v":""},{"$f":"IFERROR(INDEX('كشف الحساب'!$B$4:$H$1000,SMALL(IF('استخراج كشف حساب عميل'!$E$3<='كشف الحساب'!$B$4:$B$1000,IF('استخراج كشف حساب عميل'!$E$4>='كشف الحساب'!$B$4:$B$1000,IF('استخراج كشف حساب عميل'!$C$3='كشف الحساب'!$C$4:$C$1000,ROW('كشف الحساب'!$B$4:$H$1000)-3))),ROW($A41)),MATCH('استخراج كشف حساب عميل'!D$5,'كشف الحساب'!$B$3:$G$3,0)),\"\")","v":""},{"$f":"IFERROR(INDEX('كشف الحساب'!$B$4:$H$1000,SMALL(IF('استخراج كشف حساب عميل'!$E$3<='كشف الحساب'!$B$4:$B$1000,IF('استخراج كشف حساب عميل'!$E$4>='كشف الحساب'!$B$4:$B$1000,IF('استخراج كشف حساب عميل'!$C$3='كشف الحساب'!$C$4:$C$1000,ROW('كشف الحساب'!$B$4:$H$1000)-3))),ROW($A41)),MATCH('استخراج كشف حساب عميل'!E$5,'كشف الحساب'!$B$3:$G$3,0)),\"\")","v":""}]
["",{"$f":"IFERROR(INDEX('كشف الحساب'!$B$4:$H$1000,SMALL(IF('استخراج كشف حساب عميل'!$E$3<='كشف الحساب'!$B$4:$B$1000,IF('استخراج كشف حساب عميل'!$E$4>='كشف الحساب'!$B$4:$B$1000,IF('استخراج كشف حساب عميل'!$C$3='كشف الحساب'!$C$4:$C$1000,ROW('كشف الحساب'!$B$4:$H$1000)-3))),ROW($A42)),MATCH('استخراج كشف حساب عميل'!B$5,'كشف الحساب'!$B$3:$G$3,0)),\"\")","v":""},{"$f":"IFERROR(INDEX('كشف الحساب'!$B$4:$H$1000,SMALL(IF('استخراج كشف حساب عميل'!$E$3<='كشف الحساب'!$B$4:$B$1000,IF('استخراج كشف حساب عميل'!$E$4>='كشف الحساب'!$B$4:$B$1000,IF('استخراج كشف حساب عميل'!$C$3='كشف الحساب'!$C$4:$C$1000,ROW('كشف الحساب'!$B$4:$H$1000)-3))),ROW($A42)),MATCH('استخراج كشف حساب عميل'!C$5,'كشف الحساب'!$B$3:$G$3,0)),\"\")","v":""},{"$f":"IFERROR(INDEX('كشف الحساب'!$B$4:$H$1000,SMALL(IF('استخراج كشف حساب عميل'!$E$3<='كشف الحساب'!$B$4:$B$1000,IF('استخراج كشف حساب عميل'!$E$4>='كشف الحساب'!$B$4:$B$1000,IF('استخراج كشف حساب عميل'!$C$3='كشف الحساب'!$C$4:$C$1000,ROW('كشف الحساب'!$B$4:$H$1000)-3))),ROW($A42)),MATCH('استخراج كشف حساب عميل'!D$5,'كشف الحساب'!$B$3:$G$3,0)),\"\")","v":""},{"$f":"IFERROR(INDEX('كشف الحساب'!$B$4:$H$1000,SMALL(IF('استخراج كشف حساب عميل'!$E$3<='كشف الحساب'!$B$4:$B$1000,IF('استخراج كشف حساب عميل'!$E$4>='كشف الحساب'!$B$4:$B$1000,IF('استخراج كشف حساب عميل'!$C$3='كشف الحساب'!$C$4:$C$1000,ROW('كشف الحساب'!$B$4:$H$1000)-3))),ROW($A42)),MATCH('استخراج كشف حساب عميل'!E$5,'كشف الحساب'!$B$3:$G$3,0)),\"\")","v":""}]
["",{"$f":"IFERROR(INDEX('كشف الحساب'!$B$4:$H$1000,SMALL(IF('استخراج كشف حساب عميل'!$E$3<='كشف الحساب'!$B$4:$B$1000,IF('استخراج كشف حساب عميل'!$E$4>='كشف الحساب'!$B$4:$B$1000,IF('استخراج كشف حساب عميل'!$C$3='كشف الحساب'!$C$4:$C$1000,ROW('كشف الحساب'!$B$4:$H$1000)-3))),ROW($A43)),MATCH('استخراج كشف حساب عميل'!B$5,'كشف الحساب'!$B$3:$G$3,0)),\"\")","v":""},{"$f":"IFERROR(INDEX('كشف الحساب'!$B$4:$H$1000,SMALL(IF('استخراج كشف حساب عميل'!$E$3<='كشف الحساب'!$B$4:$B$1000,IF('استخراج كشف حساب عميل'!$E$4>='كشف الحساب'!$B$4:$B$1000,IF('استخراج كشف حساب عميل'!$C$3='كشف الحساب'!$C$4:$C$1000,ROW('كشف الحساب'!$B$4:$H$1000)-3))),ROW($A43)),MATCH('استخراج كشف حساب عميل'!C$5,'كشف الحساب'!$B$3:$G$3,0)),\"\")","v":""},{"$f":"IFERROR(INDEX('كشف الحساب'!$B$4:$H$1000,SMALL(IF('استخراج كشف حساب عميل'!$E$3<='كشف الحساب'!$B$4:$B$1000,IF('استخراج كشف حساب عميل'!$E$4>='كشف الحساب'!$B$4:$B$1000,IF('استخراج كشف حساب عميل'!$C$3='كشف الحساب'!$C$4:$C$1000,ROW('كشف الحساب'!$B$4:$H$1000)-3))),ROW($A43)),MATCH('استخراج كشف حساب عميل'!D$5,'كشف الحساب'!$B$3:$G$3,0)),\"\")","v":""},{"$f":"IFERROR(INDEX('كشف الحساب'!$B$4:$H$1000,SMALL(IF('استخراج كشف حساب عميل'!$E$3<='كشف الحساب'!$B$4:$B$1000,IF('استخراج كشف حساب عميل'!$E$4>='كشف الحساب'!$B$4:$B$1000,IF('استخراج كشف حساب عميل'!$C$3='كشف الحساب'!$C$4:$C$1000,ROW('كشف الحساب'!$B$4:$H$1000)-3))),ROW($A43)),MATCH('استخراج كشف حساب عميل'!E$5,'كشف الحساب'!$B$3:$G$3,0)),\"\")","v":""}]
["",{"$f":"IFERROR(INDEX('كشف الحساب'!$B$4:$H$1000,SMALL(IF('استخراج كشف حساب عميل'!$E$3<='كشف الحساب'!$B$4:$B$1000,IF('استخراج كشف حساب عميل'!$E$4>='كشف الحساب'!$B$4:$B$1000,IF('استخراج كشف حساب عميل'!$C$3='كشف الحساب'!$C$4:$C$1000,ROW('كشف الحساب'!$B$4:$H$1000)-3))),ROW($A44)),MATCH('استخراج كشف حساب عميل'!B$5,'كشف الحساب'!$B$3:$G$3,0)),\"\")","v":""},{"$f":"IFERROR(INDEX('كشف الحساب'!$B$4:$H$1000,SMALL(IF('استخراج كشف حساب عميل'!$E$3<='كشف الحساب'!$B$4:$B$1000,IF('استخراج كشف حساب عميل'!$E$4>='كشف الحساب'!$B$4:$B$1000,IF('استخراج كشف حساب عميل'!$C$3='كشف الحساب'!$C$4:$C$1000,ROW('كشف الحساب'!$B$4:$H$1000)-3))),ROW($A44)),MATCH('استخراج كشف حساب عميل'!C$5,'كشف الحساب'!$B$3:$G$3,0)),\"\")","v":""},{"$f":"IFERROR(INDEX('كشف الحساب'!$B$4:$H$1000,SMALL(IF('استخراج كشف حساب عميل'!$E$3<='كشف الحساب'!$B$4:$B$1000,IF('استخراج كشف حساب عميل'!$E$4>='كشف الحساب'!$B$4:$B$1000,IF('استخراج كشف حساب عميل'!$C$3='كشف الحساب'!$C$4:$C$1000,ROW('كشف الحساب'!$B$4:$H$1000)-3))),ROW($A44)),MATCH('استخراج كشف حساب عميل'!D$5,'كشف الحساب'!$B$3:$G$3,0)),\"\")","v":""},{"$f":"IFERROR(INDEX('كشف الحساب'!$B$4:$H$1000,SMALL(IF('استخراج كشف حساب عميل'!$E$3<='كشف الحساب'!$B$4:$B$1000,IF('استخراج كشف حساب عميل'!$E$4>='كشف الحساب'!$B$4:$B$1000,IF('استخراج كشف حساب عميل'!$C$3='كشف الحساب'!$C$4:$C$1000,ROW('كشف الحساب'!$B$4:$H$1000)-3))),ROW($A44)),MATCH('استخراج كشف حساب عميل'!E$5,'كشف الحساب'!$B$3:$G$3,0)),\"\")","v":""}]
["",{"$f":"IFERROR(INDEX('كشف الحساب'!$B$4:$H$1000,SMALL(IF('استخراج كشف حساب عميل'!$E$3<='كشف الحساب'!$B$4:$B$1000,IF('استخراج كشف حساب عميل'!$E$4>='كشف الحساب'!$B$4:$B$1000,IF('استخراج كشف حساب عميل'!$C$3='كشف الحساب'!$C$4:$C$1000,ROW('كشف الحساب'!$B$4:$H$1000)-3))),ROW($A45)),MATCH('استخراج كشف حساب عميل'!B$5,'كشف الحساب'!$B$3:$G$3,0)),\"\")","v":""},{"$f":"IFERROR(INDEX('كشف الحساب'!$B$4:$H$1000,SMALL(IF('استخراج كشف حساب عميل'!$E$3<='كشف الحساب'!$B$4:$B$1000,IF('استخراج كشف حساب عميل'!$E$4>='كشف الحساب'!$B$4:$B$1000,IF('استخراج كشف حساب عميل'!$C$3='كشف الحساب'!$C$4:$C$1000,ROW('كشف الحساب'!$B$4:$H$1000)-3))),ROW($A45)),MATCH('استخراج كشف حساب عميل'!C$5,'كشف الحساب'!$B$3:$G$3,0)),\"\")","v":""},{"$f":"IFERROR(INDEX('كشف الحساب'!$B$4:$H$1000,SMALL(IF('استخراج كشف حساب عميل'!$E$3<='كشف الحساب'!$B$4:$B$1000,IF('استخراج كشف حساب عميل'!$E$4>='كشف الحساب'!$B$4:$B$1000,IF('استخراج كشف حساب عميل'!$C$3='كشف الحساب'!$C$4:$C$1000,ROW('كشف الحساب'!$B$4:$H$1000)-3))),ROW($A45)),MATCH('استخراج كشف حساب عميل'!D$5,'كشف الحساب'!$B$3:$G$3,0)),\"\")","v":""},{"$f":"IFERROR(INDEX('كشف الحساب'!$B$4:$H$1000,SMALL(IF('استخراج كشف حساب عميل'!$E$3<='كشف الحساب'!$B$4:$B$1000,IF('استخراج كشف حساب عميل'!$E$4>='كشف الحساب'!$B$4:$B$1000,IF('استخراج كشف حساب عميل'!$C$3='كشف الحساب'!$C$4:$C$1000,ROW('كشف الحساب'!$B$4:$H$1000)-3))),ROW($A45)),MATCH('استخراج كشف حساب عميل'!E$5,'كشف الحساب'!$B$3:$G$3,0)),\"\")","v":""}]
["",{"$f":"IFERROR(INDEX('كشف الحساب'!$B$4:$H$1000,SMALL(IF('استخراج كشف حساب عميل'!$E$3<='كشف الحساب'!$B$4:$B$1000,IF('استخراج كشف حساب عميل'!$E$4>='كشف الحساب'!$B$4:$B$1000,IF('استخراج كشف حساب عميل'!$C$3='كشف الحساب'!$C$4:$C$1000,ROW('كشف الحساب'!$B$4:$H$1000)-3))),ROW($A46)),MATCH('استخراج كشف حساب عميل'!B$5,'كشف الحساب'!$B$3:$G$3,0)),\"\")","v":""},{"$f":"IFERROR(INDEX('كشف الحساب'!$B$4:$H$1000,SMALL(IF('استخراج كشف حساب عميل'!$E$3<='كشف الحساب'!$B$4:$B$1000,IF('استخراج كشف حساب عميل'!$E$4>='كشف الحساب'!$B$4:$B$1000,IF('استخراج كشف حساب عميل'!$C$3='كشف الحساب'!$C$4:$C$1000,ROW('كشف الحساب'!$B$4:$H$1000)-3))),ROW($A46)),MATCH('استخراج كشف حساب عميل'!C$5,'كشف الحساب'!$B$3:$G$3,0)),\"\")","v":""},{"$f":"IFERROR(INDEX('كشف الحساب'!$B$4:$H$1000,SMALL(IF('استخراج كشف حساب عميل'!$E$3<='كشف الحساب'!$B$4:$B$1000,IF('استخراج كشف حساب عميل'!$E$4>='كشف الحساب'!$B$4:$B$1000,IF('استخراج كشف حساب عميل'!$C$3='كشف الحساب'!$C$4:$C$1000,ROW('كشف الحساب'!$B$4:$H$1000)-3))),ROW($A46)),MATCH('استخراج كشف حساب عميل'!D$5,'كشف الحساب'!$B$3:$G$3,0)),\"\")","v":""},{"$f":"IFERROR(INDEX('كشف الحساب'!$B$4:$H$1000,SMALL(IF('استخراج كشف حساب عميل'!$E$3<='كشف الحساب'!$B$4:$B$1000,IF('استخراج كشف حساب عميل'!$E$4>='كشف الحساب'!$B$4:$B$1000,IF('استخراج كشف حساب عميل'!$C$3='كشف الحساب'!$C$4:$C$1000,ROW('كشف الحساب'!$B$4:$H$1000)-3))),ROW($A46)),MATCH('استخراج كشف حساب عميل'!E$5,'كشف الحساب'!$B$3:$G$3,0)),\"\")","v":""}]
["",{"$f":"IFERROR(INDEX('كشف الحساب'!$B$4:$H$1000,SMALL(IF('استخراج كشف حساب عميل'!$E$3<='كشف الحساب'!$B$4:$B$1000,IF('استخراج كشف حساب عميل'!$E$4>='كشف الحساب'!$B$4:$B$1000,IF('استخراج كشف حساب عميل'!$C$3='كشف الحساب'!$C$4:$C$1000,ROW('كشف الحساب'!$B$4:$H$1000)-3))),ROW($A47)),MATCH('استخراج كشف حساب عميل'!B$5,'كشف الحساب'!$B$3:$G$3,0)),\"\")","v":""},{"$f":"IFERROR(INDEX('كشف الحساب'!$B$4:$H$1000,SMALL(IF('استخراج كشف حساب عميل'!$E$3<='كشف الحساب'!$B$4:$B$1000,IF('استخراج كشف حساب عميل'!$E$4>='كشف الحساب'!$B$4:$B$1000,IF('استخراج كشف حساب عميل'!$C$3='كشف الحساب'!$C$4:$C$1000,ROW('كشف الحساب'!$B$4:$H$1000)-3))),ROW($A47)),MATCH('استخراج كشف حساب عميل'!C$5,'كشف الحساب'!$B$3:$G$3,0)),\"\")","v":""},{"$f":"IFERROR(INDEX('كشف الحساب'!$B$4:$H$1000,SMALL(IF('استخراج كشف حساب عميل'!$E$3<='كشف الحساب'!$B$4:$B$1000,IF('استخراج كشف حساب عميل'!$E$4>='كشف الحساب'!$B$4:$B$1000,IF('استخراج كشف حساب عميل'!$C$3='كشف الحساب'!$C$4:$C$1000,ROW('كشف الحساب'!$B$4:$H$1000)-3))),ROW($A47)),MATCH('استخراج كشف حساب عميل'!D$5,'كشف الحساب'!$B$3:$G$3,0)),\"\")","v":""},{"$f":"IFERROR(INDEX('كشف الحساب'!$B$4:$H$1000,SMALL(IF('استخراج كشف حساب عميل'!$E$3<='كشف الحساب'!$B$4:$B$1000,IF('استخراج كشف حساب عميل'!$E$4>='كشف الحساب'!$B$4:$B$1000,IF('استخراج كشف حساب عميل'!$C$3='كشف الحساب'!$C$4:$C$1000,ROW('كشف الحساب'!$B$4:$H$1000)-3))),ROW($A47)),MATCH('استخراج كشف حساب عميل'!E$5,'كشف الحساب'!$B$3:$G$3,0)),\"\")","v":""}]
["",{"$f":"IFERROR(INDEX('كشف الحساب'!$B$4:$H$1000,SMALL(IF('استخراج كشف حساب عميل'!$E$3<='كشف الحساب'!$B$4:$B$1000,IF('استخراج كشف حساب عميل'!$E$4>='كشف الحساب'!$B$4:$B$1000,IF('استخراج كشف حساب عميل'!$C$3='كشف الحساب'!$C$4:$C$1000,ROW('كشف الحساب'!$B$4:$H$1000)-3))),ROW($A48)),MATCH('استخراج كشف حساب عميل'!B$5,'كشف الحساب'!$B$3:$G$3,0)),\"\")","v":""},{"$f":"IFERROR(INDEX('كشف الحساب'!$B$4:$H$1000,SMALL(IF('استخراج كشف حساب عميل'!$E$3<='كشف الحساب'!$B$4:$B$1000,IF('استخراج كشف حساب عميل'!$E$4>='كشف الحساب'!$B$4:$B$1000,IF('استخراج كشف حساب عميل'!$C$3='كشف الحساب'!$C$4:$C$1000,ROW('كشف الحساب'!$B$4:$H$1000)-3))),ROW($A48)),MATCH('استخراج كشف حساب عميل'!C$5,'كشف الحساب'!$B$3:$G$3,0)),\"\")","v":""},{"$f":"IFERROR(INDEX('كشف الحساب'!$B$4:$H$1000,SMALL(IF('استخراج كشف حساب عميل'!$E$3<='كشف الحساب'!$B$4:$B$1000,IF('استخراج كشف حساب عميل'!$E$4>='كشف الحساب'!$B$4:$B$1000,IF('استخراج كشف حساب عميل'!$C$3='كشف الحساب'!$C$4:$C$1000,ROW('كشف الحساب'!$B$4:$H$1000)-3))),ROW($A48)),MATCH('استخراج كشف حساب عميل'!D$5,'كشف الحساب'!$B$3:$G$3,0)),\"\")","v":""},{"$f":"IFERROR(INDEX('كشف الحساب'!$B$4:$H$1000,SMALL(IF('استخراج كشف حساب عميل'!$E$3<='كشف الحساب'!$B$4:$B$1000,IF('استخراج كشف حساب عميل'!$E$4>='كشف الحساب'!$B$4:$B$1000,IF('استخراج كشف حساب عميل'!$C$3='كشف الحساب'!$C$4:$C$1000,ROW('كشف الحساب'!$B$4:$H$1000)-3))),ROW($A48)),MATCH('استخراج كشف حساب عميل'!E$5,'كشف الحساب'!$B$3:$G$3,0)),\"\")","v":""}]
["",{"$f":"IFERROR(INDEX('كشف الحساب'!$B$4:$H$1000,SMALL(IF('استخراج كشف حساب عميل'!$E$3<='كشف الحساب'!$B$4:$B$1000,IF('استخراج كشف حساب عميل'!$E$4>='كشف الحساب'!$B$4:$B$1000,IF('استخراج كشف حساب عميل'!$C$3='كشف الحساب'!$C$4:$C$1000,ROW('كشف الحساب'!$B$4:$H$1000)-3))),ROW($A49)),MATCH('استخراج كشف حساب عميل'!B$5,'كشف الحساب'!$B$3:$G$3,0)),\"\")","v":""},{"$f":"IFERROR(INDEX('كشف الحساب'!$B$4:$H$1000,SMALL(IF('استخراج كشف حساب عميل'!$E$3<='كشف الحساب'!$B$4:$B$1000,IF('استخراج كشف حساب عميل'!$E$4>='كشف الحساب'!$B$4:$B$1000,IF('استخراج كشف حساب عميل'!$C$3='كشف الحساب'!$C$4:$C$1000,ROW('كشف الحساب'!$B$4:$H$1000)-3))),ROW($A49)),MATCH('استخراج كشف حساب عميل'!C$5,'كشف الحساب'!$B$3:$G$3,0)),\"\")","v":""},{"$f":"IFERROR(INDEX('كشف الحساب'!$B$4:$H$1000,SMALL(IF('استخراج كشف حساب عميل'!$E$3<='كشف الحساب'!$B$4:$B$1000,IF('استخراج كشف حساب عميل'!$E$4>='كشف الحساب'!$B$4:$B$1000,IF('استخراج كشف حساب عميل'!$C$3='كشف الحساب'!$C$4:$C$1000,ROW('كشف الحساب'!$B$4:$H$1000)-3))),ROW($A49)),MATCH('استخراج كشف حساب عميل'!D$5,'كشف الحساب'!$B$3:$G$3,0)),\"\")","v":""},{"$f":"IFERROR(INDEX('كشف الحساب'!$B$4:$H$1000,SMALL(IF('استخراج كشف حساب عميل'!$E$3<='كشف الحساب'!$B$4:$B$1000,IF('استخراج كشف حساب عميل'!$E$4>='كشف الحساب'!$B$4:$B$1000,IF('استخراج كشف حساب عميل'!$C$3='كشف الحساب'!$C$4:$C$1000,ROW('كشف الحساب'!$B$4:$H$1000)-3))),ROW($A49)),MATCH('استخراج كشف حساب عميل'!E$5,'كشف الحساب'!$B$3:$G$3,0)),\"\")","v":""}]
["",{"$f":"IFERROR(INDEX('كشف الحساب'!$B$4:$H$1000,SMALL(IF('استخراج كشف حساب عميل'!$E$3<='كشف الحساب'!$B$4:$B$1000,IF('استخراج كشف حساب عميل'!$E$4>='كشف الحساب'!$B$4:$B$1000,IF('استخراج كشف حساب عميل'!$C$3='كشف الحساب'!$C$4:$C$1000,ROW('كشف الحساب'!$B$4:$H$1000)-3))),ROW($A50)),MATCH('استخراج كشف حساب عميل'!B$5,'كشف الحساب'!$B$3:$G$3,0)),\"\")","v":""},{"$f":"IFERROR(INDEX('كشف الحساب'!$B$4:$H$1000,SMALL(IF('استخراج كشف حساب عميل'!$E$3<='كشف الحساب'!$B$4:$B$1000,IF('استخراج كشف حساب عميل'!$E$4>='كشف الحساب'!$B$4:$B$1000,IF('استخراج كشف حساب عميل'!$C$3='كشف الحساب'!$C$4:$C$1000,ROW('كشف الحساب'!$B$4:$H$1000)-3))),ROW($A50)),MATCH('استخراج كشف حساب عميل'!C$5,'كشف الحساب'!$B$3:$G$3,0)),\"\")","v":""},{"$f":"IFERROR(INDEX('كشف الحساب'!$B$4:$H$1000,SMALL(IF('استخراج كشف حساب عميل'!$E$3<='كشف الحساب'!$B$4:$B$1000,IF('استخراج كشف حساب عميل'!$E$4>='كشف الحساب'!$B$4:$B$1000,IF('استخراج كشف حساب عميل'!$C$3='كشف الحساب'!$C$4:$C$1000,ROW('كشف الحساب'!$B$4:$H$1000)-3))),ROW($A50)),MATCH('استخراج كشف حساب عميل'!D$5,'كشف الحساب'!$B$3:$G$3,0)),\"\")","v":""},{"$f":"IFERROR(INDEX('كشف الحساب'!$B$4:$H$1000,SMALL(IF('استخراج كشف حساب عميل'!$E$3<='كشف الحساب'!$B$4:$B$1000,IF('استخراج كشف حساب عميل'!$E$4>='كشف الحساب'!$B$4:$B$1000,IF('استخراج كشف حساب عميل'!$C$3='كشف الحساب'!$C$4:$C$1000,ROW('كشف الحساب'!$B$4:$H$1000)-3))),ROW($A50)),MATCH('استخراج كشف حساب عميل'!E$5,'كشف الحساب'!$B$3:$G$3,0)),\"\")","v":""}]
["",{"$f":"IFERROR(INDEX('كشف الحساب'!$B$4:$H$1000,SMALL(IF('استخراج كشف حساب عميل'!$E$3<='كشف الحساب'!$B$4:$B$1000,IF('استخراج كشف حساب عميل'!$E$4>='كشف الحساب'!$B$4:$B$1000,IF('استخراج كشف حساب عميل'!$C$3='كشف الحساب'!$C$4:$C$1000,ROW('كشف الحساب'!$B$4:$H$1000)-3))),ROW($A51)),MATCH('استخراج كشف حساب عميل'!B$5,'كشف الحساب'!$B$3:$G$3,0)),\"\")","v":""},{"$f":"IFERROR(INDEX('كشف الحساب'!$B$4:$H$1000,SMALL(IF('استخراج كشف حساب عميل'!$E$3<='كشف الحساب'!$B$4:$B$1000,IF('استخراج كشف حساب عميل'!$E$4>='كشف الحساب'!$B$4:$B$1000,IF('استخراج كشف حساب عميل'!$C$3='كشف الحساب'!$C$4:$C$1000,ROW('كشف الحساب'!$B$4:$H$1000)-3))),ROW($A51)),MATCH('استخراج كشف حساب عميل'!C$5,'كشف الحساب'!$B$3:$G$3,0)),\"\")","v":""},{"$f":"IFERROR(INDEX('كشف الحساب'!$B$4:$H$1000,SMALL(IF('استخراج كشف حساب عميل'!$E$3<='كشف الحساب'!$B$4:$B$1000,IF('استخراج كشف حساب عميل'!$E$4>='كشف الحساب'!$B$4:$B$1000,IF('استخراج كشف حساب عميل'!$C$3='كشف الحساب'!$C$4:$C$1000,ROW('كشف الحساب'!$B$4:$H$1000)-3))),ROW($A51)),MATCH('استخراج كشف حساب عميل'!D$5,'كشف الحساب'!$B$3:$G$3,0)),\"\")","v":""},{"$f":"IFERROR(INDEX('كشف الحساب'!$B$4:$H$1000,SMALL(IF('استخراج كشف حساب عميل'!$E$3<='كشف الحساب'!$B$4:$B$1000,IF('استخراج كشف حساب عميل'!$E$4>='كشف الحساب'!$B$4:$B$1000,IF('استخراج كشف حساب عميل'!$C$3='كشف الحساب'!$C$4:$C$1000,ROW('كشف الحساب'!$B$4:$H$1000)-3))),ROW($A51)),MATCH('استخراج كشف حساب عميل'!E$5,'كشف الحساب'!$B$3:$G$3,0)),\"\")","v":""}]
["",{"$f":"IFERROR(INDEX('كشف الحساب'!$B$4:$H$1000,SMALL(IF('استخراج كشف حساب عميل'!$E$3<='كشف الحساب'!$B$4:$B$1000,IF('استخراج كشف حساب عميل'!$E$4>='كشف الحساب'!$B$4:$B$1000,IF('استخراج كشف حساب عميل'!$C$3='كشف الحساب'!$C$4:$C$1000,ROW('كشف الحساب'!$B$4:$H$1000)-3))),ROW($A52)),MATCH('استخراج كشف حساب عميل'!B$5,'كشف الحساب'!$B$3:$G$3,0)),\"\")","v":""},{"$f":"IFERROR(INDEX('كشف الحساب'!$B$4:$H$1000,SMALL(IF('استخراج كشف حساب عميل'!$E$3<='كشف الحساب'!$B$4:$B$1000,IF('استخراج كشف حساب عميل'!$E$4>='كشف الحساب'!$B$4:$B$1000,IF('استخراج كشف حساب عميل'!$C$3='كشف الحساب'!$C$4:$C$1000,ROW('كشف الحساب'!$B$4:$H$1000)-3))),ROW($A52)),MATCH('استخراج كشف حساب عميل'!C$5,'كشف الحساب'!$B$3:$G$3,0)),\"\")","v":""},{"$f":"IFERROR(INDEX('كشف الحساب'!$B$4:$H$1000,SMALL(IF('استخراج كشف حساب عميل'!$E$3<='كشف الحساب'!$B$4:$B$1000,IF('استخراج كشف حساب عميل'!$E$4>='كشف الحساب'!$B$4:$B$1000,IF('استخراج كشف حساب عميل'!$C$3='كشف الحساب'!$C$4:$C$1000,ROW('كشف الحساب'!$B$4:$H$1000)-3))),ROW($A52)),MATCH('استخراج كشف حساب عميل'!D$5,'كشف الحساب'!$B$3:$G$3,0)),\"\")","v":""},{"$f":"IFERROR(INDEX('كشف الحساب'!$B$4:$H$1000,SMALL(IF('استخراج كشف حساب عميل'!$E$3<='كشف الحساب'!$B$4:$B$1000,IF('استخراج كشف حساب عميل'!$E$4>='كشف الحساب'!$B$4:$B$1000,IF('استخراج كشف حساب عميل'!$C$3='كشف الحساب'!$C$4:$C$1000,ROW('كشف الحساب'!$B$4:$H$1000)-3))),ROW($A52)),MATCH('استخراج كشف حساب عميل'!E$5,'كشف الحساب'!$B$3:$G$3,0)),\"\")","v":""}]
["",{"$f":"IFERROR(INDEX('كشف الحساب'!$B$4:$H$1000,SMALL(IF('استخراج كشف حساب عميل'!$E$3<='كشف الحساب'!$B$4:$B$1000,IF('استخراج كشف حساب عميل'!$E$4>='كشف الحساب'!$B$4:$B$1000,IF('استخراج كشف حساب عميل'!$C$3='كشف الحساب'!$C$4:$C$1000,ROW('كشف الحساب'!$B$4:$H$1000)-3))),ROW($A53)),MATCH('استخراج كشف حساب عميل'!B$5,'كشف الحساب'!$B$3:$G$3,0)),\"\")","v":""},{"$f":"IFERROR(INDEX('كشف الحساب'!$B$4:$H$1000,SMALL(IF('استخراج كشف حساب عميل'!$E$3<='كشف الحساب'!$B$4:$B$1000,IF('استخراج كشف حساب عميل'!$E$4>='كشف الحساب'!$B$4:$B$1000,IF('استخراج كشف حساب عميل'!$C$3='كشف الحساب'!$C$4:$C$1000,ROW('كشف الحساب'!$B$4:$H$1000)-3))),ROW($A53)),MATCH('استخراج كشف حساب عميل'!C$5,'كشف الحساب'!$B$3:$G$3,0)),\"\")","v":""},{"$f":"IFERROR(INDEX('كشف الحساب'!$B$4:$H$1000,SMALL(IF('استخراج كشف حساب عميل'!$E$3<='كشف الحساب'!$B$4:$B$1000,IF('استخراج كشف حساب عميل'!$E$4>='كشف الحساب'!$B$4:$B$1000,IF('استخراج كشف حساب عميل'!$C$3='كشف الحساب'!$C$4:$C$1000,ROW('كشف الحساب'!$B$4:$H$1000)-3))),ROW($A53)),MATCH('استخراج كشف حساب عميل'!D$5,'كشف الحساب'!$B$3:$G$3,0)),\"\")","v":""},{"$f":"IFERROR(INDEX('كشف الحساب'!$B$4:$H$1000,SMALL(IF('استخراج كشف حساب عميل'!$E$3<='كشف الحساب'!$B$4:$B$1000,IF('استخراج كشف حساب عميل'!$E$4>='كشف الحساب'!$B$4:$B$1000,IF('استخراج كشف حساب عميل'!$C$3='كشف الحساب'!$C$4:$C$1000,ROW('كشف الحساب'!$B$4:$H$1000)-3))),ROW($A53)),MATCH('استخراج كشف حساب عميل'!E$5,'كشف الحساب'!$B$3:$G$3,0)),\"\")","v":""}]
["",{"$f":"IFERROR(INDEX('كشف الحساب'!$B$4:$H$1000,SMALL(IF('استخراج كشف حساب عميل'!$E$3<='كشف الحساب'!$B$4:$B$1000,IF('استخراج كشف حساب عميل'!$E$4>='كشف الحساب'!$B$4:$B$1000,IF('استخراج كشف حساب عميل'!$C$3='كشف الحساب'!$C$4:$C$1000,ROW('كشف الحساب'!$B$4:$H$1000)-3))),ROW($A54)),MATCH('استخراج كشف حساب عميل'!B$5,'كشف الحساب'!$B$3:$G$3,0)),\"\")","v":""},{"$f":"IFERROR(INDEX('كشف الحساب'!$B$4:$H$1000,SMALL(IF('استخراج كشف حساب عميل'!$E$3<='كشف الحساب'!$B$4:$B$1000,IF('استخراج كشف حساب عميل'!$E$4>='كشف الحساب'!$B$4:$B$1000,IF('استخراج كشف حساب عميل'!$C$3='كشف الحساب'!$C$4:$C$1000,ROW('كشف الحساب'!$B$4:$H$1000)-3))),ROW($A54)),MATCH('استخراج كشف حساب عميل'!C$5,'كشف الحساب'!$B$3:$G$3,0)),\"\")","v":""},{"$f":"IFERROR(INDEX('كشف الحساب'!$B$4:$H$1000,SMALL(IF('استخراج كشف حساب عميل'!$E$3<='كشف الحساب'!$B$4:$B$1000,IF('استخراج كشف حساب عميل'!$E$4>='كشف الحساب'!$B$4:$B$1000,IF('استخراج كشف حساب عميل'!$C$3='كشف الحساب'!$C$4:$C$1000,ROW('كشف الحساب'!$B$4:$H$1000)-3))),ROW($A54)),MATCH('استخراج كشف حساب عميل'!D$5,'كشف الحساب'!$B$3:$G$3,0)),\"\")","v":""},{"$f":"IFERROR(INDEX('كشف الحساب'!$B$4:$H$1000,SMALL(IF('استخراج كشف حساب عميل'!$E$3<='كشف الحساب'!$B$4:$B$1000,IF('استخراج كشف حساب عميل'!$E$4>='كشف الحساب'!$B$4:$B$1000,IF('استخراج كشف حساب عميل'!$C$3='كشف الحساب'!$C$4:$C$1000,ROW('كشف الحساب'!$B$4:$H$1000)-3))),ROW($A54)),MATCH('استخراج كشف حساب عميل'!E$5,'كشف الحساب'!$B$3:$G$3,0)),\"\")","v":""}]
["",{"$f":"IFERROR(INDEX('كشف الحساب'!$B$4:$H$1000,SMALL(IF('استخراج كشف حساب عميل'!$E$3<='كشف الحساب'!$B$4:$B$1000,IF('استخراج كشف حساب عميل'!$E$4>='كشف الحساب'!$B$4:$B$1000,IF('استخراج كشف حساب عميل'!$C$3='كشف الحساب'!$C$4:$C$1000,ROW('كشف الحساب'!$B$4:$H$1000)-3))),ROW($A55)),MATCH('استخراج كشف حساب عميل'!B$5,'كشف الحساب'!$B$3:$G$3,0)),\"\")","v":""},{"$f":"IFERROR(INDEX('كشف الحساب'!$B$4:$H$1000,SMALL(IF('استخراج كشف حساب عميل'!$E$3<='كشف الحساب'!$B$4:$B$1000,IF('استخراج كشف حساب عميل'!$E$4>='كشف الحساب'!$B$4:$B$1000,IF('استخراج كشف حساب عميل'!$C$3='كشف الحساب'!$C$4:$C$1000,ROW('كشف الحساب'!$B$4:$H$1000)-3))),ROW($A55)),MATCH('استخراج كشف حساب عميل'!C$5,'كشف الحساب'!$B$3:$G$3,0)),\"\")","v":""},{"$f":"IFERROR(INDEX('كشف الحساب'!$B$4:$H$1000,SMALL(IF('استخراج كشف حساب عميل'!$E$3<='كشف الحساب'!$B$4:$B$1000,IF('استخراج كشف حساب عميل'!$E$4>='كشف الحساب'!$B$4:$B$1000,IF('استخراج كشف حساب عميل'!$C$3='كشف الحساب'!$C$4:$C$1000,ROW('كشف الحساب'!$B$4:$H$1000)-3))),ROW($A55)),MATCH('استخراج كشف حساب عميل'!D$5,'كشف الحساب'!$B$3:$G$3,0)),\"\")","v":""},{"$f":"IFERROR(INDEX('كشف الحساب'!$B$4:$H$1000,SMALL(IF('استخراج كشف حساب عميل'!$E$3<='كشف الحساب'!$B$4:$B$1000,IF('استخراج كشف حساب عميل'!$E$4>='كشف الحساب'!$B$4:$B$1000,IF('استخراج كشف حساب عميل'!$C$3='كشف الحساب'!$C$4:$C$1000,ROW('كشف الحساب'!$B$4:$H$1000)-3))),ROW($A55)),MATCH('استخراج كشف حساب عميل'!E$5,'كشف الحساب'!$B$3:$G$3,0)),\"\")","v":""}]
["",{"$f":"IFERROR(INDEX('كشف الحساب'!$B$4:$H$1000,SMALL(IF('استخراج كشف حساب عميل'!$E$3<='كشف الحساب'!$B$4:$B$1000,IF('استخراج كشف حساب عميل'!$E$4>='كشف الحساب'!$B$4:$B$1000,IF('استخراج كشف حساب عميل'!$C$3='كشف الحساب'!$C$4:$C$1000,ROW('كشف الحساب'!$B$4:$H$1000)-3))),ROW($A56)),MATCH('استخراج كشف حساب عميل'!B$5,'كشف الحساب'!$B$3:$G$3,0)),\"\")","v":""},{"$f":"IFERROR(INDEX('كشف الحساب'!$B$4:$H$1000,SMALL(IF('استخراج كشف حساب عميل'!$E$3<='كشف الحساب'!$B$4:$B$1000,IF('استخراج كشف حساب عميل'!$E$4>='كشف الحساب'!$B$4:$B$1000,IF('استخراج كشف حساب عميل'!$C$3='كشف الحساب'!$C$4:$C$1000,ROW('كشف الحساب'!$B$4:$H$1000)-3))),ROW($A56)),MATCH('استخراج كشف حساب عميل'!C$5,'كشف الحساب'!$B$3:$G$3,0)),\"\")","v":""},{"$f":"IFERROR(INDEX('كشف الحساب'!$B$4:$H$1000,SMALL(IF('استخراج كشف حساب عميل'!$E$3<='كشف الحساب'!$B$4:$B$1000,IF('استخراج كشف حساب عميل'!$E$4>='كشف الحساب'!$B$4:$B$1000,IF('استخراج كشف حساب عميل'!$C$3='كشف الحساب'!$C$4:$C$1000,ROW('كشف الحساب'!$B$4:$H$1000)-3))),ROW($A56)),MATCH('استخراج كشف حساب عميل'!D$5,'كشف الحساب'!$B$3:$G$3,0)),\"\")","v":""},{"$f":"IFERROR(INDEX('كشف الحساب'!$B$4:$H$1000,SMALL(IF('استخراج كشف حساب عميل'!$E$3<='كشف الحساب'!$B$4:$B$1000,IF('استخراج كشف حساب عميل'!$E$4>='كشف الحساب'!$B$4:$B$1000,IF('استخراج كشف حساب عميل'!$C$3='كشف الحساب'!$C$4:$C$1000,ROW('كشف الحساب'!$B$4:$H$1000)-3))),ROW($A56)),MATCH('استخراج كشف حساب عميل'!E$5,'كشف الحساب'!$B$3:$G$3,0)),\"\")","v":""}]
["",{"$f":"IFERROR(INDEX('كشف الحساب'!$B$4:$H$1000,SMALL(IF('استخراج كشف حساب عميل'!$E$3<='كشف الحساب'!$B$4:$B$1000,IF('استخراج كشف حساب عميل'!$E$4>='كشف الحساب'!$B$4:$B$1000,IF('استخراج كشف حساب عميل'!$C$3='كشف الحساب'!$C$4:$C$1000,ROW('كشف الحساب'!$B$4:$H$1000)-3))),ROW($A57)),MATCH('استخراج كشف حساب عميل'!B$5,'كشف الحساب'!$B$3:$G$3,0)),\"\")","v":""},{"$f":"IFERROR(INDEX('كشف الحساب'!$B$4:$H$1000,SMALL(IF('استخراج كشف حساب عميل'!$E$3<='كشف الحساب'!$B$4:$B$1000,IF('استخراج كشف حساب عميل'!$E$4>='كشف الحساب'!$B$4:$B$1000,IF('استخراج كشف حساب عميل'!$C$3='كشف الحساب'!$C$4:$C$1000,ROW('كشف الحساب'!$B$4:$H$1000)-3))),ROW($A57)),MATCH('استخراج كشف حساب عميل'!C$5,'كشف الحساب'!$B$3:$G$3,0)),\"\")","v":""},{"$f":"IFERROR(INDEX('كشف الحساب'!$B$4:$H$1000,SMALL(IF('استخراج كشف حساب عميل'!$E$3<='كشف الحساب'!$B$4:$B$1000,IF('استخراج كشف حساب عميل'!$E$4>='كشف الحساب'!$B$4:$B$1000,IF('استخراج كشف حساب عميل'!$C$3='كشف الحساب'!$C$4:$C$1000,ROW('كشف الحساب'!$B$4:$H$1000)-3))),ROW($A57)),MATCH('استخراج كشف حساب عميل'!D$5,'كشف الحساب'!$B$3:$G$3,0)),\"\")","v":""},{"$f":"IFERROR(INDEX('كشف الحساب'!$B$4:$H$1000,SMALL(IF('استخراج كشف حساب عميل'!$E$3<='كشف الحساب'!$B$4:$B$1000,IF('استخراج كشف حساب عميل'!$E$4>='كشف الحساب'!$B$4:$B$1000,IF('استخراج كشف حساب عميل'!$C$3='كشف الحساب'!$C$4:$C$1000,ROW('كشف الحساب'!$B$4:$H$1000)-3))),ROW($A57)),MATCH('استخراج كشف حساب عميل'!E$5,'كشف الحساب'!$B$3:$G$3,0)),\"\")","v":""}]
["",{"$f":"IFERROR(INDEX('كشف الحساب'!$B$4:$H$1000,SMALL(IF('استخراج كشف حساب عميل'!$E$3<='كشف الحساب'!$B$4:$B$1000,IF('استخراج كشف حساب عميل'!$E$4>='كشف الحساب'!$B$4:$B$1000,IF('استخراج كشف حساب عميل'!$C$3='كشف الحساب'!$C$4:$C$1000,ROW('كشف الحساب'!$B$4:$H$1000)-3))),ROW($A58)),MATCH('استخراج كشف حساب عميل'!B$5,'كشف الحساب'!$B$3:$G$3,0)),\"\")","v":""},{"$f":"IFERROR(INDEX('كشف الحساب'!$B$4:$H$1000,SMALL(IF('استخراج كشف حساب عميل'!$E$3<='كشف الحساب'!$B$4:$B$1000,IF('استخراج كشف حساب عميل'!$E$4>='كشف الحساب'!$B$4:$B$1000,IF('استخراج كشف حساب عميل'!$C$3='كشف الحساب'!$C$4:$C$1000,ROW('كشف الحساب'!$B$4:$H$1000)-3))),ROW($A58)),MATCH('استخراج كشف حساب عميل'!C$5,'كشف الحساب'!$B$3:$G$3,0)),\"\")","v":""},{"$f":"IFERROR(INDEX('كشف الحساب'!$B$4:$H$1000,SMALL(IF('استخراج كشف حساب عميل'!$E$3<='كشف الحساب'!$B$4:$B$1000,IF('استخراج كشف حساب عميل'!$E$4>='كشف الحساب'!$B$4:$B$1000,IF('استخراج كشف حساب عميل'!$C$3='كشف الحساب'!$C$4:$C$1000,ROW('كشف الحساب'!$B$4:$H$1000)-3))),ROW($A58)),MATCH('استخراج كشف حساب عميل'!D$5,'كشف الحساب'!$B$3:$G$3,0)),\"\")","v":""},{"$f":"IFERROR(INDEX('كشف الحساب'!$B$4:$H$1000,SMALL(IF('استخراج كشف حساب عميل'!$E$3<='كشف الحساب'!$B$4:$B$1000,IF('استخراج كشف حساب عميل'!$E$4>='كشف الحساب'!$B$4:$B$1000,IF('استخراج كشف حساب عميل'!$C$3='كشف الحساب'!$C$4:$C$1000,ROW('كشف الحساب'!$B$4:$H$1000)-3))),ROW($A58)),MATCH('استخراج كشف حساب عميل'!E$5,'كشف الحساب'!$B$3:$G$3,0)),\"\")","v":""}]
["",{"$f":"IFERROR(INDEX('كشف الحساب'!$B$4:$H$1000,SMALL(IF('استخراج كشف حساب عميل'!$E$3<='كشف الحساب'!$B$4:$B$1000,IF('استخراج كشف حساب عميل'!$E$4>='كشف الحساب'!$B$4:$B$1000,IF('استخراج كشف حساب عميل'!$C$3='كشف الحساب'!$C$4:$C$1000,ROW('كشف الحساب'!$B$4:$H$1000)-3))),ROW($A59)),MATCH('استخراج كشف حساب عميل'!B$5,'كشف الحساب'!$B$3:$G$3,0)),\"\")","v":""},{"$f":"IFERROR(INDEX('كشف الحساب'!$B$4:$H$1000,SMALL(IF('استخراج كشف حساب عميل'!$E$3<='كشف الحساب'!$B$4:$B$1000,IF('استخراج كشف حساب عميل'!$E$4>='كشف الحساب'!$B$4:$B$1000,IF('استخراج كشف حساب عميل'!$C$3='كشف الحساب'!$C$4:$C$1000,ROW('كشف الحساب'!$B$4:$H$1000)-3))),ROW($A59)),MATCH('استخراج كشف حساب عميل'!C$5,'كشف الحساب'!$B$3:$G$3,0)),\"\")","v":""},{"$f":"IFERROR(INDEX('كشف الحساب'!$B$4:$H$1000,SMALL(IF('استخراج كشف حساب عميل'!$E$3<='كشف الحساب'!$B$4:$B$1000,IF('استخراج كشف حساب عميل'!$E$4>='كشف الحساب'!$B$4:$B$1000,IF('استخراج كشف حساب عميل'!$C$3='كشف الحساب'!$C$4:$C$1000,ROW('كشف الحساب'!$B$4:$H$1000)-3))),ROW($A59)),MATCH('استخراج كشف حساب عميل'!D$5,'كشف الحساب'!$B$3:$G$3,0)),\"\")","v":""},{"$f":"IFERROR(INDEX('كشف الحساب'!$B$4:$H$1000,SMALL(IF('استخراج كشف حساب عميل'!$E$3<='كشف الحساب'!$B$4:$B$1000,IF('استخراج كشف حساب عميل'!$E$4>='كشف الحساب'!$B$4:$B$1000,IF('استخراج كشف حساب عميل'!$C$3='كشف الحساب'!$C$4:$C$1000,ROW('كشف الحساب'!$B$4:$H$1000)-3))),ROW($A59)),MATCH('استخراج كشف حساب عميل'!E$5,'كشف الحساب'!$B$3:$G$3,0)),\"\")","v":""}]
["",{"$f":"IFERROR(INDEX('كشف الحساب'!$B$4:$H$1000,SMALL(IF('استخراج كشف حساب عميل'!$E$3<='كشف الحساب'!$B$4:$B$1000,IF('استخراج كشف حساب عميل'!$E$4>='كشف الحساب'!$B$4:$B$1000,IF('استخراج كشف حساب عميل'!$C$3='كشف الحساب'!$C$4:$C$1000,ROW('كشف الحساب'!$B$4:$H$1000)-3))),ROW($A60)),MATCH('استخراج كشف حساب عميل'!B$5,'كشف الحساب'!$B$3:$G$3,0)),\"\")","v":""},{"$f":"IFERROR(INDEX('كشف الحساب'!$B$4:$H$1000,SMALL(IF('استخراج كشف حساب عميل'!$E$3<='كشف الحساب'!$B$4:$B$1000,IF('استخراج كشف حساب عميل'!$E$4>='كشف الحساب'!$B$4:$B$1000,IF('استخراج كشف حساب عميل'!$C$3='كشف الحساب'!$C$4:$C$1000,ROW('كشف الحساب'!$B$4:$H$1000)-3))),ROW($A60)),MATCH('استخراج كشف حساب عميل'!C$5,'كشف الحساب'!$B$3:$G$3,0)),\"\")","v":""},{"$f":"IFERROR(INDEX('كشف الحساب'!$B$4:$H$1000,SMALL(IF('استخراج كشف حساب عميل'!$E$3<='كشف الحساب'!$B$4:$B$1000,IF('استخراج كشف حساب عميل'!$E$4>='كشف الحساب'!$B$4:$B$1000,IF('استخراج كشف حساب عميل'!$C$3='كشف الحساب'!$C$4:$C$1000,ROW('كشف الحساب'!$B$4:$H$1000)-3))),ROW($A60)),MATCH('استخراج كشف حساب عميل'!D$5,'كشف الحساب'!$B$3:$G$3,0)),\"\")","v":""},{"$f":"IFERROR(INDEX('كشف الحساب'!$B$4:$H$1000,SMALL(IF('استخراج كشف حساب عميل'!$E$3<='كشف الحساب'!$B$4:$B$1000,IF('استخراج كشف حساب عميل'!$E$4>='كشف الحساب'!$B$4:$B$1000,IF('استخراج كشف حساب عميل'!$C$3='كشف الحساب'!$C$4:$C$1000,ROW('كشف الحساب'!$B$4:$H$1000)-3))),ROW($A60)),MATCH('استخراج كشف حساب عميل'!E$5,'كشف الحساب'!$B$3:$G$3,0)),\"\")","v":""}]
["",{"$f":"IFERROR(INDEX('كشف الحساب'!$B$4:$H$1000,SMALL(IF('استخراج كشف حساب عميل'!$E$3<='كشف الحساب'!$B$4:$B$1000,IF('استخراج كشف حساب عميل'!$E$4>='كشف الحساب'!$B$4:$B$1000,IF('استخراج كشف حساب عميل'!$C$3='كشف الحساب'!$C$4:$C$1000,ROW('كشف الحساب'!$B$4:$H$1000)-3))),ROW($A61)),MATCH('استخراج كشف حساب عميل'!B$5,'كشف الحساب'!$B$3:$G$3,0)),\"\")","v":""},{"$f":"IFERROR(INDEX('كشف الحساب'!$B$4:$H$1000,SMALL(IF('استخراج كشف حساب عميل'!$E$3<='كشف الحساب'!$B$4:$B$1000,IF('استخراج كشف حساب عميل'!$E$4>='كشف الحساب'!$B$4:$B$1000,IF('استخراج كشف حساب عميل'!$C$3='كشف الحساب'!$C$4:$C$1000,ROW('كشف الحساب'!$B$4:$H$1000)-3))),ROW($A61)),MATCH('استخراج كشف حساب عميل'!C$5,'كشف الحساب'!$B$3:$G$3,0)),\"\")","v":""},{"$f":"IFERROR(INDEX('كشف الحساب'!$B$4:$H$1000,SMALL(IF('استخراج كشف حساب عميل'!$E$3<='كشف الحساب'!$B$4:$B$1000,IF('استخراج كشف حساب عميل'!$E$4>='كشف الحساب'!$B$4:$B$1000,IF('استخراج كشف حساب عميل'!$C$3='كشف الحساب'!$C$4:$C$1000,ROW('كشف الحساب'!$B$4:$H$1000)-3))),ROW($A61)),MATCH('استخراج كشف حساب عميل'!D$5,'كشف الحساب'!$B$3:$G$3,0)),\"\")","v":""},{"$f":"IFERROR(INDEX('كشف الحساب'!$B$4:$H$1000,SMALL(IF('استخراج كشف حساب عميل'!$E$3<='كشف الحساب'!$B$4:$B$1000,IF('استخراج كشف حساب عميل'!$E$4>='كشف الحساب'!$B$4:$B$1000,IF('استخراج كشف حساب عميل'!$C$3='كشف الحساب'!$C$4:$C$1000,ROW('كشف الحساب'!$B$4:$H$1000)-3))),ROW($A61)),MATCH('استخراج كشف حساب عميل'!E$5,'كشف الحساب'!$B$3:$G$3,0)),\"\")","v":""}]
["",{"$f":"IFERROR(INDEX('كشف الحساب'!$B$4:$H$1000,SMALL(IF('استخراج كشف حساب عميل'!$E$3<='كشف الحساب'!$B$4:$B$1000,IF('استخراج كشف حساب عميل'!$E$4>='كشف الحساب'!$B$4:$B$1000,IF('استخراج كشف حساب عميل'!$C$3='كشف الحساب'!$C$4:$C$1000,ROW('كشف الحساب'!$B$4:$H$1000)-3))),ROW($A62)),MATCH('استخراج كشف حساب عميل'!B$5,'كشف الحساب'!$B$3:$G$3,0)),\"\")","v":""},{"$f":"IFERROR(INDEX('كشف الحساب'!$B$4:$H$1000,SMALL(IF('استخراج كشف حساب عميل'!$E$3<='كشف الحساب'!$B$4:$B$1000,IF('استخراج كشف حساب عميل'!$E$4>='كشف الحساب'!$B$4:$B$1000,IF('استخراج كشف حساب عميل'!$C$3='كشف الحساب'!$C$4:$C$1000,ROW('كشف الحساب'!$B$4:$H$1000)-3))),ROW($A62)),MATCH('استخراج كشف حساب عميل'!C$5,'كشف الحساب'!$B$3:$G$3,0)),\"\")","v":""},{"$f":"IFERROR(INDEX('كشف الحساب'!$B$4:$H$1000,SMALL(IF('استخراج كشف حساب عميل'!$E$3<='كشف الحساب'!$B$4:$B$1000,IF('استخراج كشف حساب عميل'!$E$4>='كشف الحساب'!$B$4:$B$1000,IF('استخراج كشف حساب عميل'!$C$3='كشف الحساب'!$C$4:$C$1000,ROW('كشف الحساب'!$B$4:$H$1000)-3))),ROW($A62)),MATCH('استخراج كشف حساب عميل'!D$5,'كشف الحساب'!$B$3:$G$3,0)),\"\")","v":""},{"$f":"IFERROR(INDEX('كشف الحساب'!$B$4:$H$1000,SMALL(IF('استخراج كشف حساب عميل'!$E$3<='كشف الحساب'!$B$4:$B$1000,IF('استخراج كشف حساب عميل'!$E$4>='كشف الحساب'!$B$4:$B$1000,IF('استخراج كشف حساب عميل'!$C$3='كشف الحساب'!$C$4:$C$1000,ROW('كشف الحساب'!$B$4:$H$1000)-3))),ROW($A62)),MATCH('استخراج كشف حساب عميل'!E$5,'كشف الحساب'!$B$3:$G$3,0)),\"\")","v":""}]
["",{"$f":"IFERROR(INDEX('كشف الحساب'!$B$4:$H$1000,SMALL(IF('استخراج كشف حساب عميل'!$E$3<='كشف الحساب'!$B$4:$B$1000,IF('استخراج كشف حساب عميل'!$E$4>='كشف الحساب'!$B$4:$B$1000,IF('استخراج كشف حساب عميل'!$C$3='كشف الحساب'!$C$4:$C$1000,ROW('كشف الحساب'!$B$4:$H$1000)-3))),ROW($A63)),MATCH('استخراج كشف حساب عميل'!B$5,'كشف الحساب'!$B$3:$G$3,0)),\"\")","v":""},{"$f":"IFERROR(INDEX('كشف الحساب'!$B$4:$H$1000,SMALL(IF('استخراج كشف حساب عميل'!$E$3<='كشف الحساب'!$B$4:$B$1000,IF('استخراج كشف حساب عميل'!$E$4>='كشف الحساب'!$B$4:$B$1000,IF('استخراج كشف حساب عميل'!$C$3='كشف الحساب'!$C$4:$C$1000,ROW('كشف الحساب'!$B$4:$H$1000)-3))),ROW($A63)),MATCH('استخراج كشف حساب عميل'!C$5,'كشف الحساب'!$B$3:$G$3,0)),\"\")","v":""},{"$f":"IFERROR(INDEX('كشف الحساب'!$B$4:$H$1000,SMALL(IF('استخراج كشف حساب عميل'!$E$3<='كشف الحساب'!$B$4:$B$1000,IF('استخراج كشف حساب عميل'!$E$4>='كشف الحساب'!$B$4:$B$1000,IF('استخراج كشف حساب عميل'!$C$3='كشف الحساب'!$C$4:$C$1000,ROW('كشف الحساب'!$B$4:$H$1000)-3))),ROW($A63)),MATCH('استخراج كشف حساب عميل'!D$5,'كشف الحساب'!$B$3:$G$3,0)),\"\")","v":""},{"$f":"IFERROR(INDEX('كشف الحساب'!$B$4:$H$1000,SMALL(IF('استخراج كشف حساب عميل'!$E$3<='كشف الحساب'!$B$4:$B$1000,IF('استخراج كشف حساب عميل'!$E$4>='كشف الحساب'!$B$4:$B$1000,IF('استخراج كشف حساب عميل'!$C$3='كشف الحساب'!$C$4:$C$1000,ROW('كشف الحساب'!$B$4:$H$1000)-3))),ROW($A63)),MATCH('استخراج كشف حساب عميل'!E$5,'كشف الحساب'!$B$3:$G$3,0)),\"\")","v":""}]
["",{"$f":"IFERROR(INDEX('كشف الحساب'!$B$4:$H$1000,SMALL(IF('استخراج كشف حساب عميل'!$E$3<='كشف الحساب'!$B$4:$B$1000,IF('استخراج كشف حساب عميل'!$E$4>='كشف الحساب'!$B$4:$B$1000,IF('استخراج كشف حساب عميل'!$C$3='كشف الحساب'!$C$4:$C$1000,ROW('كشف الحساب'!$B$4:$H$1000)-3))),ROW($A64)),MATCH('استخراج كشف حساب عميل'!B$5,'كشف الحساب'!$B$3:$G$3,0)),\"\")","v":""},{"$f":"IFERROR(INDEX('كشف الحساب'!$B$4:$H$1000,SMALL(IF('استخراج كشف حساب عميل'!$E$3<='كشف الحساب'!$B$4:$B$1000,IF('استخراج كشف حساب عميل'!$E$4>='كشف الحساب'!$B$4:$B$1000,IF('استخراج كشف حساب عميل'!$C$3='كشف الحساب'!$C$4:$C$1000,ROW('كشف الحساب'!$B$4:$H$1000)-3))),ROW($A64)),MATCH('استخراج كشف حساب عميل'!C$5,'كشف الحساب'!$B$3:$G$3,0)),\"\")","v":""},{"$f":"IFERROR(INDEX('كشف الحساب'!$B$4:$H$1000,SMALL(IF('استخراج كشف حساب عميل'!$E$3<='كشف الحساب'!$B$4:$B$1000,IF('استخراج كشف حساب عميل'!$E$4>='كشف الحساب'!$B$4:$B$1000,IF('استخراج كشف حساب عميل'!$C$3='كشف الحساب'!$C$4:$C$1000,ROW('كشف الحساب'!$B$4:$H$1000)-3))),ROW($A64)),MATCH('استخراج كشف حساب عميل'!D$5,'كشف الحساب'!$B$3:$G$3,0)),\"\")","v":""},{"$f":"IFERROR(INDEX('كشف الحساب'!$B$4:$H$1000,SMALL(IF('استخراج كشف حساب عميل'!$E$3<='كشف الحساب'!$B$4:$B$1000,IF('استخراج كشف حساب عميل'!$E$4>='كشف الحساب'!$B$4:$B$1000,IF('استخراج كشف حساب عميل'!$C$3='كشف الحساب'!$C$4:$C$1000,ROW('كشف الحساب'!$B$4:$H$1000)-3))),ROW($A64)),MATCH('استخراج كشف حساب عميل'!E$5,'كشف الحساب'!$B$3:$G$3,0)),\"\")","v":""}]
["",{"$f":"IFERROR(INDEX('كشف الحساب'!$B$4:$H$1000,SMALL(IF('استخراج كشف حساب عميل'!$E$3<='كشف الحساب'!$B$4:$B$1000,IF('استخراج كشف حساب عميل'!$E$4>='كشف الحساب'!$B$4:$B$1000,IF('استخراج كشف حساب عميل'!$C$3='كشف الحساب'!$C$4:$C$1000,ROW('كشف الحساب'!$B$4:$H$1000)-3))),ROW($A65)),MATCH('استخراج كشف حساب عميل'!B$5,'كشف الحساب'!$B$3:$G$3,0)),\"\")","v":""},{"$f":"IFERROR(INDEX('كشف الحساب'!$B$4:$H$1000,SMALL(IF('استخراج كشف حساب عميل'!$E$3<='كشف الحساب'!$B$4:$B$1000,IF('استخراج كشف حساب عميل'!$E$4>='كشف الحساب'!$B$4:$B$1000,IF('استخراج كشف حساب عميل'!$C$3='كشف الحساب'!$C$4:$C$1000,ROW('كشف الحساب'!$B$4:$H$1000)-3))),ROW($A65)),MATCH('استخراج كشف حساب عميل'!C$5,'كشف الحساب'!$B$3:$G$3,0)),\"\")","v":""},{"$f":"IFERROR(INDEX('كشف الحساب'!$B$4:$H$1000,SMALL(IF('استخراج كشف حساب عميل'!$E$3<='كشف الحساب'!$B$4:$B$1000,IF('استخراج كشف حساب عميل'!$E$4>='كشف الحساب'!$B$4:$B$1000,IF('استخراج كشف حساب عميل'!$C$3='كشف الحساب'!$C$4:$C$1000,ROW('كشف الحساب'!$B$4:$H$1000)-3))),ROW($A65)),MATCH('استخراج كشف حساب عميل'!D$5,'كشف الحساب'!$B$3:$G$3,0)),\"\")","v":""},{"$f":"IFERROR(INDEX('كشف الحساب'!$B$4:$H$1000,SMALL(IF('استخراج كشف حساب عميل'!$E$3<='كشف الحساب'!$B$4:$B$1000,IF('استخراج كشف حساب عميل'!$E$4>='كشف الحساب'!$B$4:$B$1000,IF('استخراج كشف حساب عميل'!$C$3='كشف الحساب'!$C$4:$C$1000,ROW('كشف الحساب'!$B$4:$H$1000)-3))),ROW($A65)),MATCH('استخراج كشف حساب عميل'!E$5,'كشف الحساب'!$B$3:$G$3,0)),\"\")","v":""}]
[{"$f":"IF(B71=\"\",\"\",ROW()-5)","v":""},{"$f":"IFERROR(INDEX('كشف الحساب'!$B$4:$H$1000,SMALL(IF('استخراج كشف حساب عميل'!$E$3<='كشف الحساب'!$B$4:$B$1000,IF('استخراج كشف حساب عميل'!$E$4>='كشف الحساب'!$B$4:$B$1000,IF('استخراج كشف حساب عميل'!$C$3='كشف الحساب'!$C$4:$C$1000,ROW('كشف الحساب'!$B$4:$H$1000)-3))),ROW($A66)),MATCH('استخراج كشف حساب عميل'!B$5,'كشف الحساب'!$B$3:$G$3,0)),\"\")","v":""},{"$f":"IFERROR(INDEX('كشف الحساب'!$B$4:$H$1000,SMALL(IF('استخراج كشف حساب عميل'!$E$3<='كشف الحساب'!$B$4:$B$1000,IF('استخراج كشف حساب عميل'!$E$4>='كشف الحساب'!$B$4:$B$1000,IF('استخراج كشف حساب عميل'!$C$3='كشف الحساب'!$C$4:$C$1000,ROW('كشف الحساب'!$B$4:$H$1000)-3))),ROW($A66)),MATCH('استخراج كشف حساب عميل'!C$5,'كشف الحساب'!$B$3:$G$3,0)),\"\")","v":""},{"$f":"IFERROR(INDEX('كشف الحساب'!$B$4:$H$1000,SMALL(IF('استخراج كشف حساب عميل'!$E$3<='كشف الحساب'!$B$4:$B$1000,IF('استخراج كشف حساب عميل'!$E$4>='كشف الحساب'!$B$4:$B$1000,IF('استخراج كشف حساب عميل'!$C$3='كشف الحساب'!$C$4:$C$1000,ROW('كشف الحساب'!$B$4:$H$1000)-3))),ROW($A66)),MATCH('استخراج كشف حساب عميل'!D$5,'كشف الحساب'!$B$3:$G$3,0)),\"\")","v":""},{"$f":"IFERROR(INDEX('كشف الحساب'!$B$4:$H$1000,SMALL(IF('استخراج كشف حساب عميل'!$E$3<='كشف الحساب'!$B$4:$B$1000,IF('استخراج كشف حساب عميل'!$E$4>='كشف الحساب'!$B$4:$B$1000,IF('استخراج كشف حساب عميل'!$C$3='كشف الحساب'!$C$4:$C$1000,ROW('كشف الحساب'!$B$4:$H$1000)-3))),ROW($A66)),MATCH('استخراج كشف حساب عميل'!E$5,'كشف الحساب'!$B$3:$G$3,0)),\"\")","v":""}]
["",{"$f":"IFERROR(INDEX('كشف الحساب'!$B$4:$H$1000,SMALL(IF('استخراج كشف حساب عميل'!$E$3<='كشف الحساب'!$B$4:$B$1000,IF('استخراج كشف حساب عميل'!$E$4>='كشف الحساب'!$B$4:$B$1000,IF('استخراج كشف حساب عميل'!$C$3='كشف الحساب'!$C$4:$C$1000,ROW('كشف الحساب'!$B$4:$H$1000)-3))),ROW($A67)),MATCH('استخراج كشف حساب عميل'!B$5,'كشف الحساب'!$B$3:$G$3,0)),\"\")","v":""},{"$f":"IFERROR(INDEX('كشف الحساب'!$B$4:$H$1000,SMALL(IF('استخراج كشف حساب عميل'!$E$3<='كشف الحساب'!$B$4:$B$1000,IF('استخراج كشف حساب عميل'!$E$4>='كشف الحساب'!$B$4:$B$1000,IF('استخراج كشف حساب عميل'!$C$3='كشف الحساب'!$C$4:$C$1000,ROW('كشف الحساب'!$B$4:$H$1000)-3))),ROW($A67)),MATCH('استخراج كشف حساب عميل'!C$5,'كشف الحساب'!$B$3:$G$3,0)),\"\")","v":""},{"$f":"IFERROR(INDEX('كشف الحساب'!$B$4:$H$1000,SMALL(IF('استخراج كشف حساب عميل'!$E$3<='كشف الحساب'!$B$4:$B$1000,IF('استخراج كشف حساب عميل'!$E$4>='كشف الحساب'!$B$4:$B$1000,IF('استخراج كشف حساب عميل'!$C$3='كشف الحساب'!$C$4:$C$1000,ROW('كشف الحساب'!$B$4:$H$1000)-3))),ROW($A67)),MATCH('استخراج كشف حساب عميل'!D$5,'كشف الحساب'!$B$3:$G$3,0)),\"\")","v":""},{"$f":"IFERROR(INDEX('كشف الحساب'!$B$4:$H$1000,SMALL(IF('استخراج كشف حساب عميل'!$E$3<='كشف الحساب'!$B$4:$B$1000,IF('استخراج كشف حساب عميل'!$E$4>='كشف الحساب'!$B$4:$B$1000,IF('استخراج كشف حساب عميل'!$C$3='كشف الحساب'!$C$4:$C$1000,ROW('كشف الحساب'!$B$4:$H$1000)-3))),ROW($A67)),MATCH('استخراج كشف حساب عميل'!E$5,'كشف الحساب'!$B$3:$G$3,0)),\"\")","v":""}]
["",{"$f":"IFERROR(INDEX('كشف الحساب'!$B$4:$H$1000,SMALL(IF('استخراج كشف حساب عميل'!$E$3<='كشف الحساب'!$B$4:$B$1000,IF('استخراج كشف حساب عميل'!$E$4>='كشف الحساب'!$B$4:$B$1000,IF('استخراج كشف حساب عميل'!$C$3='كشف الحساب'!$C$4:$C$1000,ROW('كشف الحساب'!$B$4:$H$1000)-3))),ROW($A68)),MATCH('استخراج كشف حساب عميل'!B$5,'كشف الحساب'!$B$3:$G$3,0)),\"\")","v":""},{"$f":"IFERROR(INDEX('كشف الحساب'!$B$4:$H$1000,SMALL(IF('استخراج كشف حساب عميل'!$E$3<='كشف الحساب'!$B$4:$B$1000,IF('استخراج كشف حساب عميل'!$E$4>='كشف الحساب'!$B$4:$B$1000,IF('استخراج كشف حساب عميل'!$C$3='كشف الحساب'!$C$4:$C$1000,ROW('كشف الحساب'!$B$4:$H$1000)-3))),ROW($A68)),MATCH('استخراج كشف حساب عميل'!C$5,'كشف الحساب'!$B$3:$G$3,0)),\"\")","v":""},{"$f":"IFERROR(INDEX('كشف الحساب'!$B$4:$H$1000,SMALL(IF('استخراج كشف حساب عميل'!$E$3<='كشف الحساب'!$B$4:$B$1000,IF('استخراج كشف حساب عميل'!$E$4>='كشف الحساب'!$B$4:$B$1000,IF('استخراج كشف حساب عميل'!$C$3='كشف الحساب'!$C$4:$C$1000,ROW('كشف الحساب'!$B$4:$H$1000)-3))),ROW($A68)),MATCH('استخراج كشف حساب عميل'!D$5,'كشف الحساب'!$B$3:$G$3,0)),\"\")","v":""},{"$f":"IFERROR(INDEX('كشف الحساب'!$B$4:$H$1000,SMALL(IF('استخراج كشف حساب عميل'!$E$3<='كشف الحساب'!$B$4:$B$1000,IF('استخراج كشف حساب عميل'!$E$4>='كشف الحساب'!$B$4:$B$1000,IF('استخراج كشف حساب عميل'!$C$3='كشف الحساب'!$C$4:$C$1000,ROW('كشف الحساب'!$B$4:$H$1000)-3))),ROW($A68)),MATCH('استخراج كشف حساب عميل'!E$5,'كشف الحساب'!$B$3:$G$3,0)),\"\")","v":""}]
["",{"$f":"IFERROR(INDEX('كشف الحساب'!$B$4:$H$1000,SMALL(IF('استخراج كشف حساب عميل'!$E$3<='كشف الحساب'!$B$4:$B$1000,IF('استخراج كشف حساب عميل'!$E$4>='كشف الحساب'!$B$4:$B$1000,IF('استخراج كشف حساب عميل'!$C$3='كشف الحساب'!$C$4:$C$1000,ROW('كشف الحساب'!$B$4:$H$1000)-3))),ROW($A69)),MATCH('استخراج كشف حساب عميل'!B$5,'كشف الحساب'!$B$3:$G$3,0)),\"\")","v":""},{"$f":"IFERROR(INDEX('كشف الحساب'!$B$4:$H$1000,SMALL(IF('استخراج كشف حساب عميل'!$E$3<='كشف الحساب'!$B$4:$B$1000,IF('استخراج كشف حساب عميل'!$E$4>='كشف الحساب'!$B$4:$B$1000,IF('استخراج كشف حساب عميل'!$C$3='كشف الحساب'!$C$4:$C$1000,ROW('كشف الحساب'!$B$4:$H$1000)-3))),ROW($A69)),MATCH('استخراج كشف حساب عميل'!C$5,'كشف الحساب'!$B$3:$G$3,0)),\"\")","v":""},{"$f":"IFERROR(INDEX('كشف الحساب'!$B$4:$H$1000,SMALL(IF('استخراج كشف حساب عميل'!$E$3<='كشف الحساب'!$B$4:$B$1000,IF('استخراج كشف حساب عميل'!$E$4>='كشف الحساب'!$B$4:$B$1000,IF('استخراج كشف حساب عميل'!$C$3='كشف الحساب'!$C$4:$C$1000,ROW('كشف الحساب'!$B$4:$H$1000)-3))),ROW($A69)),MATCH('استخراج كشف حساب عميل'!D$5,'كشف الحساب'!$B$3:$G$3,0)),\"\")","v":""},{"$f":"IFERROR(INDEX('كشف الحساب'!$B$4:$H$1000,SMALL(IF('استخراج كشف حساب عميل'!$E$3<='كشف الحساب'!$B$4:$B$1000,IF('استخراج كشف حساب عميل'!$E$4>='كشف الحساب'!$B$4:$B$1000,IF('استخراج كشف حساب عميل'!$C$3='كشف الحساب'!$C$4:$C$1000,ROW('كشف الحساب'!$B$4:$H$1000)-3))),ROW($A69)),MATCH('استخراج كشف حساب عميل'!E$5,'كشف الحساب'!$B$3:$G$3,0)),\"\")","v":""}]
["",{"$f":"IFERROR(INDEX('كشف الحساب'!$B$4:$H$1000,SMALL(IF('استخراج كشف حساب عميل'!$E$3<='كشف الحساب'!$B$4:$B$1000,IF('استخراج كشف حساب عميل'!$E$4>='كشف الحساب'!$B$4:$B$1000,IF('استخراج كشف حساب عميل'!$C$3='كشف الحساب'!$C$4:$C$1000,ROW('كشف الحساب'!$B$4:$H$1000)-3))),ROW($A70)),MATCH('استخراج كشف حساب عميل'!B$5,'كشف الحساب'!$B$3:$G$3,0)),\"\")","v":""},{"$f":"IFERROR(INDEX('كشف الحساب'!$B$4:$H$1000,SMALL(IF('استخراج كشف حساب عميل'!$E$3<='كشف الحساب'!$B$4:$B$1000,IF('استخراج كشف حساب عميل'!$E$4>='كشف الحساب'!$B$4:$B$1000,IF('استخراج كشف حساب عميل'!$C$3='كشف الحساب'!$C$4:$C$1000,ROW('كشف الحساب'!$B$4:$H$1000)-3))),ROW($A70)),MATCH('استخراج كشف حساب عميل'!C$5,'كشف الحساب'!$B$3:$G$3,0)),\"\")","v":""},{"$f":"IFERROR(INDEX('كشف الحساب'!$B$4:$H$1000,SMALL(IF('استخراج كشف حساب عميل'!$E$3<='كشف الحساب'!$B$4:$B$1000,IF('استخراج كشف حساب عميل'!$E$4>='كشف الحساب'!$B$4:$B$1000,IF('استخراج كشف حساب عميل'!$C$3='كشف الحساب'!$C$4:$C$1000,ROW('كشف الحساب'!$B$4:$H$1000)-3))),ROW($A70)),MATCH('استخراج كشف حساب عميل'!D$5,'كشف الحساب'!$B$3:$G$3,0)),\"\")","v":""},{"$f":"IFERROR(INDEX('كشف الحساب'!$B$4:$H$1000,SMALL(IF('استخراج كشف حساب عميل'!$E$3<='كشف الحساب'!$B$4:$B$1000,IF('استخراج كشف حساب عميل'!$E$4>='كشف الحساب'!$B$4:$B$1000,IF('استخراج كشف حساب عميل'!$C$3='كشف الحساب'!$C$4:$C$1000,ROW('كشف الحساب'!$B$4:$H$1000)-3))),ROW($A70)),MATCH('استخراج كشف حساب عميل'!E$5,'كشف الحساب'!$B$3:$G$3,0)),\"\")","v":""}]
["",{"$f":"IFERROR(INDEX('كشف الحساب'!$B$4:$H$1000,SMALL(IF('استخراج كشف حساب عميل'!$E$3<='كشف الحساب'!$B$4:$B$1000,IF('استخراج كشف حساب عميل'!$E$4>='كشف الحساب'!$B$4:$B$1000,IF('استخراج كشف حساب عميل'!$C$3='كشف الحساب'!$C$4:$C$1000,ROW('كشف الحساب'!$B$4:$H$1000)-3))),ROW($A71)),MATCH('استخراج كشف حساب عميل'!B$5,'كشف الحساب'!$B$3:$G$3,0)),\"\")","v":""},{"$f":"IFERROR(INDEX('كشف الحساب'!$B$4:$H$1000,SMALL(IF('استخراج كشف حساب عميل'!$E$3<='كشف الحساب'!$B$4:$B$1000,IF('استخراج كشف حساب عميل'!$E$4>='كشف الحساب'!$B$4:$B$1000,IF('استخراج كشف حساب عميل'!$C$3='كشف الحساب'!$C$4:$C$1000,ROW('كشف الحساب'!$B$4:$H$1000)-3))),ROW($A71)),MATCH('استخراج كشف حساب عميل'!C$5,'كشف الحساب'!$B$3:$G$3,0)),\"\")","v":""},{"$f":"IFERROR(INDEX('كشف الحساب'!$B$4:$H$1000,SMALL(IF('استخراج كشف حساب عميل'!$E$3<='كشف الحساب'!$B$4:$B$1000,IF('استخراج كشف حساب عميل'!$E$4>='كشف الحساب'!$B$4:$B$1000,IF('استخراج كشف حساب عميل'!$C$3='كشف الحساب'!$C$4:$C$1000,ROW('كشف الحساب'!$B$4:$H$1000)-3))),ROW($A71)),MATCH('استخراج كشف حساب عميل'!D$5,'كشف الحساب'!$B$3:$G$3,0)),\"\")","v":""},{"$f":"IFERROR(INDEX('كشف الحساب'!$B$4:$H$1000,SMALL(IF('استخراج كشف حساب عميل'!$E$3<='كشف الحساب'!$B$4:$B$1000,IF('استخراج كشف حساب عميل'!$E$4>='كشف الحساب'!$B$4:$B$1000,IF('استخراج كشف حساب عميل'!$C$3='كشف الحساب'!$C$4:$C$1000,ROW('كشف الحساب'!$B$4:$H$1000)-3))),ROW($A71)),MATCH('استخراج كشف حساب عميل'!E$5,'كشف الحساب'!$B$3:$G$3,0)),\"\")","v":""}]
["",{"$f":"IFERROR(INDEX('كشف الحساب'!$B$4:$H$1000,SMALL(IF('استخراج كشف حساب عميل'!$E$3<='كشف الحساب'!$B$4:$B$1000,IF('استخراج كشف حساب عميل'!$E$4>='كشف الحساب'!$B$4:$B$1000,IF('استخراج كشف حساب عميل'!$C$3='كشف الحساب'!$C$4:$C$1000,ROW('كشف الحساب'!$B$4:$H$1000)-3))),ROW($A72)),MATCH('استخراج كشف حساب عميل'!B$5,'كشف الحساب'!$B$3:$G$3,0)),\"\")","v":""},{"$f":"IFERROR(INDEX('كشف الحساب'!$B$4:$H$1000,SMALL(IF('استخراج كشف حساب عميل'!$E$3<='كشف الحساب'!$B$4:$B$1000,IF('استخراج كشف حساب عميل'!$E$4>='كشف الحساب'!$B$4:$B$1000,IF('استخراج كشف حساب عميل'!$C$3='كشف الحساب'!$C$4:$C$1000,ROW('كشف الحساب'!$B$4:$H$1000)-3))),ROW($A72)),MATCH('استخراج كشف حساب عميل'!C$5,'كشف الحساب'!$B$3:$G$3,0)),\"\")","v":""},{"$f":"IFERROR(INDEX('كشف الحساب'!$B$4:$H$1000,SMALL(IF('استخراج كشف حساب عميل'!$E$3<='كشف الحساب'!$B$4:$B$1000,IF('استخراج كشف حساب عميل'!$E$4>='كشف الحساب'!$B$4:$B$1000,IF('استخراج كشف حساب عميل'!$C$3='كشف الحساب'!$C$4:$C$1000,ROW('كشف الحساب'!$B$4:$H$1000)-3))),ROW($A72)),MATCH('استخراج كشف حساب عميل'!D$5,'كشف الحساب'!$B$3:$G$3,0)),\"\")","v":""},{"$f":"IFERROR(INDEX('كشف الحساب'!$B$4:$H$1000,SMALL(IF('استخراج كشف حساب عميل'!$E$3<='كشف الحساب'!$B$4:$B$1000,IF('استخراج كشف حساب عميل'!$E$4>='كشف الحساب'!$B$4:$B$1000,IF('استخراج كشف حساب عميل'!$C$3='كشف الحساب'!$C$4:$C$1000,ROW('كشف الحساب'!$B$4:$H$1000)-3))),ROW($A72)),MATCH('استخراج كشف حساب عميل'!E$5,'كشف الحساب'!$B$3:$G$3,0)),\"\")","v":""}]
["",{"$f":"IFERROR(INDEX('كشف الحساب'!$B$4:$H$1000,SMALL(IF('استخراج كشف حساب عميل'!$E$3<='كشف الحساب'!$B$4:$B$1000,IF('استخراج كشف حساب عميل'!$E$4>='كشف الحساب'!$B$4:$B$1000,IF('استخراج كشف حساب عميل'!$C$3='كشف الحساب'!$C$4:$C$1000,ROW('كشف الحساب'!$B$4:$H$1000)-3))),ROW($A73)),MATCH('استخراج كشف حساب عميل'!B$5,'كشف الحساب'!$B$3:$G$3,0)),\"\")","v":""},{"$f":"IFERROR(INDEX('كشف الحساب'!$B$4:$H$1000,SMALL(IF('استخراج كشف حساب عميل'!$E$3<='كشف الحساب'!$B$4:$B$1000,IF('استخراج كشف حساب عميل'!$E$4>='كشف الحساب'!$B$4:$B$1000,IF('استخراج كشف حساب عميل'!$C$3='كشف الحساب'!$C$4:$C$1000,ROW('كشف الحساب'!$B$4:$H$1000)-3))),ROW($A73)),MATCH('استخراج كشف حساب عميل'!C$5,'كشف الحساب'!$B$3:$G$3,0)),\"\")","v":""},{"$f":"IFERROR(INDEX('كشف الحساب'!$B$4:$H$1000,SMALL(IF('استخراج كشف حساب عميل'!$E$3<='كشف الحساب'!$B$4:$B$1000,IF('استخراج كشف حساب عميل'!$E$4>='كشف الحساب'!$B$4:$B$1000,IF('استخراج كشف حساب عميل'!$C$3='كشف الحساب'!$C$4:$C$1000,ROW('كشف الحساب'!$B$4:$H$1000)-3))),ROW($A73)),MATCH('استخراج كشف حساب عميل'!D$5,'كشف الحساب'!$B$3:$G$3,0)),\"\")","v":""},{"$f":"IFERROR(INDEX('كشف الحساب'!$B$4:$H$1000,SMALL(IF('استخراج كشف حساب عميل'!$E$3<='كشف الحساب'!$B$4:$B$1000,IF('استخراج كشف حساب عميل'!$E$4>='كشف الحساب'!$B$4:$B$1000,IF('استخراج كشف حساب عميل'!$C$3='كشف الحساب'!$C$4:$C$1000,ROW('كشف الحساب'!$B$4:$H$1000)-3))),ROW($A73)),MATCH('استخراج كشف حساب عميل'!E$5,'كشف الحساب'!$B$3:$G$3,0)),\"\")","v":""}]
["",{"$f":"IFERROR(INDEX('كشف الحساب'!$B$4:$H$1000,SMALL(IF('استخراج كشف حساب عميل'!$E$3<='كشف الحساب'!$B$4:$B$1000,IF('استخراج كشف حساب عميل'!$E$4>='كشف الحساب'!$B$4:$B$1000,IF('استخراج كشف حساب عميل'!$C$3='كشف الحساب'!$C$4:$C$1000,ROW('كشف الحساب'!$B$4:$H$1000)-3))),ROW($A74)),MATCH('استخراج كشف حساب عميل'!B$5,'كشف الحساب'!$B$3:$G$3,0)),\"\")","v":""},{"$f":"IFERROR(INDEX('كشف الحساب'!$B$4:$H$1000,SMALL(IF('استخراج كشف حساب عميل'!$E$3<='كشف الحساب'!$B$4:$B$1000,IF('استخراج كشف حساب عميل'!$E$4>='كشف الحساب'!$B$4:$B$1000,IF('استخراج كشف حساب عميل'!$C$3='كشف الحساب'!$C$4:$C$1000,ROW('كشف الحساب'!$B$4:$H$1000)-3))),ROW($A74)),MATCH('استخراج كشف حساب عميل'!C$5,'كشف الحساب'!$B$3:$G$3,0)),\"\")","v":""},{"$f":"IFERROR(INDEX('كشف الحساب'!$B$4:$H$1000,SMALL(IF('استخراج كشف حساب عميل'!$E$3<='كشف الحساب'!$B$4:$B$1000,IF('استخراج كشف حساب عميل'!$E$4>='كشف الحساب'!$B$4:$B$1000,IF('استخراج كشف حساب عميل'!$C$3='كشف الحساب'!$C$4:$C$1000,ROW('كشف الحساب'!$B$4:$H$1000)-3))),ROW($A74)),MATCH('استخراج كشف حساب عميل'!D$5,'كشف الحساب'!$B$3:$G$3,0)),\"\")","v":""},{"$f":"IFERROR(INDEX('كشف الحساب'!$B$4:$H$1000,SMALL(IF('استخراج كشف حساب عميل'!$E$3<='كشف الحساب'!$B$4:$B$1000,IF('استخراج كشف حساب عميل'!$E$4>='كشف الحساب'!$B$4:$B$1000,IF('استخراج كشف حساب عميل'!$C$3='كشف الحساب'!$C$4:$C$1000,ROW('كشف الحساب'!$B$4:$H$1000)-3))),ROW($A74)),MATCH('استخراج كشف حساب عميل'!E$5,'كشف الحساب'!$B$3:$G$3,0)),\"\")","v":""}]
["",{"$f":"IFERROR(INDEX('كشف الحساب'!$B$4:$H$1000,SMALL(IF('استخراج كشف حساب عميل'!$E$3<='كشف الحساب'!$B$4:$B$1000,IF('استخراج كشف حساب عميل'!$E$4>='كشف الحساب'!$B$4:$B$1000,IF('استخراج كشف حساب عميل'!$C$3='كشف الحساب'!$C$4:$C$1000,ROW('كشف الحساب'!$B$4:$H$1000)-3))),ROW($A75)),MATCH('استخراج كشف حساب عميل'!B$5,'كشف الحساب'!$B$3:$G$3,0)),\"\")","v":""},{"$f":"IFERROR(INDEX('كشف الحساب'!$B$4:$H$1000,SMALL(IF('استخراج كشف حساب عميل'!$E$3<='كشف الحساب'!$B$4:$B$1000,IF('استخراج كشف حساب عميل'!$E$4>='كشف الحساب'!$B$4:$B$1000,IF('استخراج كشف حساب عميل'!$C$3='كشف الحساب'!$C$4:$C$1000,ROW('كشف الحساب'!$B$4:$H$1000)-3))),ROW($A75)),MATCH('استخراج كشف حساب عميل'!C$5,'كشف الحساب'!$B$3:$G$3,0)),\"\")","v":""},{"$f":"IFERROR(INDEX('كشف الحساب'!$B$4:$H$1000,SMALL(IF('استخراج كشف حساب عميل'!$E$3<='كشف الحساب'!$B$4:$B$1000,IF('استخراج كشف حساب عميل'!$E$4>='كشف الحساب'!$B$4:$B$1000,IF('استخراج كشف حساب عميل'!$C$3='كشف الحساب'!$C$4:$C$1000,ROW('كشف الحساب'!$B$4:$H$1000)-3))),ROW($A75)),MATCH('استخراج كشف حساب عميل'!D$5,'كشف الحساب'!$B$3:$G$3,0)),\"\")","v":""},{"$f":"IFERROR(INDEX('كشف الحساب'!$B$4:$H$1000,SMALL(IF('استخراج كشف حساب عميل'!$E$3<='كشف الحساب'!$B$4:$B$1000,IF('استخراج كشف حساب عميل'!$E$4>='كشف الحساب'!$B$4:$B$1000,IF('استخراج كشف حساب عميل'!$C$3='كشف الحساب'!$C$4:$C$1000,ROW('كشف الحساب'!$B$4:$H$1000)-3))),ROW($A75)),MATCH('استخراج كشف حساب عميل'!E$5,'كشف الحساب'!$B$3:$G$3,0)),\"\")","v":""}]
["",{"$f":"IFERROR(INDEX('كشف الحساب'!$B$4:$H$1000,SMALL(IF('استخراج كشف حساب عميل'!$E$3<='كشف الحساب'!$B$4:$B$1000,IF('استخراج كشف حساب عميل'!$E$4>='كشف الحساب'!$B$4:$B$1000,IF('استخراج كشف حساب عميل'!$C$3='كشف الحساب'!$C$4:$C$1000,ROW('كشف الحساب'!$B$4:$H$1000)-3))),ROW($A76)),MATCH('استخراج كشف حساب عميل'!B$5,'كشف الحساب'!$B$3:$G$3,0)),\"\")","v":""},{"$f":"IFERROR(INDEX('كشف الحساب'!$B$4:$H$1000,SMALL(IF('استخراج كشف حساب عميل'!$E$3<='كشف الحساب'!$B$4:$B$1000,IF('استخراج كشف حساب عميل'!$E$4>='كشف الحساب'!$B$4:$B$1000,IF('استخراج كشف حساب عميل'!$C$3='كشف الحساب'!$C$4:$C$1000,ROW('كشف الحساب'!$B$4:$H$1000)-3))),ROW($A76)),MATCH('استخراج كشف حساب عميل'!C$5,'كشف الحساب'!$B$3:$G$3,0)),\"\")","v":""},{"$f":"IFERROR(INDEX('كشف الحساب'!$B$4:$H$1000,SMALL(IF('استخراج كشف حساب عميل'!$E$3<='كشف الحساب'!$B$4:$B$1000,IF('استخراج كشف حساب عميل'!$E$4>='كشف الحساب'!$B$4:$B$1000,IF('استخراج كشف حساب عميل'!$C$3='كشف الحساب'!$C$4:$C$1000,ROW('كشف الحساب'!$B$4:$H$1000)-3))),ROW($A76)),MATCH('استخراج كشف حساب عميل'!D$5,'كشف الحساب'!$B$3:$G$3,0)),\"\")","v":""},{"$f":"IFERROR(INDEX('كشف الحساب'!$B$4:$H$1000,SMALL(IF('استخراج كشف حساب عميل'!$E$3<='كشف الحساب'!$B$4:$B$1000,IF('استخراج كشف حساب عميل'!$E$4>='كشف الحساب'!$B$4:$B$1000,IF('استخراج كشف حساب عميل'!$C$3='كشف الحساب'!$C$4:$C$1000,ROW('كشف الحساب'!$B$4:$H$1000)-3))),ROW($A76)),MATCH('استخراج كشف حساب عميل'!E$5,'كشف الحساب'!$B$3:$G$3,0)),\"\")","v":""}]
["",{"$f":"IFERROR(INDEX('كشف الحساب'!$B$4:$H$1000,SMALL(IF('استخراج كشف حساب عميل'!$E$3<='كشف الحساب'!$B$4:$B$1000,IF('استخراج كشف حساب عميل'!$E$4>='كشف الحساب'!$B$4:$B$1000,IF('استخراج كشف حساب عميل'!$C$3='كشف الحساب'!$C$4:$C$1000,ROW('كشف الحساب'!$B$4:$H$1000)-3))),ROW($A77)),MATCH('استخراج كشف حساب عميل'!B$5,'كشف الحساب'!$B$3:$G$3,0)),\"\")","v":""},{"$f":"IFERROR(INDEX('كشف الحساب'!$B$4:$H$1000,SMALL(IF('استخراج كشف حساب عميل'!$E$3<='كشف الحساب'!$B$4:$B$1000,IF('استخراج كشف حساب عميل'!$E$4>='كشف الحساب'!$B$4:$B$1000,IF('استخراج كشف حساب عميل'!$C$3='كشف الحساب'!$C$4:$C$1000,ROW('كشف الحساب'!$B$4:$H$1000)-3))),ROW($A77)),MATCH('استخراج كشف حساب عميل'!C$5,'كشف الحساب'!$B$3:$G$3,0)),\"\")","v":""},{"$f":"IFERROR(INDEX('كشف الحساب'!$B$4:$H$1000,SMALL(IF('استخراج كشف حساب عميل'!$E$3<='كشف الحساب'!$B$4:$B$1000,IF('استخراج كشف حساب عميل'!$E$4>='كشف الحساب'!$B$4:$B$1000,IF('استخراج كشف حساب عميل'!$C$3='كشف الحساب'!$C$4:$C$1000,ROW('كشف الحساب'!$B$4:$H$1000)-3))),ROW($A77)),MATCH('استخراج كشف حساب عميل'!D$5,'كشف الحساب'!$B$3:$G$3,0)),\"\")","v":""},{"$f":"IFERROR(INDEX('كشف الحساب'!$B$4:$H$1000,SMALL(IF('استخراج كشف حساب عميل'!$E$3<='كشف الحساب'!$B$4:$B$1000,IF('استخراج كشف حساب عميل'!$E$4>='كشف الحساب'!$B$4:$B$1000,IF('استخراج كشف حساب عميل'!$C$3='كشف الحساب'!$C$4:$C$1000,ROW('كشف الحساب'!$B$4:$H$1000)-3))),ROW($A77)),MATCH('استخراج كشف حساب عميل'!E$5,'كشف الحساب'!$B$3:$G$3,0)),\"\")","v":""}]
["",{"$f":"IFERROR(INDEX('كشف الحساب'!$B$4:$H$1000,SMALL(IF('استخراج كشف حساب عميل'!$E$3<='كشف الحساب'!$B$4:$B$1000,IF('استخراج كشف حساب عميل'!$E$4>='كشف الحساب'!$B$4:$B$1000,IF('استخراج كشف حساب عميل'!$C$3='كشف الحساب'!$C$4:$C$1000,ROW('كشف الحساب'!$B$4:$H$1000)-3))),ROW($A78)),MATCH('استخراج كشف حساب عميل'!B$5,'كشف الحساب'!$B$3:$G$3,0)),\"\")","v":""},{"$f":"IFERROR(INDEX('كشف الحساب'!$B$4:$H$1000,SMALL(IF('استخراج كشف حساب عميل'!$E$3<='كشف الحساب'!$B$4:$B$1000,IF('استخراج كشف حساب عميل'!$E$4>='كشف الحساب'!$B$4:$B$1000,IF('استخراج كشف حساب عميل'!$C$3='كشف الحساب'!$C$4:$C$1000,ROW('كشف الحساب'!$B$4:$H$1000)-3))),ROW($A78)),MATCH('استخراج كشف حساب عميل'!C$5,'كشف الحساب'!$B$3:$G$3,0)),\"\")","v":""},{"$f":"IFERROR(INDEX('كشف الحساب'!$B$4:$H$1000,SMALL(IF('استخراج كشف حساب عميل'!$E$3<='كشف الحساب'!$B$4:$B$1000,IF('استخراج كشف حساب عميل'!$E$4>='كشف الحساب'!$B$4:$B$1000,IF('استخراج كشف حساب عميل'!$C$3='كشف الحساب'!$C$4:$C$1000,ROW('كشف الحساب'!$B$4:$H$1000)-3))),ROW($A78)),MATCH('استخراج كشف حساب عميل'!D$5,'كشف الحساب'!$B$3:$G$3,0)),\"\")","v":""},{"$f":"IFERROR(INDEX('كشف الحساب'!$B$4:$H$1000,SMALL(IF('استخراج كشف حساب عميل'!$E$3<='كشف الحساب'!$B$4:$B$1000,IF('استخراج كشف حساب عميل'!$E$4>='كشف الحساب'!$B$4:$B$1000,IF('استخراج كشف حساب عميل'!$C$3='كشف الحساب'!$C$4:$C$1000,ROW('كشف الحساب'!$B$4:$H$1000)-3))),ROW($A78)),MATCH('استخراج كشف حساب عميل'!E$5,'كشف الحساب'!$B$3:$G$3,0)),\"\")","v":""}]
["",{"$f":"IFERROR(INDEX('كشف الحساب'!$B$4:$H$1000,SMALL(IF('استخراج كشف حساب عميل'!$E$3<='كشف الحساب'!$B$4:$B$1000,IF('استخراج كشف حساب عميل'!$E$4>='كشف الحساب'!$B$4:$B$1000,IF('استخراج كشف حساب عميل'!$C$3='كشف الحساب'!$C$4:$C$1000,ROW('كشف الحساب'!$B$4:$H$1000)-3))),ROW($A79)),MATCH('استخراج كشف حساب عميل'!B$5,'كشف الحساب'!$B$3:$G$3,0)),\"\")","v":""},{"$f":"IFERROR(INDEX('كشف الحساب'!$B$4:$H$1000,SMALL(IF('استخراج كشف حساب عميل'!$E$3<='كشف الحساب'!$B$4:$B$1000,IF('استخراج كشف حساب عميل'!$E$4>='كشف الحساب'!$B$4:$B$1000,IF('استخراج كشف حساب عميل'!$C$3='كشف الحساب'!$C$4:$C$1000,ROW('كشف الحساب'!$B$4:$H$1000)-3))),ROW($A79)),MATCH('استخراج كشف حساب عميل'!C$5,'كشف الحساب'!$B$3:$G$3,0)),\"\")","v":""},{"$f":"IFERROR(INDEX('كشف الحساب'!$B$4:$H$1000,SMALL(IF('استخراج كشف حساب عميل'!$E$3<='كشف الحساب'!$B$4:$B$1000,IF('استخراج كشف حساب عميل'!$E$4>='كشف الحساب'!$B$4:$B$1000,IF('استخراج كشف حساب عميل'!$C$3='كشف الحساب'!$C$4:$C$1000,ROW('كشف الحساب'!$B$4:$H$1000)-3))),ROW($A79)),MATCH('استخراج كشف حساب عميل'!D$5,'كشف الحساب'!$B$3:$G$3,0)),\"\")","v":""},{"$f":"IFERROR(INDEX('كشف الحساب'!$B$4:$H$1000,SMALL(IF('استخراج كشف حساب عميل'!$E$3<='كشف الحساب'!$B$4:$B$1000,IF('استخراج كشف حساب عميل'!$E$4>='كشف الحساب'!$B$4:$B$1000,IF('استخراج كشف حساب عميل'!$C$3='كشف الحساب'!$C$4:$C$1000,ROW('كشف الحساب'!$B$4:$H$1000)-3))),ROW($A79)),MATCH('استخراج كشف حساب عميل'!E$5,'كشف الحساب'!$B$3:$G$3,0)),\"\")","v":""}]
["",{"$f":"IFERROR(INDEX('كشف الحساب'!$B$4:$H$1000,SMALL(IF('استخراج كشف حساب عميل'!$E$3<='كشف الحساب'!$B$4:$B$1000,IF('استخراج كشف حساب عميل'!$E$4>='كشف الحساب'!$B$4:$B$1000,IF('استخراج كشف حساب عميل'!$C$3='كشف الحساب'!$C$4:$C$1000,ROW('كشف الحساب'!$B$4:$H$1000)-3))),ROW($A80)),MATCH('استخراج كشف حساب عميل'!B$5,'كشف الحساب'!$B$3:$G$3,0)),\"\")","v":""},{"$f":"IFERROR(INDEX('كشف الحساب'!$B$4:$H$1000,SMALL(IF('استخراج كشف حساب عميل'!$E$3<='كشف الحساب'!$B$4:$B$1000,IF('استخراج كشف حساب عميل'!$E$4>='كشف الحساب'!$B$4:$B$1000,IF('استخراج كشف حساب عميل'!$C$3='كشف الحساب'!$C$4:$C$1000,ROW('كشف الحساب'!$B$4:$H$1000)-3))),ROW($A80)),MATCH('استخراج كشف حساب عميل'!C$5,'كشف الحساب'!$B$3:$G$3,0)),\"\")","v":""},{"$f":"IFERROR(INDEX('كشف الحساب'!$B$4:$H$1000,SMALL(IF('استخراج كشف حساب عميل'!$E$3<='كشف الحساب'!$B$4:$B$1000,IF('استخراج كشف حساب عميل'!$E$4>='كشف الحساب'!$B$4:$B$1000,IF('استخراج كشف حساب عميل'!$C$3='كشف الحساب'!$C$4:$C$1000,ROW('كشف الحساب'!$B$4:$H$1000)-3))),ROW($A80)),MATCH('استخراج كشف حساب عميل'!D$5,'كشف الحساب'!$B$3:$G$3,0)),\"\")","v":""},{"$f":"IFERROR(INDEX('كشف الحساب'!$B$4:$H$1000,SMALL(IF('استخراج كشف حساب عميل'!$E$3<='كشف الحساب'!$B$4:$B$1000,IF('استخراج كشف حساب عميل'!$E$4>='كشف الحساب'!$B$4:$B$1000,IF('استخراج كشف حساب عميل'!$C$3='كشف الحساب'!$C$4:$C$1000,ROW('كشف الحساب'!$B$4:$H$1000)-3))),ROW($A80)),MATCH('استخراج كشف حساب عميل'!E$5,'كشف الحساب'!$B$3:$G$3,0)),\"\")","v":""}]
["",{"$f":"IFERROR(INDEX('كشف الحساب'!$B$4:$H$1000,SMALL(IF('استخراج كشف حساب عميل'!$E$3<='كشف الحساب'!$B$4:$B$1000,IF('استخراج كشف حساب عميل'!$E$4>='كشف الحساب'!$B$4:$B$1000,IF('استخراج كشف حساب عميل'!$C$3='كشف الحساب'!$C$4:$C$1000,ROW('كشف الحساب'!$B$4:$H$1000)-3))),ROW($A81)),MATCH('استخراج كشف حساب عميل'!B$5,'كشف الحساب'!$B$3:$G$3,0)),\"\")","v":""},{"$f":"IFERROR(INDEX('كشف الحساب'!$B$4:$H$1000,SMALL(IF('استخراج كشف حساب عميل'!$E$3<='كشف الحساب'!$B$4:$B$1000,IF('استخراج كشف حساب عميل'!$E$4>='كشف الحساب'!$B$4:$B$1000,IF('استخراج كشف حساب عميل'!$C$3='كشف الحساب'!$C$4:$C$1000,ROW('كشف الحساب'!$B$4:$H$1000)-3))),ROW($A81)),MATCH('استخراج كشف حساب عميل'!C$5,'كشف الحساب'!$B$3:$G$3,0)),\"\")","v":""},{"$f":"IFERROR(INDEX('كشف الحساب'!$B$4:$H$1000,SMALL(IF('استخراج كشف حساب عميل'!$E$3<='كشف الحساب'!$B$4:$B$1000,IF('استخراج كشف حساب عميل'!$E$4>='كشف الحساب'!$B$4:$B$1000,IF('استخراج كشف حساب عميل'!$C$3='كشف الحساب'!$C$4:$C$1000,ROW('كشف الحساب'!$B$4:$H$1000)-3))),ROW($A81)),MATCH('استخراج كشف حساب عميل'!D$5,'كشف الحساب'!$B$3:$G$3,0)),\"\")","v":""},{"$f":"IFERROR(INDEX('كشف الحساب'!$B$4:$H$1000,SMALL(IF('استخراج كشف حساب عميل'!$E$3<='كشف الحساب'!$B$4:$B$1000,IF('استخراج كشف حساب عميل'!$E$4>='كشف الحساب'!$B$4:$B$1000,IF('استخراج كشف حساب عميل'!$C$3='كشف الحساب'!$C$4:$C$1000,ROW('كشف الحساب'!$B$4:$H$1000)-3))),ROW($A81)),MATCH('استخراج كشف حساب عميل'!E$5,'كشف الحساب'!$B$3:$G$3,0)),\"\")","v":""}]
["",{"$f":"IFERROR(INDEX('كشف الحساب'!$B$4:$H$1000,SMALL(IF('استخراج كشف حساب عميل'!$E$3<='كشف الحساب'!$B$4:$B$1000,IF('استخراج كشف حساب عميل'!$E$4>='كشف الحساب'!$B$4:$B$1000,IF('استخراج كشف حساب عميل'!$C$3='كشف الحساب'!$C$4:$C$1000,ROW('كشف الحساب'!$B$4:$H$1000)-3))),ROW($A82)),MATCH('استخراج كشف حساب عميل'!B$5,'كشف الحساب'!$B$3:$G$3,0)),\"\")","v":""},{"$f":"IFERROR(INDEX('كشف الحساب'!$B$4:$H$1000,SMALL(IF('استخراج كشف حساب عميل'!$E$3<='كشف الحساب'!$B$4:$B$1000,IF('استخراج كشف حساب عميل'!$E$4>='كشف الحساب'!$B$4:$B$1000,IF('استخراج كشف حساب عميل'!$C$3='كشف الحساب'!$C$4:$C$1000,ROW('كشف الحساب'!$B$4:$H$1000)-3))),ROW($A82)),MATCH('استخراج كشف حساب عميل'!C$5,'كشف الحساب'!$B$3:$G$3,0)),\"\")","v":""},{"$f":"IFERROR(INDEX('كشف الحساب'!$B$4:$H$1000,SMALL(IF('استخراج كشف حساب عميل'!$E$3<='كشف الحساب'!$B$4:$B$1000,IF('استخراج كشف حساب عميل'!$E$4>='كشف الحساب'!$B$4:$B$1000,IF('استخراج كشف حساب عميل'!$C$3='كشف الحساب'!$C$4:$C$1000,ROW('كشف الحساب'!$B$4:$H$1000)-3))),ROW($A82)),MATCH('استخراج كشف حساب عميل'!D$5,'كشف الحساب'!$B$3:$G$3,0)),\"\")","v":""},{"$f":"IFERROR(INDEX('كشف الحساب'!$B$4:$H$1000,SMALL(IF('استخراج كشف حساب عميل'!$E$3<='كشف الحساب'!$B$4:$B$1000,IF('استخراج كشف حساب عميل'!$E$4>='كشف الحساب'!$B$4:$B$1000,IF('استخراج كشف حساب عميل'!$C$3='كشف الحساب'!$C$4:$C$1000,ROW('كشف الحساب'!$B$4:$H$1000)-3))),ROW($A82)),MATCH('استخراج كشف حساب عميل'!E$5,'كشف الحساب'!$B$3:$G$3,0)),\"\")","v":""}]
["",{"$f":"IFERROR(INDEX('كشف الحساب'!$B$4:$H$1000,SMALL(IF('استخراج كشف حساب عميل'!$E$3<='كشف الحساب'!$B$4:$B$1000,IF('استخراج كشف حساب عميل'!$E$4>='كشف الحساب'!$B$4:$B$1000,IF('استخراج كشف حساب عميل'!$C$3='كشف الحساب'!$C$4:$C$1000,ROW('كشف الحساب'!$B$4:$H$1000)-3))),ROW($A83)),MATCH('استخراج كشف حساب عميل'!B$5,'كشف الحساب'!$B$3:$G$3,0)),\"\")","v":""},{"$f":"IFERROR(INDEX('كشف الحساب'!$B$4:$H$1000,SMALL(IF('استخراج كشف حساب عميل'!$E$3<='كشف الحساب'!$B$4:$B$1000,IF('استخراج كشف حساب عميل'!$E$4>='كشف الحساب'!$B$4:$B$1000,IF('استخراج كشف حساب عميل'!$C$3='كشف الحساب'!$C$4:$C$1000,ROW('كشف الحساب'!$B$4:$H$1000)-3))),ROW($A83)),MATCH('استخراج كشف حساب عميل'!C$5,'كشف الحساب'!$B$3:$G$3,0)),\"\")","v":""},{"$f":"IFERROR(INDEX('كشف الحساب'!$B$4:$H$1000,SMALL(IF('استخراج كشف حساب عميل'!$E$3<='كشف الحساب'!$B$4:$B$1000,IF('استخراج كشف حساب عميل'!$E$4>='كشف الحساب'!$B$4:$B$1000,IF('استخراج كشف حساب عميل'!$C$3='كشف الحساب'!$C$4:$C$1000,ROW('كشف الحساب'!$B$4:$H$1000)-3))),ROW($A83)),MATCH('استخراج كشف حساب عميل'!D$5,'كشف الحساب'!$B$3:$G$3,0)),\"\")","v":""},{"$f":"IFERROR(INDEX('كشف الحساب'!$B$4:$H$1000,SMALL(IF('استخراج كشف حساب عميل'!$E$3<='كشف الحساب'!$B$4:$B$1000,IF('استخراج كشف حساب عميل'!$E$4>='كشف الحساب'!$B$4:$B$1000,IF('استخراج كشف حساب عميل'!$C$3='كشف الحساب'!$C$4:$C$1000,ROW('كشف الحساب'!$B$4:$H$1000)-3))),ROW($A83)),MATCH('استخراج كشف حساب عميل'!E$5,'كشف الحساب'!$B$3:$G$3,0)),\"\")","v":""}]
["",{"$f":"IFERROR(INDEX('كشف الحساب'!$B$4:$H$1000,SMALL(IF('استخراج كشف حساب عميل'!$E$3<='كشف الحساب'!$B$4:$B$1000,IF('استخراج كشف حساب عميل'!$E$4>='كشف الحساب'!$B$4:$B$1000,IF('استخراج كشف حساب عميل'!$C$3='كشف الحساب'!$C$4:$C$1000,ROW('كشف الحساب'!$B$4:$H$1000)-3))),ROW($A84)),MATCH('استخراج كشف حساب عميل'!B$5,'كشف الحساب'!$B$3:$G$3,0)),\"\")","v":""},{"$f":"IFERROR(INDEX('كشف الحساب'!$B$4:$H$1000,SMALL(IF('استخراج كشف حساب عميل'!$E$3<='كشف الحساب'!$B$4:$B$1000,IF('استخراج كشف حساب عميل'!$E$4>='كشف الحساب'!$B$4:$B$1000,IF('استخراج كشف حساب عميل'!$C$3='كشف الحساب'!$C$4:$C$1000,ROW('كشف الحساب'!$B$4:$H$1000)-3))),ROW($A84)),MATCH('استخراج كشف حساب عميل'!C$5,'كشف الحساب'!$B$3:$G$3,0)),\"\")","v":""},{"$f":"IFERROR(INDEX('كشف الحساب'!$B$4:$H$1000,SMALL(IF('استخراج كشف حساب عميل'!$E$3<='كشف الحساب'!$B$4:$B$1000,IF('استخراج كشف حساب عميل'!$E$4>='كشف الحساب'!$B$4:$B$1000,IF('استخراج كشف حساب عميل'!$C$3='كشف الحساب'!$C$4:$C$1000,ROW('كشف الحساب'!$B$4:$H$1000)-3))),ROW($A84)),MATCH('استخراج كشف حساب عميل'!D$5,'كشف الحساب'!$B$3:$G$3,0)),\"\")","v":""},{"$f":"IFERROR(INDEX('كشف الحساب'!$B$4:$H$1000,SMALL(IF('استخراج كشف حساب عميل'!$E$3<='كشف الحساب'!$B$4:$B$1000,IF('استخراج كشف حساب عميل'!$E$4>='كشف الحساب'!$B$4:$B$1000,IF('استخراج كشف حساب عميل'!$C$3='كشف الحساب'!$C$4:$C$1000,ROW('كشف الحساب'!$B$4:$H$1000)-3))),ROW($A84)),MATCH('استخراج كشف حساب عميل'!E$5,'كشف الحساب'!$B$3:$G$3,0)),\"\")","v":""}]
["",{"$f":"IFERROR(INDEX('كشف الحساب'!$B$4:$H$1000,SMALL(IF('استخراج كشف حساب عميل'!$E$3<='كشف الحساب'!$B$4:$B$1000,IF('استخراج كشف حساب عميل'!$E$4>='كشف الحساب'!$B$4:$B$1000,IF('استخراج كشف حساب عميل'!$C$3='كشف الحساب'!$C$4:$C$1000,ROW('كشف الحساب'!$B$4:$H$1000)-3))),ROW($A85)),MATCH('استخراج كشف حساب عميل'!B$5,'كشف الحساب'!$B$3:$G$3,0)),\"\")","v":""},{"$f":"IFERROR(INDEX('كشف الحساب'!$B$4:$H$1000,SMALL(IF('استخراج كشف حساب عميل'!$E$3<='كشف الحساب'!$B$4:$B$1000,IF('استخراج كشف حساب عميل'!$E$4>='كشف الحساب'!$B$4:$B$1000,IF('استخراج كشف حساب عميل'!$C$3='كشف الحساب'!$C$4:$C$1000,ROW('كشف الحساب'!$B$4:$H$1000)-3))),ROW($A85)),MATCH('استخراج كشف حساب عميل'!C$5,'كشف الحساب'!$B$3:$G$3,0)),\"\")","v":""},{"$f":"IFERROR(INDEX('كشف الحساب'!$B$4:$H$1000,SMALL(IF('استخراج كشف حساب عميل'!$E$3<='كشف الحساب'!$B$4:$B$1000,IF('استخراج كشف حساب عميل'!$E$4>='كشف الحساب'!$B$4:$B$1000,IF('استخراج كشف حساب عميل'!$C$3='كشف الحساب'!$C$4:$C$1000,ROW('كشف الحساب'!$B$4:$H$1000)-3))),ROW($A85)),MATCH('استخراج كشف حساب عميل'!D$5,'كشف الحساب'!$B$3:$G$3,0)),\"\")","v":""},{"$f":"IFERROR(INDEX('كشف الحساب'!$B$4:$H$1000,SMALL(IF('استخراج كشف حساب عميل'!$E$3<='كشف الحساب'!$B$4:$B$1000,IF('استخراج كشف حساب عميل'!$E$4>='كشف الحساب'!$B$4:$B$1000,IF('استخراج كشف حساب عميل'!$C$3='كشف الحساب'!$C$4:$C$1000,ROW('كشف الحساب'!$B$4:$H$1000)-3))),ROW($A85)),MATCH('استخراج كشف حساب عميل'!E$5,'كشف الحساب'!$B$3:$G$3,0)),\"\")","v":""}]
["",{"$f":"IFERROR(INDEX('كشف الحساب'!$B$4:$H$1000,SMALL(IF('استخراج كشف حساب عميل'!$E$3<='كشف الحساب'!$B$4:$B$1000,IF('استخراج كشف حساب عميل'!$E$4>='كشف الحساب'!$B$4:$B$1000,IF('استخراج كشف حساب عميل'!$C$3='كشف الحساب'!$C$4:$C$1000,ROW('كشف الحساب'!$B$4:$H$1000)-3))),ROW($A86)),MATCH('استخراج كشف حساب عميل'!B$5,'كشف الحساب'!$B$3:$G$3,0)),\"\")","v":""},{"$f":"IFERROR(INDEX('كشف الحساب'!$B$4:$H$1000,SMALL(IF('استخراج كشف حساب عميل'!$E$3<='كشف الحساب'!$B$4:$B$1000,IF('استخراج كشف حساب عميل'!$E$4>='كشف الحساب'!$B$4:$B$1000,IF('استخراج كشف حساب عميل'!$C$3='كشف الحساب'!$C$4:$C$1000,ROW('كشف الحساب'!$B$4:$H$1000)-3))),ROW($A86)),MATCH('استخراج كشف حساب عميل'!C$5,'كشف الحساب'!$B$3:$G$3,0)),\"\")","v":""},{"$f":"IFERROR(INDEX('كشف الحساب'!$B$4:$H$1000,SMALL(IF('استخراج كشف حساب عميل'!$E$3<='كشف الحساب'!$B$4:$B$1000,IF('استخراج كشف حساب عميل'!$E$4>='كشف الحساب'!$B$4:$B$1000,IF('استخراج كشف حساب عميل'!$C$3='كشف الحساب'!$C$4:$C$1000,ROW('كشف الحساب'!$B$4:$H$1000)-3))),ROW($A86)),MATCH('استخراج كشف حساب عميل'!D$5,'كشف الحساب'!$B$3:$G$3,0)),\"\")","v":""},{"$f":"IFERROR(INDEX('كشف الحساب'!$B$4:$H$1000,SMALL(IF('استخراج كشف حساب عميل'!$E$3<='كشف الحساب'!$B$4:$B$1000,IF('استخراج كشف حساب عميل'!$E$4>='كشف الحساب'!$B$4:$B$1000,IF('استخراج كشف حساب عميل'!$C$3='كشف الحساب'!$C$4:$C$1000,ROW('كشف الحساب'!$B$4:$H$1000)-3))),ROW($A86)),MATCH('استخراج كشف حساب عميل'!E$5,'كشف الحساب'!$B$3:$G$3,0)),\"\")","v":""}]
["",{"$f":"IFERROR(INDEX('كشف الحساب'!$B$4:$H$1000,SMALL(IF('استخراج كشف حساب عميل'!$E$3<='كشف الحساب'!$B$4:$B$1000,IF('استخراج كشف حساب عميل'!$E$4>='كشف الحساب'!$B$4:$B$1000,IF('استخراج كشف حساب عميل'!$C$3='كشف الحساب'!$C$4:$C$1000,ROW('كشف الحساب'!$B$4:$H$1000)-3))),ROW($A87)),MATCH('استخراج كشف حساب عميل'!B$5,'كشف الحساب'!$B$3:$G$3,0)),\"\")","v":""},{"$f":"IFERROR(INDEX('كشف الحساب'!$B$4:$H$1000,SMALL(IF('استخراج كشف حساب عميل'!$E$3<='كشف الحساب'!$B$4:$B$1000,IF('استخراج كشف حساب عميل'!$E$4>='كشف الحساب'!$B$4:$B$1000,IF('استخراج كشف حساب عميل'!$C$3='كشف الحساب'!$C$4:$C$1000,ROW('كشف الحساب'!$B$4:$H$1000)-3))),ROW($A87)),MATCH('استخراج كشف حساب عميل'!C$5,'كشف الحساب'!$B$3:$G$3,0)),\"\")","v":""},{"$f":"IFERROR(INDEX('كشف الحساب'!$B$4:$H$1000,SMALL(IF('استخراج كشف حساب عميل'!$E$3<='كشف الحساب'!$B$4:$B$1000,IF('استخراج كشف حساب عميل'!$E$4>='كشف الحساب'!$B$4:$B$1000,IF('استخراج كشف حساب عميل'!$C$3='كشف الحساب'!$C$4:$C$1000,ROW('كشف الحساب'!$B$4:$H$1000)-3))),ROW($A87)),MATCH('استخراج كشف حساب عميل'!D$5,'كشف الحساب'!$B$3:$G$3,0)),\"\")","v":""},{"$f":"IFERROR(INDEX('كشف الحساب'!$B$4:$H$1000,SMALL(IF('استخراج كشف حساب عميل'!$E$3<='كشف الحساب'!$B$4:$B$1000,IF('استخراج كشف حساب عميل'!$E$4>='كشف الحساب'!$B$4:$B$1000,IF('استخراج كشف حساب عميل'!$C$3='كشف الحساب'!$C$4:$C$1000,ROW('كشف الحساب'!$B$4:$H$1000)-3))),ROW($A87)),MATCH('استخراج كشف حساب عميل'!E$5,'كشف الحساب'!$B$3:$G$3,0)),\"\")","v":""}]
["",{"$f":"IFERROR(INDEX('كشف الحساب'!$B$4:$H$1000,SMALL(IF('استخراج كشف حساب عميل'!$E$3<='كشف الحساب'!$B$4:$B$1000,IF('استخراج كشف حساب عميل'!$E$4>='كشف الحساب'!$B$4:$B$1000,IF('استخراج كشف حساب عميل'!$C$3='كشف الحساب'!$C$4:$C$1000,ROW('كشف الحساب'!$B$4:$H$1000)-3))),ROW($A88)),MATCH('استخراج كشف حساب عميل'!B$5,'كشف الحساب'!$B$3:$G$3,0)),\"\")","v":""},{"$f":"IFERROR(INDEX('كشف الحساب'!$B$4:$H$1000,SMALL(IF('استخراج كشف حساب عميل'!$E$3<='كشف الحساب'!$B$4:$B$1000,IF('استخراج كشف حساب عميل'!$E$4>='كشف الحساب'!$B$4:$B$1000,IF('استخراج كشف حساب عميل'!$C$3='كشف الحساب'!$C$4:$C$1000,ROW('كشف الحساب'!$B$4:$H$1000)-3))),ROW($A88)),MATCH('استخراج كشف حساب عميل'!C$5,'كشف الحساب'!$B$3:$G$3,0)),\"\")","v":""},{"$f":"IFERROR(INDEX('كشف الحساب'!$B$4:$H$1000,SMALL(IF('استخراج كشف حساب عميل'!$E$3<='كشف الحساب'!$B$4:$B$1000,IF('استخراج كشف حساب عميل'!$E$4>='كشف الحساب'!$B$4:$B$1000,IF('استخراج كشف حساب عميل'!$C$3='كشف الحساب'!$C$4:$C$1000,ROW('كشف الحساب'!$B$4:$H$1000)-3))),ROW($A88)),MATCH('استخراج كشف حساب عميل'!D$5,'كشف الحساب'!$B$3:$G$3,0)),\"\")","v":""},{"$f":"IFERROR(INDEX('كشف الحساب'!$B$4:$H$1000,SMALL(IF('استخراج كشف حساب عميل'!$E$3<='كشف الحساب'!$B$4:$B$1000,IF('استخراج كشف حساب عميل'!$E$4>='كشف الحساب'!$B$4:$B$1000,IF('استخراج كشف حساب عميل'!$C$3='كشف الحساب'!$C$4:$C$1000,ROW('كشف الحساب'!$B$4:$H$1000)-3))),ROW($A88)),MATCH('استخراج كشف حساب عميل'!E$5,'كشف الحساب'!$B$3:$G$3,0)),\"\")","v":""}]
["",{"$f":"IFERROR(INDEX('كشف الحساب'!$B$4:$H$1000,SMALL(IF('استخراج كشف حساب عميل'!$E$3<='كشف الحساب'!$B$4:$B$1000,IF('استخراج كشف حساب عميل'!$E$4>='كشف الحساب'!$B$4:$B$1000,IF('استخراج كشف حساب عميل'!$C$3='كشف الحساب'!$C$4:$C$1000,ROW('كشف الحساب'!$B$4:$H$1000)-3))),ROW($A89)),MATCH('استخراج كشف حساب عميل'!B$5,'كشف الحساب'!$B$3:$G$3,0)),\"\")","v":""},{"$f":"IFERROR(INDEX('كشف الحساب'!$B$4:$H$1000,SMALL(IF('استخراج كشف حساب عميل'!$E$3<='كشف الحساب'!$B$4:$B$1000,IF('استخراج كشف حساب عميل'!$E$4>='كشف الحساب'!$B$4:$B$1000,IF('استخراج كشف حساب عميل'!$C$3='كشف الحساب'!$C$4:$C$1000,ROW('كشف الحساب'!$B$4:$H$1000)-3))),ROW($A89)),MATCH('استخراج كشف حساب عميل'!C$5,'كشف الحساب'!$B$3:$G$3,0)),\"\")","v":""},{"$f":"IFERROR(INDEX('كشف الحساب'!$B$4:$H$1000,SMALL(IF('استخراج كشف حساب عميل'!$E$3<='كشف الحساب'!$B$4:$B$1000,IF('استخراج كشف حساب عميل'!$E$4>='كشف الحساب'!$B$4:$B$1000,IF('استخراج كشف حساب عميل'!$C$3='كشف الحساب'!$C$4:$C$1000,ROW('كشف الحساب'!$B$4:$H$1000)-3))),ROW($A89)),MATCH('استخراج كشف حساب عميل'!D$5,'كشف الحساب'!$B$3:$G$3,0)),\"\")","v":""},{"$f":"IFERROR(INDEX('كشف الحساب'!$B$4:$H$1000,SMALL(IF('استخراج كشف حساب عميل'!$E$3<='كشف الحساب'!$B$4:$B$1000,IF('استخراج كشف حساب عميل'!$E$4>='كشف الحساب'!$B$4:$B$1000,IF('استخراج كشف حساب عميل'!$C$3='كشف الحساب'!$C$4:$C$1000,ROW('كشف الحساب'!$B$4:$H$1000)-3))),ROW($A89)),MATCH('استخراج كشف حساب عميل'!E$5,'كشف الحساب'!$B$3:$G$3,0)),\"\")","v":""}]
["",{"$f":"IFERROR(INDEX('كشف الحساب'!$B$4:$H$1000,SMALL(IF('استخراج كشف حساب عميل'!$E$3<='كشف الحساب'!$B$4:$B$1000,IF('استخراج كشف حساب عميل'!$E$4>='كشف الحساب'!$B$4:$B$1000,IF('استخراج كشف حساب عميل'!$C$3='كشف الحساب'!$C$4:$C$1000,ROW('كشف الحساب'!$B$4:$H$1000)-3))),ROW($A90)),MATCH('استخراج كشف حساب عميل'!B$5,'كشف الحساب'!$B$3:$G$3,0)),\"\")","v":""},{"$f":"IFERROR(INDEX('كشف الحساب'!$B$4:$H$1000,SMALL(IF('استخراج كشف حساب عميل'!$E$3<='كشف الحساب'!$B$4:$B$1000,IF('استخراج كشف حساب عميل'!$E$4>='كشف الحساب'!$B$4:$B$1000,IF('استخراج كشف حساب عميل'!$C$3='كشف الحساب'!$C$4:$C$1000,ROW('كشف الحساب'!$B$4:$H$1000)-3))),ROW($A90)),MATCH('استخراج كشف حساب عميل'!C$5,'كشف الحساب'!$B$3:$G$3,0)),\"\")","v":""},{"$f":"IFERROR(INDEX('كشف الحساب'!$B$4:$H$1000,SMALL(IF('استخراج كشف حساب عميل'!$E$3<='كشف الحساب'!$B$4:$B$1000,IF('استخراج كشف حساب عميل'!$E$4>='كشف الحساب'!$B$4:$B$1000,IF('استخراج كشف حساب عميل'!$C$3='كشف الحساب'!$C$4:$C$1000,ROW('كشف الحساب'!$B$4:$H$1000)-3))),ROW($A90)),MATCH('استخراج كشف حساب عميل'!D$5,'كشف الحساب'!$B$3:$G$3,0)),\"\")","v":""},{"$f":"IFERROR(INDEX('كشف الحساب'!$B$4:$H$1000,SMALL(IF('استخراج كشف حساب عميل'!$E$3<='كشف الحساب'!$B$4:$B$1000,IF('استخراج كشف حساب عميل'!$E$4>='كشف الحساب'!$B$4:$B$1000,IF('استخراج كشف حساب عميل'!$C$3='كشف الحساب'!$C$4:$C$1000,ROW('كشف الحساب'!$B$4:$H$1000)-3))),ROW($A90)),MATCH('استخراج كشف حساب عميل'!E$5,'كشف الحساب'!$B$3:$G$3,0)),\"\")","v":""}]
["",{"$f":"IFERROR(INDEX('كشف الحساب'!$B$4:$H$1000,SMALL(IF('استخراج كشف حساب عميل'!$E$3<='كشف الحساب'!$B$4:$B$1000,IF('استخراج كشف حساب عميل'!$E$4>='كشف الحساب'!$B$4:$B$1000,IF('استخراج كشف حساب عميل'!$C$3='كشف الحساب'!$C$4:$C$1000,ROW('كشف الحساب'!$B$4:$H$1000)-3))),ROW($A91)),MATCH('استخراج كشف حساب عميل'!B$5,'كشف الحساب'!$B$3:$G$3,0)),\"\")","v":""},{"$f":"IFERROR(INDEX('كشف الحساب'!$B$4:$H$1000,SMALL(IF('استخراج كشف حساب عميل'!$E$3<='كشف الحساب'!$B$4:$B$1000,IF('استخراج كشف حساب عميل'!$E$4>='كشف الحساب'!$B$4:$B$1000,IF('استخراج كشف حساب عميل'!$C$3='كشف الحساب'!$C$4:$C$1000,ROW('كشف الحساب'!$B$4:$H$1000)-3))),ROW($A91)),MATCH('استخراج كشف حساب عميل'!C$5,'كشف الحساب'!$B$3:$G$3,0)),\"\")","v":""},{"$f":"IFERROR(INDEX('كشف الحساب'!$B$4:$H$1000,SMALL(IF('استخراج كشف حساب عميل'!$E$3<='كشف الحساب'!$B$4:$B$1000,IF('استخراج كشف حساب عميل'!$E$4>='كشف الحساب'!$B$4:$B$1000,IF('استخراج كشف حساب عميل'!$C$3='كشف الحساب'!$C$4:$C$1000,ROW('كشف الحساب'!$B$4:$H$1000)-3))),ROW($A91)),MATCH('استخراج كشف حساب عميل'!D$5,'كشف الحساب'!$B$3:$G$3,0)),\"\")","v":""},{"$f":"IFERROR(INDEX('كشف الحساب'!$B$4:$H$1000,SMALL(IF('استخراج كشف حساب عميل'!$E$3<='كشف الحساب'!$B$4:$B$1000,IF('استخراج كشف حساب عميل'!$E$4>='كشف الحساب'!$B$4:$B$1000,IF('استخراج كشف حساب عميل'!$C$3='كشف الحساب'!$C$4:$C$1000,ROW('كشف الحساب'!$B$4:$H$1000)-3))),ROW($A91)),MATCH('استخراج كشف حساب عميل'!E$5,'كشف الحساب'!$B$3:$G$3,0)),\"\")","v":""}]
["",{"$f":"IFERROR(INDEX('كشف الحساب'!$B$4:$H$1000,SMALL(IF('استخراج كشف حساب عميل'!$E$3<='كشف الحساب'!$B$4:$B$1000,IF('استخراج كشف حساب عميل'!$E$4>='كشف الحساب'!$B$4:$B$1000,IF('استخراج كشف حساب عميل'!$C$3='كشف الحساب'!$C$4:$C$1000,ROW('كشف الحساب'!$B$4:$H$1000)-3))),ROW($A92)),MATCH('استخراج كشف حساب عميل'!B$5,'كشف الحساب'!$B$3:$G$3,0)),\"\")","v":""},{"$f":"IFERROR(INDEX('كشف الحساب'!$B$4:$H$1000,SMALL(IF('استخراج كشف حساب عميل'!$E$3<='كشف الحساب'!$B$4:$B$1000,IF('استخراج كشف حساب عميل'!$E$4>='كشف الحساب'!$B$4:$B$1000,IF('استخراج كشف حساب عميل'!$C$3='كشف الحساب'!$C$4:$C$1000,ROW('كشف الحساب'!$B$4:$H$1000)-3))),ROW($A92)),MATCH('استخراج كشف حساب عميل'!C$5,'كشف الحساب'!$B$3:$G$3,0)),\"\")","v":""},{"$f":"IFERROR(INDEX('كشف الحساب'!$B$4:$H$1000,SMALL(IF('استخراج كشف حساب عميل'!$E$3<='كشف الحساب'!$B$4:$B$1000,IF('استخراج كشف حساب عميل'!$E$4>='كشف الحساب'!$B$4:$B$1000,IF('استخراج كشف حساب عميل'!$C$3='كشف الحساب'!$C$4:$C$1000,ROW('كشف الحساب'!$B$4:$H$1000)-3))),ROW($A92)),MATCH('استخراج كشف حساب عميل'!D$5,'كشف الحساب'!$B$3:$G$3,0)),\"\")","v":""},{"$f":"IFERROR(INDEX('كشف الحساب'!$B$4:$H$1000,SMALL(IF('استخراج كشف حساب عميل'!$E$3<='كشف الحساب'!$B$4:$B$1000,IF('استخراج كشف حساب عميل'!$E$4>='كشف الحساب'!$B$4:$B$1000,IF('استخراج كشف حساب عميل'!$C$3='كشف الحساب'!$C$4:$C$1000,ROW('كشف الحساب'!$B$4:$H$1000)-3))),ROW($A92)),MATCH('استخراج كشف حساب عميل'!E$5,'كشف الحساب'!$B$3:$G$3,0)),\"\")","v":""}]
["",{"$f":"IFERROR(INDEX('كشف الحساب'!$B$4:$H$1000,SMALL(IF('استخراج كشف حساب عميل'!$E$3<='كشف الحساب'!$B$4:$B$1000,IF('استخراج كشف حساب عميل'!$E$4>='كشف الحساب'!$B$4:$B$1000,IF('استخراج كشف حساب عميل'!$C$3='كشف الحساب'!$C$4:$C$1000,ROW('كشف الحساب'!$B$4:$H$1000)-3))),ROW($A93)),MATCH('استخراج كشف حساب عميل'!B$5,'كشف الحساب'!$B$3:$G$3,0)),\"\")","v":""},{"$f":"IFERROR(INDEX('كشف الحساب'!$B$4:$H$1000,SMALL(IF('استخراج كشف حساب عميل'!$E$3<='كشف الحساب'!$B$4:$B$1000,IF('استخراج كشف حساب عميل'!$E$4>='كشف الحساب'!$B$4:$B$1000,IF('استخراج كشف حساب عميل'!$C$3='كشف الحساب'!$C$4:$C$1000,ROW('كشف الحساب'!$B$4:$H$1000)-3))),ROW($A93)),MATCH('استخراج كشف حساب عميل'!C$5,'كشف الحساب'!$B$3:$G$3,0)),\"\")","v":""},{"$f":"IFERROR(INDEX('كشف الحساب'!$B$4:$H$1000,SMALL(IF('استخراج كشف حساب عميل'!$E$3<='كشف الحساب'!$B$4:$B$1000,IF('استخراج كشف حساب عميل'!$E$4>='كشف الحساب'!$B$4:$B$1000,IF('استخراج كشف حساب عميل'!$C$3='كشف الحساب'!$C$4:$C$1000,ROW('كشف الحساب'!$B$4:$H$1000)-3))),ROW($A93)),MATCH('استخراج كشف حساب عميل'!D$5,'كشف الحساب'!$B$3:$G$3,0)),\"\")","v":""},{"$f":"IFERROR(INDEX('كشف الحساب'!$B$4:$H$1000,SMALL(IF('استخراج كشف حساب عميل'!$E$3<='كشف الحساب'!$B$4:$B$1000,IF('استخراج كشف حساب عميل'!$E$4>='كشف الحساب'!$B$4:$B$1000,IF('استخراج كشف حساب عميل'!$C$3='كشف الحساب'!$C$4:$C$1000,ROW('كشف الحساب'!$B$4:$H$1000)-3))),ROW($A93)),MATCH('استخراج كشف حساب عميل'!E$5,'كشف الحساب'!$B$3:$G$3,0)),\"\")","v":""}]
["",{"$f":"IFERROR(INDEX('كشف الحساب'!$B$4:$H$1000,SMALL(IF('استخراج كشف حساب عميل'!$E$3<='كشف الحساب'!$B$4:$B$1000,IF('استخراج كشف حساب عميل'!$E$4>='كشف الحساب'!$B$4:$B$1000,IF('استخراج كشف حساب عميل'!$C$3='كشف الحساب'!$C$4:$C$1000,ROW('كشف الحساب'!$B$4:$H$1000)-3))),ROW($A94)),MATCH('استخراج كشف حساب عميل'!B$5,'كشف الحساب'!$B$3:$G$3,0)),\"\")","v":""},{"$f":"IFERROR(INDEX('كشف الحساب'!$B$4:$H$1000,SMALL(IF('استخراج كشف حساب عميل'!$E$3<='كشف الحساب'!$B$4:$B$1000,IF('استخراج كشف حساب عميل'!$E$4>='كشف الحساب'!$B$4:$B$1000,IF('استخراج كشف حساب عميل'!$C$3='كشف الحساب'!$C$4:$C$1000,ROW('كشف الحساب'!$B$4:$H$1000)-3))),ROW($A94)),MATCH('استخراج كشف حساب عميل'!C$5,'كشف الحساب'!$B$3:$G$3,0)),\"\")","v":""},{"$f":"IFERROR(INDEX('كشف الحساب'!$B$4:$H$1000,SMALL(IF('استخراج كشف حساب عميل'!$E$3<='كشف الحساب'!$B$4:$B$1000,IF('استخراج كشف حساب عميل'!$E$4>='كشف الحساب'!$B$4:$B$1000,IF('استخراج كشف حساب عميل'!$C$3='كشف الحساب'!$C$4:$C$1000,ROW('كشف الحساب'!$B$4:$H$1000)-3))),ROW($A94)),MATCH('استخراج كشف حساب عميل'!D$5,'كشف الحساب'!$B$3:$G$3,0)),\"\")","v":""},{"$f":"IFERROR(INDEX('كشف الحساب'!$B$4:$H$1000,SMALL(IF('استخراج كشف حساب عميل'!$E$3<='كشف الحساب'!$B$4:$B$1000,IF('استخراج كشف حساب عميل'!$E$4>='كشف الحساب'!$B$4:$B$1000,IF('استخراج كشف حساب عميل'!$C$3='كشف الحساب'!$C$4:$C$1000,ROW('كشف الحساب'!$B$4:$H$1000)-3))),ROW($A94)),MATCH('استخراج كشف حساب عميل'!E$5,'كشف الحساب'!$B$3:$G$3,0)),\"\")","v":""}]
["",{"$f":"IFERROR(INDEX('كشف الحساب'!$B$4:$H$1000,SMALL(IF('استخراج كشف حساب عميل'!$E$3<='كشف الحساب'!$B$4:$B$1000,IF('استخراج كشف حساب عميل'!$E$4>='كشف الحساب'!$B$4:$B$1000,IF('استخراج كشف حساب عميل'!$C$3='كشف الحساب'!$C$4:$C$1000,ROW('كشف الحساب'!$B$4:$H$1000)-3))),ROW($A95)),MATCH('استخراج كشف حساب عميل'!B$5,'كشف الحساب'!$B$3:$G$3,0)),\"\")","v":""},{"$f":"IFERROR(INDEX('كشف الحساب'!$B$4:$H$1000,SMALL(IF('استخراج كشف حساب عميل'!$E$3<='كشف الحساب'!$B$4:$B$1000,IF('استخراج كشف حساب عميل'!$E$4>='كشف الحساب'!$B$4:$B$1000,IF('استخراج كشف حساب عميل'!$C$3='كشف الحساب'!$C$4:$C$1000,ROW('كشف الحساب'!$B$4:$H$1000)-3))),ROW($A95)),MATCH('استخراج كشف حساب عميل'!C$5,'كشف الحساب'!$B$3:$G$3,0)),\"\")","v":""},{"$f":"IFERROR(INDEX('كشف الحساب'!$B$4:$H$1000,SMALL(IF('استخراج كشف حساب عميل'!$E$3<='كشف الحساب'!$B$4:$B$1000,IF('استخراج كشف حساب عميل'!$E$4>='كشف الحساب'!$B$4:$B$1000,IF('استخراج كشف حساب عميل'!$C$3='كشف الحساب'!$C$4:$C$1000,ROW('كشف الحساب'!$B$4:$H$1000)-3))),ROW($A95)),MATCH('استخراج كشف حساب عميل'!D$5,'كشف الحساب'!$B$3:$G$3,0)),\"\")","v":""},{"$f":"IFERROR(INDEX('كشف الحساب'!$B$4:$H$1000,SMALL(IF('استخراج كشف حساب عميل'!$E$3<='كشف الحساب'!$B$4:$B$1000,IF('استخراج كشف حساب عميل'!$E$4>='كشف الحساب'!$B$4:$B$1000,IF('استخراج كشف حساب عميل'!$C$3='كشف الحساب'!$C$4:$C$1000,ROW('كشف الحساب'!$B$4:$H$1000)-3))),ROW($A95)),MATCH('استخراج كشف حساب عميل'!E$5,'كشف الحساب'!$B$3:$G$3,0)),\"\")","v":""}]
["",{"$f":"IFERROR(INDEX('كشف الحساب'!$B$4:$H$1000,SMALL(IF('استخراج كشف حساب عميل'!$E$3<='كشف الحساب'!$B$4:$B$1000,IF('استخراج كشف حساب عميل'!$E$4>='كشف الحساب'!$B$4:$B$1000,IF('استخراج كشف حساب عميل'!$C$3='كشف الحساب'!$C$4:$C$1000,ROW('كشف الحساب'!$B$4:$H$1000)-3))),ROW($A96)),MATCH('استخراج كشف حساب عميل'!B$5,'كشف الحساب'!$B$3:$G$3,0)),\"\")","v":""},{"$f":"IFERROR(INDEX('كشف الحساب'!$B$4:$H$1000,SMALL(IF('استخراج كشف حساب عميل'!$E$3<='كشف الحساب'!$B$4:$B$1000,IF('استخراج كشف حساب عميل'!$E$4>='كشف الحساب'!$B$4:$B$1000,IF('استخراج كشف حساب عميل'!$C$3='كشف الحساب'!$C$4:$C$1000,ROW('كشف الحساب'!$B$4:$H$1000)-3))),ROW($A96)),MATCH('استخراج كشف حساب عميل'!C$5,'كشف الحساب'!$B$3:$G$3,0)),\"\")","v":""},{"$f":"IFERROR(INDEX('كشف الحساب'!$B$4:$H$1000,SMALL(IF('استخراج كشف حساب عميل'!$E$3<='كشف الحساب'!$B$4:$B$1000,IF('استخراج كشف حساب عميل'!$E$4>='كشف الحساب'!$B$4:$B$1000,IF('استخراج كشف حساب عميل'!$C$3='كشف الحساب'!$C$4:$C$1000,ROW('كشف الحساب'!$B$4:$H$1000)-3))),ROW($A96)),MATCH('استخراج كشف حساب عميل'!D$5,'كشف الحساب'!$B$3:$G$3,0)),\"\")","v":""},{"$f":"IFERROR(INDEX('كشف الحساب'!$B$4:$H$1000,SMALL(IF('استخراج كشف حساب عميل'!$E$3<='كشف الحساب'!$B$4:$B$1000,IF('استخراج كشف حساب عميل'!$E$4>='كشف الحساب'!$B$4:$B$1000,IF('استخراج كشف حساب عميل'!$C$3='كشف الحساب'!$C$4:$C$1000,ROW('كشف الحساب'!$B$4:$H$1000)-3))),ROW($A96)),MATCH('استخراج كشف حساب عميل'!E$5,'كشف الحساب'!$B$3:$G$3,0)),\"\")","v":""}]
["",{"$f":"IFERROR(INDEX('كشف الحساب'!$B$4:$H$1000,SMALL(IF('استخراج كشف حساب عميل'!$E$3<='كشف الحساب'!$B$4:$B$1000,IF('استخراج كشف حساب عميل'!$E$4>='كشف الحساب'!$B$4:$B$1000,IF('استخراج كشف حساب عميل'!$C$3='كشف الحساب'!$C$4:$C$1000,ROW('كشف الحساب'!$B$4:$H$1000)-3))),ROW($A97)),MATCH('استخراج كشف حساب عميل'!B$5,'كشف الحساب'!$B$3:$G$3,0)),\"\")","v":""},{"$f":"IFERROR(INDEX('كشف الحساب'!$B$4:$H$1000,SMALL(IF('استخراج كشف حساب عميل'!$E$3<='كشف الحساب'!$B$4:$B$1000,IF('استخراج كشف حساب عميل'!$E$4>='كشف الحساب'!$B$4:$B$1000,IF('استخراج كشف حساب عميل'!$C$3='كشف الحساب'!$C$4:$C$1000,ROW('كشف الحساب'!$B$4:$H$1000)-3))),ROW($A97)),MATCH('استخراج كشف حساب عميل'!C$5,'كشف الحساب'!$B$3:$G$3,0)),\"\")","v":""},{"$f":"IFERROR(INDEX('كشف الحساب'!$B$4:$H$1000,SMALL(IF('استخراج كشف حساب عميل'!$E$3<='كشف الحساب'!$B$4:$B$1000,IF('استخراج كشف حساب عميل'!$E$4>='كشف الحساب'!$B$4:$B$1000,IF('استخراج كشف حساب عميل'!$C$3='كشف الحساب'!$C$4:$C$1000,ROW('كشف الحساب'!$B$4:$H$1000)-3))),ROW($A97)),MATCH('استخراج كشف حساب عميل'!D$5,'كشف الحساب'!$B$3:$G$3,0)),\"\")","v":""},{"$f":"IFERROR(INDEX('كشف الحساب'!$B$4:$H$1000,SMALL(IF('استخراج كشف حساب عميل'!$E$3<='كشف الحساب'!$B$4:$B$1000,IF('استخراج كشف حساب عميل'!$E$4>='كشف الحساب'!$B$4:$B$1000,IF('استخراج كشف حساب عميل'!$C$3='كشف الحساب'!$C$4:$C$1000,ROW('كشف الحساب'!$B$4:$H$1000)-3))),ROW($A97)),MATCH('استخراج كشف حساب عميل'!E$5,'كشف الحساب'!$B$3:$G$3,0)),\"\")","v":""}]
["",{"$f":"IFERROR(INDEX('كشف الحساب'!$B$4:$H$1000,SMALL(IF('استخراج كشف حساب عميل'!$E$3<='كشف الحساب'!$B$4:$B$1000,IF('استخراج كشف حساب عميل'!$E$4>='كشف الحساب'!$B$4:$B$1000,IF('استخراج كشف حساب عميل'!$C$3='كشف الحساب'!$C$4:$C$1000,ROW('كشف الحساب'!$B$4:$H$1000)-3))),ROW($A98)),MATCH('استخراج كشف حساب عميل'!B$5,'كشف الحساب'!$B$3:$G$3,0)),\"\")","v":""},{"$f":"IFERROR(INDEX('كشف الحساب'!$B$4:$H$1000,SMALL(IF('استخراج كشف حساب عميل'!$E$3<='كشف الحساب'!$B$4:$B$1000,IF('استخراج كشف حساب عميل'!$E$4>='كشف الحساب'!$B$4:$B$1000,IF('استخراج كشف حساب عميل'!$C$3='كشف الحساب'!$C$4:$C$1000,ROW('كشف الحساب'!$B$4:$H$1000)-3))),ROW($A98)),MATCH('استخراج كشف حساب عميل'!C$5,'كشف الحساب'!$B$3:$G$3,0)),\"\")","v":""},{"$f":"IFERROR(INDEX('كشف الحساب'!$B$4:$H$1000,SMALL(IF('استخراج كشف حساب عميل'!$E$3<='كشف الحساب'!$B$4:$B$1000,IF('استخراج كشف حساب عميل'!$E$4>='كشف الحساب'!$B$4:$B$1000,IF('استخراج كشف حساب عميل'!$C$3='كشف الحساب'!$C$4:$C$1000,ROW('كشف الحساب'!$B$4:$H$1000)-3))),ROW($A98)),MATCH('استخراج كشف حساب عميل'!D$5,'كشف الحساب'!$B$3:$G$3,0)),\"\")","v":""},{"$f":"IFERROR(INDEX('كشف الحساب'!$B$4:$H$1000,SMALL(IF('استخراج كشف حساب عميل'!$E$3<='كشف الحساب'!$B$4:$B$1000,IF('استخراج كشف حساب عميل'!$E$4>='كشف الحساب'!$B$4:$B$1000,IF('استخراج كشف حساب عميل'!$C$3='كشف الحساب'!$C$4:$C$1000,ROW('كشف الحساب'!$B$4:$H$1000)-3))),ROW($A98)),MATCH('استخراج كشف حساب عميل'!E$5,'كشف الحساب'!$B$3:$G$3,0)),\"\")","v":""}]
[""]
[""]
[""]
[""]
[""]
[""]
[""]
[""]
[""]
[""]
[""]
[""]
[""]
[""]
[""]
[""]
[""]
[""]
[""]
[""]
[""]
[""]
[""]
[""]
[""]
[""]
[""]
[""]
[""]
[""]
[""]
[{"$f":"IF(B135=\"\",\"\",ROW()-5)","v":""}]
[""]
[""]
[""]
[""]
[""]
[""]
[""]
[""]
[""]
[""]
[""]
[""]
[""]
[""]
[""]
[""]
[""]
[""]
[""]
[""]
[""]
[""]
[""]
[""]
[""]
[""]
[""]
[""]
[""]
[""]
[""]
[""]
[""]
[""]
[""]
[""]
[""]
[""]
[""]
[""]
[""]
[""]
[""]
[""]
[""]
[""]
[""]
[""]
[""]
[""]
[""]
[""]
[""]
[""]
[""]
[""]
[""]
[""]
[""]
[""]
[""]
[""]
[""]
[{"$f":"IF(B199=\"\",\"\",ROW()-5)","v":""}]
[""]
[]
[]
[]
[]
[]
[]
[]
[]
[]
[]
[]
[]
[]
[]
[]
[]
[]
[]
[]
[]
[]
[]
[]
[]
[]
[]
[]
[]
[]
[]
[]
[]
[]
[]
[]
[]
[]
[]
[]
[]
[]
[]
[]
[]
[]
[]
[]
[]
[]
[]
[]
[]
[]
[]
[]
[]
[]
[]
[]
[]
[]
[]
[]
[]
[]
[]
[]
[]
[]
[]
[]
[]
[]
[]
[]
[]
[]
[]
[]
[]
[]
[]
[]
[]
[]
[]
[]
[]
[]
[]
[]
[]
[]
[]
[]
[]
[]
[]
[]
[]
[]
[]
[]
[]
[]
[]
[]
[]
[]
[]
[]
[]
[]
[]
[]
[]
[]
[]
[]
[]
[]
[]
[]
[]
[]
[]
[]
[]
[]
[]
[]
[]
[]
[]
[]
[]
[]
[]
[]
[]
[]
[]
[]
[]
[]
["اجمالي الدين",null,null,"اجمالي الفواتير","اجمالي التنزيلات"]
[]
[{"$f":"D348-E348","v":2000},null,null,{"$f":"SUM($D$6:$D$345)","v":5000},{"$f":"SUM($E$6:$E$345)","v":3000}]

{"sheet":"ورقة3","index":2,"n_rows":0,"n_cols":0,"rows_kept":0,"cut":false,"hidden":false,"merged":[]}